{"text_format":"1","workbook":"xlsx","n_sheets":61,"sheets":["作成手順","チェックシート","事業者リスト一覧","シート保護解除事業者リスト","帳票表示切替","エリア表示切替","供給計画届出書様式→","表紙","別紙（変更供計用）","目次","様式第32第1表（指定１）","様式第32第1表（指定２）","様式第32第2表","様式第32第3表（指定）","様式第32第3表（指定） (2年度目)","様式第32第4表","様式第32第5表（水力）","様式第32第5表（火力）","様式第32第5表（原子力）","様式第32第5表（新エネ）","様式第32第6の1表","様式第32第6の2表","様式第32第6の3表","様式第32第7表（水力）","様式第32第7表（火力）","様式第32第7表（原子力）","様式第32第7表（新エネ）","様式第32第8表（指定１）_受電","様式第32第8表（指定１）_送電","様式第32第8表（指定２）_受電","様式第32第8表（指定２）_送電","添付書類","様式第33表（指定１）","様式第33表（指定２）","様式第33の2（指定１）","様式第33の2（指定２）","様式第33の3第1表（指定１）","様式第33の3第1表（指定２）","様式第33の3第2表","様式第33の3第2表 (2年度目)","様式第34第1表","様式第34第1表 (2年度目)","様式第34第2表","様式第34第2表 (2年度目)","様式第34第3表","様式第34第3表 (2年度目)","様式第34第4表","様式第34第4表 (2年度目)","様式第35第1表","様式第35第2表","様式第35第3表","様式第36表（指定）_受電","様式第36表（指定）_送電","様式第36表（指定）_受電 (2年度目)","様式第36表（指定）_送電 (2年度目)","様式第37表","様式第38表（電力潮流の状況）","様式第38の2表（指定１）","様式第38表（電力系統の状況）","様式第38の2表（指定２）","見え消し版用表紙（変更供計用）"],"not_rendered":{"charts":0,"images":2,"macros":1,"external_links":0,"defined_names":62,"comments":15,"pivot_tables":0},"unopened":[],"bounds":{"document_bytes":16777216,"sheet_cells":100000,"rows_first":2000,"rows_last":500,"rows_between":2000,"halvings":0,"cell_chars":16384,"cell_head_chars":4096},"cells_cut":0,"cells_raw":0,"read":"whole","date_system":"1900"}

{"sheet":"作成手順","index":0,"n_rows":18,"n_cols":3,"rows_kept":18,"cut":false,"hidden":false,"merged":[]}
[]
[null,"●送電事業者における基本的な作成手順"]
[null,"　①　供給計画届出書様式の「表紙」シートに住所・代表者名・供給計画用事業者コード・事業者コード・メールアドレスを記載"]
[null,"　　　供給計画用事業者コードは、事業者リスト一覧から検索し選択すること。なお、事業者名がない場合は、"]
[null,"　　　最新の事業者リスト一覧を広域機関HPよりダウンロードし、「表紙」シートの「事業者リスト一覧最新化」ボタンを押下し、"]
[null,"　　　事業者リスト一覧を最新化すること。"]
[]
[null,"　②　特定エリアにおける最上位電圧の送電線路および変電所の整備計画がある場合は様式第３２第６表を記載"]
[null,"　③　様式第３８表（電力系統の状況）を記載"]
[]
[null,"　④　チェックシートにて、×がないことを確認。また、△項目について確認内容を記載。"]
[null,"　　　（×項目があっても、正当な理由がある場合はそれを記載すること）"]
[]
[null,"　⑤　「表紙」シート右上部の「保存」ボタンを押下してファイルを保存し、電子メールにより供給計画案を提出する。"]
[null,"　　　"]
[]
[null,null,"初回提出時はメール件名の先頭に【提出_ ＋（※供給計画用　事業者コード）_貴社名】と記載頂くようお願いします。　※供給計画用　事業者コード＝表紙シートのＡＢ18セル"]
[null,null,"　メール件名の例：【提出_S○○○_貴社名】○○○○○・・・・・○○"]

{"sheet":"チェックシート","index":1,"n_rows":13,"n_cols":7,"rows_kept":13,"cut":false,"hidden":false,"merged":[]}
[null,"提出前に、下記チェックシートにて「×」がないことを確認すること。また、「△」については確認内容について記載すること。"]
[null,"（「×」項目でも正当な理由がある場合はその内容を記載すること。例：前年度に事業を開始していない等、その旨を記載）"]
[null,"なお、不整合箇所の詳細については、各帳票シートの印刷範囲外の右側に記載あり。"]
[]
[null,"シート名","確認項目","チェック","カテゴリ","内容","△or×の確認内容を記載"]
[null,"表紙","表紙の記載",{"$f":"表紙!$AC$26","v":"×"},null,{"$f":"IF(D6=\"×\",\"住所・代表者名・供給計画用事業者コード・事業者コード・メールアドレスを記入ください。変更供計の場合は、変更の内容も記載ください。\",\"\")","v":"住所・代表者名・供給計画用事業者コード・事業者コード・メールアドレスを記入ください。変更供計の場合は、変更の内容も記載ください。"}]
[]
[]
[]
[]
[null,"●更新履歴"]
[null,null,"日付",null,"バージョン","更新内容"]
[null,null,"2025-11-28",null,"format1","初版"]

{"sheet":"事業者リスト一覧","index":2,"n_rows":2003,"n_cols":26,"rows_kept":2003,"cut":false,"hidden":false,"merged":[]}
[null,"電力広域的運営推進機関"]
[null,"計画年度選択",null,"発電事業者",null,null,"一般送配電事業者",null,null,"小売電気事業者",null,null,"配電事業者",null,null,"特定卸供給事業者",null,null,"送電事業者",null,null,"特定送配電事業者",null,null,"登録特定送配電事業者"]
[null,2026]
[null,null,null,"H001","北海道電力株式会社",null,"I01","北海道電力ネットワーク株式会社",null,"K001","北海道電力株式会社",null,"D001",null,null,"A001","株式会社エナリス",null,"S01","電源開発送変電ネットワーク株式会社",null,"TT01","欠番",null,"TR01","Ｄａｉｇａｓエナジー株式会社"]
[null,"ライセンス区分",null,"H002","東北電力株式会社",null,"I02","東北電力ネットワーク株式会社",null,"K002","東北電力株式会社",null,"D002",null,null,"A002","株式会社タクマエナジー",null,"S02","北海道北部風力送電株式会社",null,"TT02","欠番",null,"TR02","ＪＦＥスチール株式会社"]
[null,null,null,"H003","東京電力ホールディングス株式会社",null,"I03","東京電力パワーグリッド株式会社",null,"K003","東京電力エナジーパートナー株式会社",null,"D003",null,null,"A003","欠番",null,"S03","福島送電株式会社",null,"TT03","欠番",null,"TR03","住友共同電力株式会社"]
[null,"一般送配電事業者",null,"H004","株式会社ＪＥＲＡ",null,"I04","中部電力パワーグリッド株式会社",null,"K004","中部電力ミライズ株式会社",null,"D004",null,null,"A004","オリックス株式会社",null,"S04",null,null,"TT04","日本ファシリティ・ソリューション株式会社",null,"TR04","東日本旅客鉄道株式会社"]
[null,"配電事業者",null,"H005","東京電力パワーグリッド株式会社",null,"I05","北陸電力送配電株式会社",null,"K005","北陸電力株式会社",null,"D005",null,null,"A005","パシフィックパワー株式会社",null,"S05",null,null,"TT05","欠番",null,"TR05","六本木エネルギーサービス株式会社"]
[null,"発電事業者",null,"H006","中部電力株式会社",null,"I06","関西電力送配電株式会社",null,"K006","関西電力株式会社",null,"D006",null,null,"A006","アズビル株式会社",null,"S06",null,null,"TT06","欠番",null,"TR06","株式会社ＪＮＣパワー"]
[null,"特定卸供給事業者",null,"H007","北陸電力株式会社",null,"I07","中国電力ネットワーク株式会社",null,"K007","中国電力株式会社",null,"D007",null,null,"A007","東北電力株式会社",null,"S07",null,null,"TT07","欠番",null,"TR07","王子製紙株式会社"]
[null,"小売電気事業者",null,"H008","関西電力株式会社",null,"I08","四国電力送配電株式会社",null,"K008","四国電力株式会社",null,"D008",null,null,"A008","大阪瓦斯株式会社",null,"S08",null,null,"TT08","欠番",null,"TR08","株式会社グリーンサークル"]
[null,"登録特定送配電事業者",null,"H009","中国電力株式会社",null,"I09","九州電力送配電株式会社",null,"K009","九州電力株式会社",null,"D009",null,null,"A009","欠番",null,"S09",null,null,"TT09","利久株式会社",null,"TR09","欠番"]
[null,"送電事業者",null,"H010","四国電力株式会社",null,"I10","沖縄電力株式会社",null,"K010","沖縄電力株式会社",null,"D010",null,null,"A010","Ｇｏａｌ　Ｃｏｎｎｅｃｔ株式会社",null,"S10",null,null,"TT10","欠番",null,"TR10","欠番"]
[null,"特定送配電事業者",null,"H011","九州電力株式会社",null,null,null,null,"K011","欠番",null,"D011",null,null,"A011","株式会社グローバルエンジニアリング",null,"S11",null,null,"TT11","欠番",null,"TR11","株式会社フォレストパワー"]
[null,"その他事業者",null,"H012","沖縄電力株式会社",null,"その他事業者",null,null,"K012","イーレックス株式会社",null,"D012",null,null,"A012","欠番",null,"S12",null,null,"TT12","ヤクデン商事株式会社",null,"TR12","宮崎パワーライン株式会社"]
[null,null,null,"H013","電源開発株式会社",null,null,null,null,"K013","リエスパワー株式会社",null,"D013",null,null,"A013","九州電力株式会社",null,"S13",null,null,"TT13","株式会社祥和コーポレーション",null,"TR13","欠番"]
[null,"エリア",null,"H014","日本原子力発電株式会社",null,"ST01","風力",null,"K014","エバーグリーン・リテイリング株式会社",null,"D014",null,null,"A014","電源開発株式会社",null,"S14",null,null,"TT14","欠番",null,"TR14","丸紅株式会社"]
[null,null,null,"H015","日本テクノ株式会社",null,"ST02","太陽光（全量買取）",null,"K015","欠番",null,"D015",null,null,"A015","テス・エンジニアリング株式会社",null,"S15",null,null,"TT15","欠番",null,"TR15","イーレックス株式会社"]
[null,"北海道",null,"H016","ＳＯＬＡＲ　ＥＮＥＲＧＹ　真壁合同会社",null,"ST03","太陽光（余剰買取）",null,"K016","エバーグリーン・マーケティング株式会社",null,"D016",null,null,"A016","アーバンエナジー株式会社",null,"S16",null,null,"TT16","株式会社シーエナジー",null,"TR16","一般社団法人東松島みらいとし機構"]
[null,"東北",null,"H017","大牟田リサイクル発電株式会社",null,"ST04","日本卸電力取引所（約定分）",null,"K017","株式会社ＳＥウイングズ",null,"D017",null,null,"A017","ＭＣリテールエナジー株式会社",null,"S17",null,null,"TT17","欠番",null,"TR17","森の電力株式会社"]
[null,"東京",null,"H018","サミット明星パワー株式会社",null,"ST05","非電気事業者",null,"K018","株式会社イーセル",null,"D018",null,null,"A018","エネルエックス・ジャパン株式会社",null,"S18",null,null,"TT18","欠番",null,"TR18","欠番"]
[null,"中部",null,"H019","欠番",null,"ST06","非電気事業者（10万kW以下事業者）",null,"K019","株式会社エネット",null,"D019",null,null,"A019","株式会社ＵＰＤＡＴＥＲ",null,"S19",null,null,"TT19","欠番",null,"TR19","ジェーシーパワーサプライ株式会社"]
[null,"北陸",null,"H020","西つがる風力発電株式会社",null,"ST07",null,null,"K020","欠番",null,"D020",null,null,"A020","東邦ガス株式会社",null,"S20",null,null,"TT20","欠番",null,"TR20","そうまＩグリッド合同会社"]
[null,"関西",null,"H021","まほろば風力発電株式会社",null,"ST08",null,null,"K021","須賀川瓦斯株式会社",null,"D021",null,null,"A021","カスタマイズドエナジーソリューションズジャパン株式会社",null,"S21",null,null,"TT21","欠番",null,"TR21","三井不動産ＴＧスマートエナジー株式会社"]
[null,"中国",null,"H022","エイブルエナジー合同会社",null,"ST09",null,null,"K022","出光興産株式会社",null,"D022",null,null,"A022","東京電力エナジーパートナー株式会社",null,"S22",null,null,"TT22","欠番",null,"TR22","ＭＣＰＤ株式会社"]
[null,"四国",null,"H023","欠番",null,"ST10",null,null,"K023","株式会社オプテージ",null,"D023",null,null,"A023","北陸電力株式会社",null,"S23",null,null,"TT23","陸前高田しみんエネルギー株式会社",null,"TR23","ひおき地域エネルギー株式会社"]
[null,"九州",null,"H024","株式会社ＩＨＩ原動機",null,null,null,null,"K024","エネサーブ株式会社",null,"D024",null,null,"A024","欠番",null,"S24",null,null,"TT24","ヒメジ理化株式会社",null,"TR24","欠番"]
[null,"沖縄",null,"H025","株式会社新中袖発電所",null,null,null,null,"K025","株式会社エネワンでんき",null,"D025",null,null,"A025","北海道電力株式会社",null,"S25",null,null,"TT25","株式会社町おこしエネルギー",null,"TR25","株式会社タクマエナジー"]
[null,null,null,"H026","株式会社那須南エコファーム",null,null,null,null,"K026","ミツウロコグリーンエネルギー株式会社",null,"D026",null,null,"A026","四国電力株式会社",null,"S26",null,null,"TT26","あきたみらい共生電力株式会社",null,"TR26","欠番"]
[null,"チェック用",null,"H027","株式会社ＡＣエナジー",null,null,null,null,"K027","株式会社リエネ",null,"D027",null,null,"A027","中部電力ミライズ株式会社",null,"S27",null,null,"TT27","株式会社原興産",null,"TR27","欠番"]
[null,null,null,"H028","株式会社イースクエア",null,null,null,null,"K028","ネクストパワーやまと株式会社",null,"D028",null,null,"A028","東京瓦斯株式会社",null,"S28",null,null,"TT28","せきかわふるさとエネルギー株式会社",null,"TR28","虎ノ門エネルギーネットワーク株式会社"]
[null,1,null,"H029","合同会社ノーバル・ソーラー",null,null,null,null,"K029","日本テクノ株式会社",null,"D029",null,null,"A029","株式会社工営エナジー",null,"S29",null,null,"TT29","株式会社いくさかてらす",null,"TR29","旭化成水力テクノサービス株式会社"]
[null,null,null,"H030","住友共同電力株式会社",null,null,null,null,"K030","中央電力エナジー株式会社",null,"D030",null,null,"A030","ＮＴＴアノードエナジー株式会社",null,"S30",null,null,"TT30",null,null,"TR30","株式会社ウッドエナジー"]
[null,"提出区分",null,"H031","六本木エネルギーサービス株式会社",null,null,null,null,"K031","株式会社Ｌｏｏｏｐ",null,"D031",null,null,"A031","欠番",null,"S31",null,null,"TT31",null,null,"TR31","真庭バイオエネルギー株式会社"]
[null,"新規",null,"H032","東日本旅客鉄道株式会社",null,null,null,null,"K032","欠番",null,"D032",null,null,"A032","東京電力ホールディングス株式会社",null,"S32",null,null,"TT32",null,null,"TR32","葛尾創生電力株式会社"]
[null,"変更1",null,"H033","鴨川みらいソーラー合同会社",null,null,null,null,"K033","欠番",null,"D033",null,null,"A033","カナデビア株式会社",null,"S33",null,null,"TT33",null,null,"TR33","株式会社Ｌｏｏｏｐ"]
[null,"変更2",null,"H034","東北自然エネルギー株式会社",null,null,null,null,"K034","静岡ガス＆パワー株式会社",null,"D034",null,null,"A034","中国電力株式会社",null,"S34",null,null,"TT34",null,null,"TR34","株式会社ＦＰＳ"]
[null,"変更3",null,"H035","川崎市役所",null,null,null,null,"K035","荏原環境プラント株式会社",null,"D035",null,null,"A035","デジタルグリッド株式会社",null,"S35",null,null,"TT35",null,null,"TR35","関西電力株式会社"]
[null,"変更4",null,"H036","ＢＳＲＡ　Ａｌｐｈａ１　合同会社",null,null,null,null,"K036","東京エコサービス株式会社",null,"D036",null,null,"A036","伊藤忠商事株式会社",null,"S36",null,null,"TT36",null,null,"TR36","広島ガス株式会社"]
[null,"変更5",null,"H037","五井コーストエナジー株式会社",null,null,null,null,"K037","ダイヤモンドパワー株式会社",null,"D037",null,null,"A037","Ｇｒｅｅｎｅｓｔ　Ｅｎｅｒｇｙ株式会社",null,"S37",null,null,"TT37",null,null,"TR37","ウーブン・バイ・トヨタ株式会社"]
[null,"変更6",null,"H038","秋田県",null,null,null,null,"K038","欠番",null,"D038",null,null,"A038","リニューアブル・ジャパン株式会社",null,"S38",null,null,"TT38",null,null,"TR38","ＥＮＥＯＳ　Ｐｏｗｅｒ株式会社"]
[null,"変更7",null,"H039","東埼玉資源環境組合",null,null,null,null,"K039","欠番",null,"D039",null,null,"A039","Ｑ．ＥＮＥＳＴでんき株式会社",null,"S39",null,null,"TT39",null,null,"TR39","浦添分散型エネルギー株式会社"]
[null,null,null,"H040","頴娃風力発電株式会社",null,null,null,null,"K040","欠番",null,"D040",null,null,"A040","カワサキグリーンエナジー株式会社",null,"S40",null,null,"TT40",null,null,"TR40","株式会社エヌディエス"]
[null,"種別",null,"H041","パシフィコ・エナジー山形合同会社",null,null,null,null,"K041","株式会社新出光",null,"D041",null,null,"A041","ＨＳＥ株式会社",null,"S41",null,null,"TT41",null,null,"TR41","三井不動産ＴＥＰＣＯエナジー株式会社"]
[null,null,null,"H042","三菱製紙株式会社",null,null,null,null,"K042","セントラル石油瓦斯株式会社",null,"D042",null,null,"A042","株式会社再生可能エネルギー推進機構",null,"S42",null,null,"TT42",null,null,"TR42","相鉄クリーンエナジー株式会社"]
[null,"常時バックアップ",null,"H043","欠番",null,null,null,null,"K043","にちほクラウド電力株式会社",null,"D043",null,null,"A043","ダイヤモンドパワー株式会社",null,"S43",null,null,"TT43",null,null,"TR43","大熊るるるん電力株式会社"]
[null,"水力",null,"H044","欠番",null,null,null,null,"K044","一般財団法人泉佐野電力",null,"D044",null,null,"A044","イーレックス株式会社",null,"S44",null,null,"TT44",null,null,"TR44","株式会社グリーンエナジーぐんま"]
[null,"火力",null,"H045","株式会社フジックス",null,null,null,null,"K045","コスモエネルギーソリューションズ株式会社",null,"D045",null,null,"A045","株式会社シムックスイニシアティブ",null,"S45",null,null,"TT45",null,null,"TR45","スマート電気株式会社"]
[null,"原子力",null,"H046","Ｄａｉｇａｓ大分みらいソーラー株式会社",null,null,null,null,"K046","株式会社グリーンサークル",null,"D046",null,null,"A046","東芝エネルギーシステムズ株式会社",null,"S46",null,null,"TT46",null,null,"TR46"]
[null,"風力",null,"H047","京葉ガスエナジーソリューション株式会社",null,null,null,null,"K047","欠番",null,"D047",null,null,"A047","ElectroRoute　Japan株式会社",null,"S47",null,null,"TT47",null,null,"TR47"]
[null,"太陽光（全量）",null,"H048","株式会社グリーンエナジー津",null,null,null,null,"K048","欠番",null,"D048",null,null,"A048","豊田通商株式会社",null,"S48",null,null,"TT48",null,null,"TR48"]
[null,"太陽光（余剰）",null,"H049","パシフィコ・エナジー細江合同会社",null,null,null,null,"K049","北海道瓦斯株式会社",null,"D049",null,null,"A049","ENEOSリニューアブル・エナジー・ソリューションズ株式会社",null,"S49",null,null,"TT49",null,null,"TR49"]
[null,"地熱",null,"H050","九州おひさま発電株式会社",null,null,null,null,"K050","アルカナエナジー株式会社",null,"D050",null,null,"A050","ＵＮＩＶＥＲＧＹ株式会社",null,"S50",null,null,"TT50",null,null,"TR50"]
[null,"バイオマス",null,"H051","富山県企業局",null,null,null,null,"K051","株式会社エナジーバンクパートナーズ",null,"D051",null,null,"A051","株式会社まち未来製作所",null,"S51",null,null,"TT51",null,null,"TR51"]
[null,"廃棄物",null,"H052","欠番",null,null,null,null,"K052","新エネルギー開発株式会社",null,"D052",null,null,"A052","エナジープールジャパン株式会社",null,"S52",null,null,"TT52",null,null,"TR52"]
[null,"その他（電源種別混同等）",null,"H053","株式会社高田屋",null,null,null,null,"K053","伊藤忠エネクス株式会社",null,"D053",null,null,"A053","Ｅ－Ｆｌｏｗ合同会社",null,"S53",null,null,"TT53",null,null,"TR53"]
[null,"ネガワット",null,"H054","住友大阪セメント株式会社",null,null,null,null,"K054","欠番",null,"D054",null,null,"A054","ＧｒｉｄＢｅｙｏｎｄ合同会社",null,"S54",null,null,"TT54",null,null,"TR54"]
[null,"蓄電池",null,"H055","京都府電気事業",null,null,null,null,"K055","株式会社Ｖ－Ｐｏｗｅｒ",null,"D055",null,null,"A055","丸紅新電力株式会社",null,"S55",null,null,"TT55",null,null,"TR55"]
[null,"水素",null,"H056","株式会社アサヒコーポレーション",null,null,null,null,"K056","大和エネルギー株式会社",null,"D056",null,null,"A056","ＲＥ１００電力株式会社",null,"S56",null,null,"TT56",null,null,"TR56"]
[null,"アンモニア",null,"H057","パシフィコ・エナジー美作武蔵合同会社",null,null,null,null,"K057","欠番",null,"D057",null,null,"A057","Ｖａｌｈａｌｌ合同会社",null,"S57",null,null,"TT57",null,null,"TR57"]
[null,null,null,"H058","パシフィコ・エナジー久米南合同会社",null,null,null,null,"K058","大阪瓦斯株式会社",null,"D058",null,null,"A058","株式会社ユーラスグリーンエナジー",null,"S58",null,null,"TT58",null,null,"TR58"]
[null,"桁数設定",null,"H059","サミット美浜パワー株式会社",null,null,null,null,"K059","エフビットコミュニケーションズ株式会社",null,"D059",null,null,"A059","ハイパワー合同会社",null,"S59",null,null,"TT59",null,null,"TR59"]
[null,1,null,"H060","金沢エナジー株式会社",null,null,null,null,"K060","欠番",null,"D060",null,null,"A060","株式会社Ｓｈｉｚｅｎ　Ｃｏｎｎｅｃｔ",null,"S60",null,null,"TT60",null,null,"TR60"]
[null,null,null,"H061","鹿児島メガソーラー発電株式会社",null,null,null,null,"K061","真庭バイオエネルギー株式会社",null,"D061",null,null,"A061","株式会社サンヴィレッジ",null,"S61",null,null,"TT61",null,null,"TR61"]
[null,"桁数設定（新エネ供給力）",null,"H062","出光興産株式会社",null,null,null,null,"K062","三井物産株式会社",null,"D062",null,null,"A062","しろくま電力株式会社",null,"S62",null,null,"TT62",null,null,"TR62"]
[null,1,null,"H063","ＭＩＲＡＲＴＨホールディングス株式会社",null,null,null,null,"K063","オリックス株式会社",null,"D063",null,null,"A063","ミツウロコグリーンエネルギー株式会社",null,"S63",null,null,"TT63",null,null,"TR63"]
[null,null,null,"H064","株式会社レスター",null,null,null,null,"K064","株式会社エネサンス関東",null,"D064",null,null,"A064","欠番",null,"S64",null,null,"TT64",null,null,"TR64"]
[null,null,null,"H065","欠番",null,null,null,null,"K065","株式会社ＵＰＤＡＴＥＲ",null,"D065",null,null,"A065","オムロンソーシアルソリューションズ株式会社",null,"S65",null,null,"TT65",null,null,"TR65"]
[null,null,null,"H066","徳島県企業局",null,null,null,null,"K066","シン・エナジー株式会社",null,"D066",null,null,"A066","Ｓｅｃｏｎｄ　Ｆｏｕｎｄａｔｉｏｎ　Ｊａｐａｎ合同会社",null,"S66",null,null,"TT66",null,null,"TR66"]
[null,null,null,"H067","欠番",null,null,null,null,"K067","欠番",null,"D067",null,null,"A067","日鉄エンジニアリング株式会社",null,"S67",null,null,"TT67",null,null,"TR67"]
[null,null,null,"H068","高知県公営企業局",null,null,null,null,"K068","株式会社コンシェルジュ",null,"D068",null,null,"A068","京セラ株式会社",null,"S68",null,null,"TT68",null,null,"TR68"]
[null,null,null,"H069","王子マテリア株式会社",null,null,null,null,"K069","欠番",null,"D069",null,null,"A069","出光興産株式会社",null,"S69",null,null,"TT69",null,null,"TR69"]
[null,null,null,"H070","沖縄新エネ開発株式会社",null,null,null,null,"K070","株式会社アイ・グリッド・ソリューションズ",null,"D070",null,null,"A070","オムロンフィールドエンジニアリング株式会社",null,"S70",null,null,"TT70",null,null,"TR70"]
[null,null,null,"H071","株式会社福岡クリーンエナジー",null,null,null,null,"K071","サミットエナジー株式会社",null,"D071",null,null,"A071","株式会社大崎クリエーション",null,"S71",null,null,"TT71",null,null,"TR71"]
[null,null,null,"H072","株式会社関電工",null,null,null,null,"K072","リコージャパン株式会社",null,"D072",null,null,"A072","株式会社ＩＱｇ",null,"S72",null,null,"TT72",null,null,"TR72"]
[null,null,null,"H073","丸住製紙株式会社",null,null,null,null,"K073","株式会社エネルギア・ソリューション・アンド・サービス",null,"D073",null,null,"A073","ＥＮＥＯＳ　Ｐｏｗｅｒ株式会社",null,"S73",null,null,"TT73",null,null,"TR73"]
[null,null,null,"H074","長野県企業局",null,null,null,null,"K074","東京ガス株式会社",null,"D074",null,null,"A074","ａｕエネルギー＆ライフ株式会社",null,"S74",null,null,"TT74",null,null,"TR74"]
[null,null,null,"H075","白馬ウインドファーム株式会社",null,null,null,null,"K075","テス・エンジニアリング株式会社",null,"D075",null,null,"A075","株式会社ＪＥＲＡ　Ｃｒｏｓｓ",null,"S75",null,null,"TT75",null,null,"TR75"]
[null,null,null,"H076","白滝山ウインドファーム株式会社",null,null,null,null,"K076","青梅ガス株式会社",null,"D076",null,null,"A076","株式会社パワーエックス",null,"S76",null,null,"TT76",null,null,"TR76"]
[null,null,null,"H077","合同会社バイテック・漁火館滝沢市メガソーラー",null,null,null,null,"K077","株式会社イーネットワークシステムズ",null,"D077",null,null,"A077","ＮＥｘＴーｅ　Ｓｏｌｕｔｉｏｎｓ株式会社",null,"S77",null,null,"TT77",null,null,"TR77"]
[null,null,null,"H078","鈴川エネルギーセンター株式会社",null,null,null,null,"K078","株式会社エネアーク関東",null,"D078",null,null,"A078","株式会社Ｓｕｓｔｅｃｈ",null,"S78",null,null,"TT78",null,null,"TR78"]
[null,null,null,"H079","カナデビア株式会社",null,null,null,null,"K079","株式会社東急パワーサプライ",null,"D079",null,null,"A079","株式会社Ｑｖｏｕ",null,"S79",null,null,"TT79",null,null,"TR79"]
[null,null,null,"H080","江津ウィンドパワー株式会社",null,null,null,null,"K080","王子・伊藤忠エネクス電力販売株式会社",null,"D080",null,null,"A080","ゼロワットパワー株式会社",null,"S80",null,null,"TT80",null,null,"TR80"]
[null,null,null,"H081","株式会社野田バイオパワーＪＰ",null,null,null,null,"K081","伊藤忠商事株式会社",null,"D081",null,null,"A081","株式会社ヒュージモリ商事",null,"S81",null,null,"TT81",null,null,"TR81"]
[null,null,null,"H082","株式会社南九",null,null,null,null,"K082","株式会社エコスタイル",null,"D082",null,null,"A082","株式会社東急パワーサプライ",null,"S82",null,null,"TT82",null,null,"TR82"]
[null,null,null,"H083","株式会社ＳＪソーラーつくば",null,null,null,null,"K083","入間ガス株式会社",null,"D083",null,null,"A083","エンジー・エナジー・マーケティング・ジャパン株式会社",null,"S83",null,null,"TT83",null,null,"TR83"]
[null,null,null,"H084","中国木材株式会社",null,null,null,null,"K084","テプコカスタマーサービス株式会社",null,"D084",null,null,"A084","株式会社グリーンパワー大東",null,"S84",null,null,"TT84",null,null,"TR84"]
[null,null,null,"H085","北越コーポレーション株式会社",null,null,null,null,"K085","株式会社とんでんホールディングス",null,"D085",null,null,"A085","株式会社Ｌｏｏｏｐ",null,"S85",null,null,"TT85",null,null,"TR85"]
[null,null,null,"H086","ほくでんエコエナジー株式会社",null,null,null,null,"K086","日鉄エンジニアリング株式会社",null,"D086",null,null,"A086","Ｏｐｅｎ　Ｑｕａｎｔ株式会社",null,"S86",null,null,"TT86",null,null,"TR86"]
[null,null,null,"H087","欠番",null,null,null,null,"K087","ａｕエネルギー＆ライフ株式会社",null,"D087",null,null,"A087","株式会社ＦＰＳ",null,"S87",null,null,"TT87",null,null,"TR87"]
[null,null,null,"H088","大分県企業局",null,null,null,null,"K088","欠番",null,"D088",null,null,"A088","株式会社アイ・グリッド・ソリューションズ",null,"S88",null,null,"TT88",null,null,"TR88"]
[null,null,null,"H089","多可町安田郷メガソーラ―発電合同会社",null,null,null,null,"K089","イワタニ関東株式会社",null,"D089",null,null,"A089","エフィシエント株式会社",null,"S89",null,null,"TT89",null,null,"TR89"]
[null,null,null,"H090","長崎ソーラーエナジー合同会社",null,null,null,null,"K090","イワタニ首都圏株式会社",null,"D090",null,null,"A090","株式会社クリーンエナジーコネクト",null,"S90",null,null,"TT90",null,null,"TR90"]
[null,null,null,"H091","ＪＦＥソーラーパワー株式会社",null,null,null,null,"K091","サーラｅエナジー株式会社",null,"D091",null,null,"A091","東京センチュリー株式会社",null,"S91",null,null,"TT91",null,null,"TR91"]
[null,null,null,"H092","株式会社カネカ",null,null,null,null,"K092","株式会社地球クラブ",null,"D092",null,null,"A092","エクセルギー・パワー・システムズ株式会社",null,"S92",null,null,"TT92",null,null,"TR92"]
[null,null,null,"H093","親和開発株式会社",null,null,null,null,"K093","株式会社エコア",null,"D093",null,null,"A093","Tensor　Energy株式会社",null,"S93",null,null,"TT93",null,null,"TR93"]
[null,null,null,"H094","株式会社エナリス",null,null,null,null,"K094","西部瓦斯株式会社",null,"D094",null,null,"A094","欠番",null,"S94",null,null,"TT94",null,null,"TR94"]
[null,null,null,"H095","ＪＦＥスチール株式会社",null,null,null,null,"K095","東邦ガス株式会社",null,"D095",null,null,"A095","コスモエコパワー株式会社",null,"S95",null,null,"TT95",null,null,"TR95"]
[null,null,null,"H096","酒田共同火力発電株式会社",null,null,null,null,"K096","シナネン株式会社",null,"D096",null,null,"A096","株式会社リエネ",null,"S96",null,null,"TT96",null,null,"TR96"]
[null,null,null,"H097","岩手県企業局",null,null,null,null,"K097","欠番",null,"D097",null,null,"A097","欠番",null,"S97",null,null,"TT97",null,null,"TR97"]
[null,null,null,"H098","新潟県企業局",null,null,null,null,"K098","カワサキグリーンエナジー株式会社",null,"D098",null,null,"A098","ヒラソル・エナジー株式会社",null,"S98",null,null,"TT98",null,null,"TR98"]
[null,null,null,"H099","仙台市",null,null,null,null,"K099","大一ガス株式会社",null,"D099",null,null,"A099","フローティング・ウィンド・アグリゲーション株式会社",null,"S99",null,null,"TT99",null,null,"TR99"]
[null,null,null,"H100","愛媛県公営企業管理局",null,null,null,null,"K100","株式会社リミックスポイント",null,"D100",null,null,"A100","ENEXIA合同会社",null,"S100",null,null,"TT100",null,null,"TR100"]
[null,null,null,"H101","株式会社グリーンパワー浜田",null,null,null,null,"K101","大阪いずみ市民生活協同組合",null,"D101",null,null,"A101","TAOKE　ENERGY株式会社"]
[null,null,null,"H102","三菱重工業株式会社",null,null,null,null,"K102","株式会社中海テレビ放送",null,"D102",null,null,"A102","株式会社永輝商事"]
[null,null,null,"H103","欠番",null,null,null,null,"K103","パシフィックパワー株式会社",null,"D103",null,null,"A103","株式会社グリーングロース"]
[null,null,null,"H104","ユナイテッドリニューアブルエナジー株式会社",null,null,null,null,"K104","欠番",null,"D104",null,null,"A104","ローカルエナジー株式会社"]
[null,null,null,"H105","合同会社茂原ソーラーパーク",null,null,null,null,"K105","欠番",null,"D105",null,null,"A105","欠番"]
[null,null,null,"H106","欠番",null,null,null,null,"K106","欠番",null,"D106",null,null,"A106","株式会社リ・パワー"]
[null,null,null,"H107","紋別バイオマス発電株式会社",null,null,null,null,"K107","欠番",null,"D107",null,null,"A107","パワープール株式会社"]
[null,null,null,"H108","市原グリーン電力株式会社",null,null,null,null,"K108","株式会社ジェイコムウエスト",null,"D108",null,null,"A108","ＢＰエナジージャパン株式会社"]
[null,null,null,"H109","プロロジス・グリーン有限会社",null,null,null,null,"K109","欠番",null,"D109",null,null,"A109","株式会社Ｎｉｋａ商事"]
[null,null,null,"H110","欠番",null,null,null,null,"K110","欠番",null,"D110",null,null,"A110","燈・アンド・カンパニー株式会社"]
[null,null,null,"H111","合同会社新潟島見ソーラーパーク",null,null,null,null,"K111","欠番",null,"D111",null,null,"A111","株式会社エネルギーポイント"]
[null,null,null,"H112","九州共同発電株式会社",null,null,null,null,"K112","欠番",null,"D112",null,null,"A112","株式会社ＲＵＴＩＬＥＡ"]
[null,null,null,"H113","日本軽金属株式会社",null,null,null,null,"K113","株式会社ジェイコム埼玉・東日本",null,"D113",null,null,"A113","株式会社ユーラスエナジーホールディングス"]
[null,null,null,"H114","欠番",null,null,null,null,"K114","株式会社ジェイコム札幌",null,"D114",null,null,"A114","Ｂｌｕｅｆｉｅｌｄ　Ｅｎｅｒｇｙ株式会社"]
[null,null,null,"H115","川崎バイオマス発電株式会社",null,null,null,null,"K115","株式会社ジェイコム湘南・神奈川",null,"D115",null,null,"A115","ＨｅＬＭ　Ａｇｇｒｅｇａｔｉｏｎ株式会社"]
[null,null,null,"H116","常磐共同火力株式会社",null,null,null,null,"K116","欠番",null,"D116",null,null,"A116","Ｄａｉｇａｓエナジー株式会社"]
[null,null,null,"H117","合同会社DMM.com",null,null,null,null,"K117","株式会社ジェイコム千葉",null,"D117",null,null,"A117","伊藤忠エネクス株式会社"]
[null,null,null,"H118","堺市",null,null,null,null,"K118","欠番",null,"D118",null,null,"A118","株式会社ＲＥフォワード"]
[null,null,null,"H119","大阪瓦斯株式会社",null,null,null,null,"K119","欠番",null,"D119",null,null,"A119","株式会社リミックスポイント"]
[null,null,null,"H120","株式会社ヨンコーソーラー",null,null,null,null,"K120","株式会社ジェイコム東京",null,"D120",null,null,"A120","グローシップ株式会社"]
[null,null,null,"H121","相馬共同火力発電株式会社",null,null,null,null,"K121","欠番",null,"D121",null,null,"A121","北海道再エネアグリゲーション株式会社"]
[null,null,null,"H122","福岡都市圏南部環境事業組合",null,null,null,null,"K122","欠番",null,"D122",null,null,"A122","株式会社Ｓａｓｓｏｒ"]
[null,null,null,"H123","株式会社チョープロ",null,null,null,null,"K123","欠番",null,"D123",null,null,"A123","ＮＵＶＶＥ　ＪＡＰＡＮ株式会社"]
[null,null,null,"H124","エネ・シードひびき株式会社",null,null,null,null,"K124","欠番",null,"D124",null,null,"A124","九電みらいエナジー株式会社"]
[null,null,null,"H125","欠番",null,null,null,null,"K125","欠番",null,"D125",null,null,"A125","石油資源開発株式会社"]
[null,null,null,"H126","ＥＮＥＯＳ株式会社",null,null,null,null,"K126","欠番",null,"D126",null,null,"A126","株式会社オーラパワー"]
[null,null,null,"H127","欠番",null,null,null,null,"K127","欠番",null,"D127",null,null,"A127","株式会社ふるなび電力"]
[null,null,null,"H128","欠番",null,null,null,null,"K128","欠番",null,"D128",null,null,"A128","エレビスタ株式会社"]
[null,null,null,"H129","御船ホールディングス株式会社",null,null,null,null,"K129","土浦ケーブルテレビ株式会社",null,"D129",null,null,"A129","株式会社操電"]
[null,null,null,"H130","幌延風力発電株式会社",null,null,null,null,"K130","鹿児島電力株式会社",null,"D130",null,null,"A130","株式会社スマートパワーシステム"]
[null,null,null,"H131","三交不動産株式会社",null,null,null,null,"K131","太陽ガス株式会社",null,"D131",null,null,"A131","株式会社クローバー・テクノロジーズ"]
[null,null,null,"H132","東京発電株式会社",null,null,null,null,"K132","アーバンエナジー株式会社",null,"D132",null,null,"A132","株式会社エコスタイル"]
[null,null,null,"H133","株式会社エフビット横須賀パワー",null,null,null,null,"K133","パワーネクスト株式会社",null,"D133",null,null,"A133","東京リズエナジ株式会社"]
[null,null,null,"H134","有限責任事業組合テックエナジー",null,null,null,null,"K134","合同会社北上新電力",null,"D134",null,null,"A134","鈴与商事株式会社"]
[null,null,null,"H135","王子グリーンエナジー日南株式会社",null,null,null,null,"K135","欠番",null,"D135",null,null,"A135","ユニバーサルエコロジー株式会社"]
[null,null,null,"H136","王子グリーンエナジー江別株式会社",null,null,null,null,"K136","株式会社タクマエナジー",null,"D136",null,null,"A136","株式会社ファミリーネット・ジャパン"]
[null,null,null,"H137","サミット酒田パワー株式会社",null,null,null,null,"K137","欠番",null,"D137",null,null,"A137","株式会社GREEN　ACTION"]
[null,null,null,"H138","株式会社神戸物産",null,null,null,null,"K138","水戸電力株式会社",null,"D138",null,null,"A138","テプコカスタマーサービス株式会社"]
[null,null,null,"H139","合同会社グリーンパワー富津",null,null,null,null,"K139","欠番",null,"D139",null,null,"A139","一般社団法人北広島町地域エネルギー会社"]
[null,null,null,"H140","合同会社大月ウィンドパワー",null,null,null,null,"K140","丸紅新電力株式会社",null,"D140",null,null,"A140"]
[null,null,null,"H141","三崎ウィンド・パワー株式会社",null,null,null,null,"K141","欠番",null,"D141",null,null,"A141"]
[null,null,null,"H142","ジャパンメガソーラー合同会社",null,null,null,null,"K142","欠番",null,"D142",null,null,"A142"]
[null,null,null,"H143","山梨県企業局",null,null,null,null,"K143","奈良電力株式会社",null,"D143",null,null,"A143"]
[null,null,null,"H144","黒部川電力株式会社",null,null,null,null,"K144","カナデビア株式会社",null,"D144",null,null,"A144"]
[null,null,null,"H145","ＪＮＣ株式会社",null,null,null,null,"K145","大東ガス株式会社",null,"D145",null,null,"A145"]
[null,null,null,"H146","株式会社エコパワーＪＰ",null,null,null,null,"K146","パナソニックオペレーショナルエクセレンス株式会社",null,"D146",null,null,"A146"]
[null,null,null,"H147","王子製紙株式会社",null,null,null,null,"K147","アストモスエネルギー株式会社",null,"D147",null,null,"A147"]
[null,null,null,"H148","株式会社共栄エナジー",null,null,null,null,"K148","株式会社関電エネルギーソリューション",null,"D148",null,null,"A148"]
[null,null,null,"H149","神奈川電力株式会社",null,null,null,null,"K149","マッコーリーエナジージャパン株式会社",null,"D149",null,null,"A149"]
[null,null,null,"H150","ユーエスパワー株式会社",null,null,null,null,"K150","ＭＣリテールエナジー株式会社",null,"D150",null,null,"A150"]
[null,null,null,"H151","合同会社ＢＨ志生木",null,null,null,null,"K151","株式会社北九州パワー",null,"D151",null,null,"A151"]
[null,null,null,"H152","株式会社サニックスエナジー",null,null,null,null,"K152","武州瓦斯株式会社",null,"D152",null,null,"A152"]
[null,null,null,"H153","株式会社レゾナック",null,null,null,null,"K153","リニューアブル・ジャパン株式会社",null,"D153",null,null,"A153"]
[null,null,null,"H154","山口県企業局",null,null,null,null,"K154","大垣ガス株式会社",null,"D154",null,null,"A154"]
[null,null,null,"H155","サミットウインドパワー株式会社",null,null,null,null,"K155","株式会社藤田商店",null,"D155",null,null,"A155"]
[null,null,null,"H156","グリーンパワーつがる合同会社",null,null,null,null,"K156","株式会社ケーブルネット下関",null,"D156",null,null,"A156"]
[null,null,null,"H157","北海道パワーエンジニアリング株式会社",null,null,null,null,"K157","株式会社ジェイコム九州",null,"D157",null,null,"A157"]
[null,null,null,"H158","男鹿風力発電株式会社",null,null,null,null,"K158","欠番",null,"D158",null,null,"A158"]
[null,null,null,"H159","市原パワー株式会社",null,null,null,null,"K159","株式会社グローバルエンジニアリング",null,"D159",null,null,"A159"]
[null,null,null,"H160","泉北天然ガス発電株式会社",null,null,null,null,"K160","九州エナジー株式会社",null,"D160",null,null,"A160"]
[null,null,null,"H161","鳥取県",null,null,null,null,"K161","株式会社トヨタエナジーソリューションズ",null,"D161",null,null,"A161"]
[null,null,null,"H162","富山地区広域圏事務組合",null,null,null,null,"K162","欠番",null,"D162",null,null,"A162"]
[null,null,null,"H163","株式会社シーテック",null,null,null,null,"K163","株式会社エナリス・パワー・マーケティング",null,"D163",null,null,"A163"]
[null,null,null,"H164","株式会社シグマパワー有明",null,null,null,null,"K164","歌舞伎エナジー株式会社",null,"D164",null,null,"A164"]
[null,null,null,"H165","コスモエコパワー株式会社",null,null,null,null,"K165","みやまスマートエネルギー株式会社",null,"D165",null,null,"A165"]
[null,null,null,"H166","神奈川県企業庁",null,null,null,null,"K166","エフィシエント株式会社",null,"D166",null,null,"A166"]
[null,null,null,"H167","コスモ石油株式会社",null,null,null,null,"K167","株式会社生活クラブエナジー",null,"D167",null,null,"A167"]
[null,null,null,"H168","北陸パワーステーション株式会社",null,null,null,null,"K168","生活協同組合コープこうべ",null,"D168",null,null,"A168"]
[null,null,null,"H169","九電みらいエナジー株式会社",null,null,null,null,"K169","株式会社シーエナジー",null,"D169",null,null,"A169"]
[null,null,null,"H170","静岡ガス＆パワー株式会社",null,null,null,null,"K170","角栄ガス株式会社",null,"D170",null,null,"A170"]
[null,null,null,"H171","島根県企業局",null,null,null,null,"K171","京葉瓦斯株式会社",null,"D171",null,null,"A171"]
[null,null,null,"H172","熊本県企業局",null,null,null,null,"K172","ＴＯＰＰＡＮホールディングス株式会社",null,"D172",null,null,"A172"]
[null,null,null,"H173","欠番",null,null,null,null,"K173","伊勢崎ガス株式会社",null,"D173",null,null,"A173"]
[null,null,null,"H174","欠番",null,null,null,null,"K174","キヤノンマーケティングジャパン株式会社",null,"D174",null,null,"A174"]
[null,null,null,"H175","株式会社淡路貴船太陽光発電所",null,null,null,null,"K175","株式会社とっとり市民電力",null,"D175",null,null,"A175"]
[null,null,null,"H176","株式会社トーエネック",null,null,null,null,"K176","欠番",null,"D176",null,null,"A176"]
[null,null,null,"H177","山形県企業局",null,null,null,null,"K177","佐野瓦斯株式会社",null,"D177",null,null,"A177"]
[null,null,null,"H178","欠番",null,null,null,null,"K178","桐生瓦斯株式会社",null,"D178",null,null,"A178"]
[null,null,null,"H179","株式会社青山高原ウインドファーム",null,null,null,null,"K179","森の電力株式会社",null,"D179",null,null,"A179"]
[null,null,null,"H180","楢葉新電力合同会社",null,null,null,null,"K180","大和ハウス工業株式会社",null,"D180",null,null,"A180"]
[null,null,null,"H181","合同会社大津ソーラー",null,null,null,null,"K181","欠番",null,"D181",null,null,"A181"]
[null,null,null,"H182","鷲尾岳風力発電株式会社",null,null,null,null,"K182","ＨＴＢエナジー株式会社",null,"D182",null,null,"A182"]
[null,null,null,"H183","大阪広域環境施設組合",null,null,null,null,"K183","株式会社アシストワンエナジー",null,"D183",null,null,"A183"]
[null,null,null,"H184","欠番",null,null,null,null,"K184","欠番",null,"D184",null,null,"A184"]
[null,null,null,"H185","東京二十三区清掃一部事務組合",null,null,null,null,"K185","株式会社フソウ・エナジー",null,"D185",null,null,"A185"]
[null,null,null,"H186","日本太陽光発電２０１３合同会社",null,null,null,null,"K186","株式会社日本エコシステム",null,"D186",null,null,"A186"]
[null,null,null,"H187","日本太陽光発電２０１４合同会社",null,null,null,null,"K187","湘南電力株式会社",null,"D187",null,null,"A187"]
[null,null,null,"H188","合同会社クリスタル・クリア・ソーラー",null,null,null,null,"K188","大東建託パートナーズ株式会社",null,"D188",null,null,"A188"]
[null,null,null,"H189","欠番",null,null,null,null,"K189","Ｊａｐａｎ電力株式会社",null,"D189",null,null,"A189"]
[null,null,null,"H190","石狩バイオエナジー合同会社",null,null,null,null,"K190","電源開発株式会社",null,"D190",null,null,"A190"]
[null,null,null,"H191","日本再生可能エネルギー株式会社",null,null,null,null,"K191","鈴与商事株式会社",null,"D191",null,null,"A191"]
[null,null,null,"H192","株式会社広川明神山風力発電所",null,null,null,null,"K192","欠番",null,"D192",null,null,"A192"]
[null,null,null,"H193","株式会社葉山風力発電所",null,null,null,null,"K193","欠番",null,"D193",null,null,"A193"]
[null,null,null,"H194","肥前風力発電株式会社",null,null,null,null,"K194","ワタミエナジー株式会社",null,"D194",null,null,"A194"]
[null,null,null,"H195","エルエムサンパワー株式会社",null,null,null,null,"K195","株式会社パルシステム電力",null,"D195",null,null,"A195"]
[null,null,null,"H196","日本海発電株式会社",null,null,null,null,"K196","ＳＢパワー株式会社",null,"D196",null,null,"A196"]
[null,null,null,"H197","シグマパワージャネックス株式会社",null,null,null,null,"K197","ＮＦパワーサービス株式会社",null,"D197",null,null,"A197"]
[null,null,null,"H198","中部自動車販売株式会社",null,null,null,null,"K198","ひおき地域エネルギー株式会社",null,"D198",null,null,"A198"]
[null,null,null,"H199","合同会社しまね森林発電",null,null,null,null,"K199","和歌山電力株式会社",null,"D199",null,null,"A199"]
[null,null,null,"H200","吉野石膏株式会社",null,null,null,null,"K200","日本瓦斯株式会社",null,"D200",null,null,"A200"]
[null,null,null,"H201","京セラＴＣＬソーラー合同会社",null,null,null,null,"K201","株式会社トドック電力",null,"D201",null,null,"A201"]
[null,null,null,"H202","大分日吉原ソーラー株式会社",null,null,null,null,"K202","ＭＢエナジー株式会社",null,"D202",null,null,"A202"]
[null,null,null,"H203","壬生ソーラーウェイ合同会社",null,null,null,null,"K203","欠番",null,"D203",null,null,"A203"]
[null,null,null,"H204","多治見ソーラーウェイ合同会社",null,null,null,null,"K204","欠番",null,"D204",null,null,"A204"]
[null,null,null,"H205","名取ソーラーウェイ合同会社",null,null,null,null,"K205","株式会社フォレストパワー",null,"D205",null,null,"A205"]
[null,null,null,"H206","嬬恋ソーラーウェイ合同会社",null,null,null,null,"K206","日高都市ガス株式会社",null,"D206",null,null,"A206"]
[null,null,null,"H207","欠番",null,null,null,null,"K207","株式会社アドバンテック",null,"D207",null,null,"A207"]
[null,null,null,"H208","福岡県企業局",null,null,null,null,"K208","ＺＥパワー株式会社",null,"D208",null,null,"A208"]
[null,null,null,"H209","欠番",null,null,null,null,"K209","ローカルエナジー株式会社",null,"D209",null,null,"A209"]
[null,null,null,"H210","二又風力開発株式会社",null,null,null,null,"K210","エネックス株式会社",null,"D210",null,null,"A210"]
[null,null,null,"H211","長島ウインドヒル株式会社",null,null,null,null,"K211","バンプージャパン株式会社",null,"D211",null,null,"A211"]
[null,null,null,"H212","ヤマネ鉄工建設株式会社",null,null,null,null,"K212","欠番",null,"D212",null,null,"A212"]
[null,null,null,"H213","日本製紙株式会社",null,null,null,null,"K213","株式会社レクスポート",null,"D213",null,null,"A213"]
[null,null,null,"H214","株式会社阪神住建",null,null,null,null,"K214","なでしこ電力株式会社",null,"D214",null,null,"A214"]
[null,null,null,"H215","株式会社扇島パワー",null,null,null,null,"K215","欠番",null,"D215",null,null,"A215"]
[null,null,null,"H216","欠番",null,null,null,null,"K216","日田グリーン電力株式会社",null,"D216",null,null,"A216"]
[null,null,null,"H217","欠番",null,null,null,null,"K217","欠番",null,"D217",null,null,"A217"]
[null,null,null,"H218","株式会社関電エネルギーソリューション",null,null,null,null,"K218","欠番",null,"D218",null,null,"A218"]
[null,null,null,"H219","いわぬま臨空メガソーラー株式会社",null,null,null,null,"K219","埼玉ガス株式会社",null,"D219",null,null,"A219"]
[null,null,null,"H220","株式会社京浜バイオマスパワー",null,null,null,null,"K220","宮崎パワーライン株式会社",null,"D220",null,null,"A220"]
[null,null,null,"H221","欠番",null,null,null,null,"K221","株式会社パワー・オプティマイザー",null,"D221",null,null,"A221"]
[null,null,null,"H222","宮崎県企業局",null,null,null,null,"K222","株式会社エネルギー・オプティマイザー",null,"D222",null,null,"A222"]
[null,null,null,"H223","やまとソーラープラント株式会社",null,null,null,null,"K223","株式会社Ｕ－ＰＯＷＥＲ",null,"D223",null,null,"A223"]
[null,null,null,"H224","欠番",null,null,null,null,"K224","株式会社ＴＴＳパワー",null,"D224",null,null,"A224"]
[null,null,null,"H225","鹿島共同火力株式会社",null,null,null,null,"K225","株式会社パネイル",null,"D225",null,null,"A225"]
[null,null,null,"H226","糸魚川発電株式会社",null,null,null,null,"K226","株式会社岩手ウッドパワー",null,"D226",null,null,"A226"]
[null,null,null,"H227","ＩＰ福島小野町ソーラー発電合同会社",null,null,null,null,"K227","里山パワーワークス株式会社",null,"D227",null,null,"A227"]
[null,null,null,"H228","静岡市",null,null,null,null,"K228","株式会社中之条パワー",null,"D228",null,null,"A228"]
[null,null,null,"H229","札幌市（環境局）",null,null,null,null,"K229","欠番",null,"D229",null,null,"A229"]
[null,null,null,"H230","京都市",null,null,null,null,"K230","日産トレーデイング株式会社",null,"D230",null,null,"A230"]
[null,null,null,"H231","ソーラーパワー南相馬・鹿島株式会社",null,null,null,null,"K231","株式会社エネウィル",null,"D231",null,null,"A231"]
[null,null,null,"H232","日本風力開発株式会社",null,null,null,null,"K232","Next　Power株式会社",null,"D232",null,null,"A232"]
[null,null,null,"H233","木曽岬メガソーラ―株式会社",null,null,null,null,"K233","伊藤忠エネクスホームライフ株式会社",null,"D233",null,null,"A233"]
[null,null,null,"H234","ＯＣＥ芦北メガソーラー株式会社",null,null,null,null,"K234","欠番",null,"D234",null,null,"A234"]
[null,null,null,"H235","東野崎ソーラーエナジー合同会社",null,null,null,null,"K235","東芝エネルギーシステムズ株式会社",null,"D235",null,null,"A235"]
[null,null,null,"H236","ＵＢＥ株式会社",null,null,null,null,"K236","グリーナ株式会社",null,"D236",null,null,"A236"]
[null,null,null,"H237","欠番",null,null,null,null,"K237","はりま電力株式会社",null,"D237",null,null,"A237"]
[null,null,null,"H238","兵庫県企業庁",null,null,null,null,"K238","株式会社浜松新電力",null,"D238",null,null,"A238"]
[null,null,null,"H239","栃木県企業局",null,null,null,null,"K239","ゼロワットパワー株式会社",null,"D239",null,null,"A239"]
[null,null,null,"H240","欠番",null,null,null,null,"K240","アストマックス株式会社",null,"D240",null,null,"A240"]
[null,null,null,"H241","イーレックスニューエナジー株式会社",null,null,null,null,"K241","株式会社やまがた新電力",null,"D241",null,null,"A241"]
[null,null,null,"H242","北海道企業局",null,null,null,null,"K242","一般社団法人東松島みらいとし機構",null,"D242",null,null,"A242"]
[null,null,null,"H243","欠番",null,null,null,null,"K243","欠番",null,"D243",null,null,"A243"]
[null,null,null,"H244","豊中市伊丹市クリーンランド",null,null,null,null,"K244","株式会社グリーンパワー大東",null,"D244",null,null,"A244"]
[null,null,null,"H245","株式会社エフオン豊後大野",null,null,null,null,"K245","欠番",null,"D245",null,null,"A245"]
[null,null,null,"H246","株式会社エフオン日田",null,null,null,null,"K246","欠番",null,"D246",null,null,"A246"]
[null,null,null,"H247","株式会社エフオン白河",null,null,null,null,"K247","御所野縄文電力株式会社",null,"D247",null,null,"A247"]
[null,null,null,"H248","株式会社大林クリーンエナジー",null,null,null,null,"K248","株式会社カーボンニュートラル",null,"D248",null,null,"A248"]
[null,null,null,"H249","株式会社大林ソーラーパワー",null,null,null,null,"K249","宮古新電力株式会社",null,"D249",null,null,"A249"]
[null,null,null,"H250","ＳＦソーラーパワー株式会社",null,null,null,null,"K250","長崎地域電力株式会社",null,"D250",null,null,"A250"]
[null,null,null,"H251","ＯＲソーラー・エイト合同会社",null,null,null,null,"K251","株式会社エネアーク関西",null,"D251",null,null,"A251"]
[null,null,null,"H252","那須烏山上川井ソーラー株式会社",null,null,null,null,"K252","欠番",null,"D252",null,null,"A252"]
[null,null,null,"H253","合同会社レナトス相馬ソーラーパーク",null,null,null,null,"K253","近畿電力株式会社",null,"D253",null,null,"A253"]
[null,null,null,"H254","Ｋクリーンエナジー奈良株式会社",null,null,null,null,"K254","Ｂｏｏｏｓｔ株式会社",null,"D254",null,null,"A254"]
[null,null,null,"H255","欠番",null,null,null,null,"K255","新電力おおいた株式会社",null,"D255",null,null,"A255"]
[null,null,null,"H256","Ｋクリーンエナジー株式会社",null,null,null,null,"K256","株式会社日本セレモニー",null,"D256",null,null,"A256"]
[null,null,null,"H257","ＯＫＹソーラー大牟田株式会社",null,null,null,null,"K257","欠番",null,"D257",null,null,"A257"]
[null,null,null,"H258","ＯＲ更別・十勝メガソーラースピードウェイ合同会社",null,null,null,null,"K258","株式会社池見石油店",null,"D258",null,null,"A258"]
[null,null,null,"H259","新潟四ツ郷屋ＯＲメガソーラー株式会社",null,null,null,null,"K259","欠番",null,"D259",null,null,"A259"]
[null,null,null,"H260","ＯＲソーラー・トゥエルブ合同会社",null,null,null,null,"K260","芝浦電力株式会社",null,"D260",null,null,"A260"]
[null,null,null,"H261","ＯＲソーラー・サーティーン合同会社",null,null,null,null,"K261","本田技研工業株式会社",null,"D261",null,null,"A261"]
[null,null,null,"H262","合同会社苫小牧ソーラーエナジー",null,null,null,null,"K262","エコエンジニアリング株式会社",null,"D262",null,null,"A262"]
[null,null,null,"H263","ＯＲソーラー・スリー合同会社",null,null,null,null,"K263","株式会社地域創生ホールディングス",null,"D263",null,null,"A263"]
[null,null,null,"H264","ＯＲソーラー株式会社",null,null,null,null,"K264","スズカ電工株式会社",null,"D264",null,null,"A264"]
[null,null,null,"H265","合同会社ＯＲ山口美祢ソーラー発電所",null,null,null,null,"K265","欠番",null,"D265",null,null,"A265"]
[null,null,null,"H266","能登コミュニティウインドパワー株式会社",null,null,null,null,"K266","株式会社エーコープサービス",null,"D266",null,null,"A266"]
[null,null,null,"H267","株式会社エムウインズ八竜",null,null,null,null,"K267","サンリン株式会社",null,"D267",null,null,"A267"]
[null,null,null,"H268","東京都交通局",null,null,null,null,"K268","欠番",null,"D268",null,null,"A268"]
[null,null,null,"H269","三峰川電力株式会社",null,null,null,null,"K269","山陰エレキ・アライアンス株式会社",null,"D269",null,null,"A269"]
[null,null,null,"H270","欠番",null,null,null,null,"K270","株式会社ジョヴィ",null,"D270",null,null,"A270"]
[null,null,null,"H271","欠番",null,null,null,null,"K271","ミライフ東日本株式会社",null,"D271",null,null,"A271"]
[null,null,null,"H272","川崎天然ガス発電株式会社",null,null,null,null,"K272","豊通エネルギー株式会社",null,"D272",null,null,"A272"]
[null,null,null,"H273","欠番",null,null,null,null,"K273","株式会社ウッドエナジー",null,"D273",null,null,"A273"]
[null,null,null,"H274","株式会社コベルコパワー神戸",null,null,null,null,"K274","山陰酸素工業株式会社",null,"D274",null,null,"A274"]
[null,null,null,"H275","ミツウロコグリーンエネルギー株式会社",null,null,null,null,"K275","武陽ガス株式会社",null,"D275",null,null,"A275"]
[null,null,null,"H276","株式会社的山大島風力発電所",null,null,null,null,"K276","常石商事株式会社",null,"D276",null,null,"A276"]
[null,null,null,"H277","大和リース株式会社",null,null,null,null,"K277","北日本エネルギーホールディングス株式会社",null,"D277",null,null,"A277"]
[null,null,null,"H278","ＯＣソーラー株式会社",null,null,null,null,"K278","千葉電力株式会社",null,"D278",null,null,"A278"]
[null,null,null,"H279","ＯＲソーラー・ナイン合同会社",null,null,null,null,"K279","欠番",null,"D279",null,null,"A279"]
[null,null,null,"H280","ＯＲソーラー・セブン株式会社",null,null,null,null,"K280","欠番",null,"D280",null,null,"A280"]
[null,null,null,"H281","欠番",null,null,null,null,"K281","株式会社アースインフィニティ",null,"D281",null,null,"A281"]
[null,null,null,"H282","欠番",null,null,null,null,"K282","欠番",null,"D282",null,null,"A282"]
[null,null,null,"H283","たはらソーラー合同会社",null,null,null,null,"K283","足利ガス株式会社",null,"D283",null,null,"A283"]
[null,null,null,"H284","Ｄａｉｇａｓガスアンドパワーソリューション株式会社",null,null,null,null,"K284","株式会社Ｍｉｓｕｍｉ",null,"D284",null,null,"A284"]
[null,null,null,"H285","イーレックスニューエナジー佐伯株式会社",null,null,null,null,"K285","米子瓦斯株式会社",null,"D285",null,null,"A285"]
[null,null,null,"H286","中山共同発電株式会社",null,null,null,null,"K286","株式会社エルピオ",null,"D286",null,null,"A286"]
[null,null,null,"H287","中山名古屋共同発電株式会社",null,null,null,null,"K287","浜田ガス株式会社",null,"D287",null,null,"A287"]
[null,null,null,"H288","欠番",null,null,null,null,"K288","株式会社アメニティ電力",null,"D288",null,null,"A288"]
[null,null,null,"H289","株式会社エネルギア・ソリューション・アンド・サービス",null,null,null,null,"K289","欠番",null,"D289",null,null,"A289"]
[null,null,null,"H290","株式会社中袖クリーンパワー",null,null,null,null,"K290","欠番",null,"D290",null,null,"A290"]
[null,null,null,"H291","スズキ株式会社",null,null,null,null,"K291","日本サスエネアグリゲーション株式会社",null,"D291",null,null,"A291"]
[null,null,null,"H292","ソーラーパワー西条株式会社",null,null,null,null,"K292","岡田建設株式会社",null,"D292",null,null,"A292"]
[null,null,null,"H293","ソーラーパワー苫小牧株式会社",null,null,null,null,"K293","出雲ガス株式会社",null,"D293",null,null,"A293"]
[null,null,null,"H294","ソーラーパワー北九州株式会社",null,null,null,null,"K294","欠番",null,"D294",null,null,"A294"]
[null,null,null,"H295","株式会社ジェイウインド",null,null,null,null,"K295","一般社団法人グリーンコープでんき",null,"D295",null,null,"A295"]
[null,null,null,"H296","欠番",null,null,null,null,"K296","公益財団法人東京都環境公社",null,"D296",null,null,"A296"]
[null,null,null,"H297","欠番",null,null,null,null,"K297","三井物産プロジェクトソリューション株式会社",null,"D297",null,null,"A297"]
[null,null,null,"H298","欠番",null,null,null,null,"K298","欠番",null,"D298",null,null,"A298"]
[null,null,null,"H299","欠番",null,null,null,null,"K299","欠番",null,"D299",null,null,"A299"]
[null,null,null,"H300","イー・パワー小野株式会社",null,null,null,null,"K300","株式会社ファミリーネット・ジャパン",null,"D300",null,null,"A300"]
[null,null,null,"H301","株式会社コミュニティソーラー",null,null,null,null,"K301","欠番",null,"D301",null,null,"A301"]
[null,null,null,"H302","株式会社北海道ソーラーマネジメント",null,null,null,null,"K302","株式会社アドバリュー",null,"D302",null,null,"A302"]
[null,null,null,"H303","株式会社日本海水",null,null,null,null,"K303","MKステーションズ株式会社",null,"D303",null,null,"A303"]
[null,null,null,"H304","パルテックエナジー株式会社",null,null,null,null,"K304","日本製紙木材株式会社",null,"D304",null,null,"A304"]
[null,null,null,"H305","兵庫パルプ工業株式会社",null,null,null,null,"K305","フラワーペイメント株式会社",null,"D305",null,null,"A305"]
[null,null,null,"H306","日生開発株式会社",null,null,null,null,"K306","株式会社ＪＴＢコミュニケーションデザイン",null,"D306",null,null,"A306"]
[null,null,null,"H307","株式会社ＦＭＳ",null,null,null,null,"K307","奈良総合リサイクルセンター株式会社",null,"D307",null,null,"A307"]
[null,null,null,"H308","欠番",null,null,null,null,"K308","積水化学工業株式会社",null,"D308",null,null,"A308"]
[null,null,null,"H309","株式会社水郷潮来ソーラー",null,null,null,null,"K309","株式会社ユーミー総合研究所",null,"D309",null,null,"A309"]
[null,null,null,"H310","合同会社那須塩原ソーラー",null,null,null,null,"K310","全農エネルギー株式会社",null,"D310",null,null,"A310"]
[null,null,null,"H311","株式会社富津ソーラー",null,null,null,null,"K311","株式会社ハルエネ",null,"D311",null,null,"A311"]
[null,null,null,"H312","ＪＡＭＣソーラーエナジー合同会社",null,null,null,null,"K312","欠番",null,"D312",null,null,"A312"]
[null,null,null,"H313","合同会社福岡川崎町",null,null,null,null,"K313","株式会社リケン工業",null,"D313",null,null,"A313"]
[null,null,null,"H314","日本製紙メガソーラー小松島合同会社",null,null,null,null,"K314","株式会社ビビット",null,"D314",null,null,"A314"]
[null,null,null,"H315","高知ソーラー合同会社",null,null,null,null,"K315","株式会社おおた電力",null,"D315",null,null,"A315"]
[null,null,null,"H316","馬場興産株式会社",null,null,null,null,"K316","センチュリー・エナジー株式会社",null,"D316",null,null,"A316"]
[null,null,null,"H317","欠番",null,null,null,null,"K317","伊藤忠プランテック株式会社",null,"D317",null,null,"A317"]
[null,null,null,"H318","欠番",null,null,null,null,"K318","株式会社オカモト",null,"D318",null,null,"A318"]
[null,null,null,"H319","ＣＳＤソーラー合同会社",null,null,null,null,"K319","アジアバンクホールディングス株式会社",null,"D319",null,null,"A319"]
[null,null,null,"H320","中越パルプ工業株式会社",null,null,null,null,"K320","欠番",null,"D320",null,null,"A320"]
[null,null,null,"H321","株式会社ＬＩＸＩＬ",null,null,null,null,"K321","欠番",null,"D321",null,null,"A321"]
[null,null,null,"H322","上越エネルギーサービス株式会社",null,null,null,null,"K322","欠番",null,"D322",null,null,"A322"]
[null,null,null,"H323","欠番",null,null,null,null,"K323","欠番",null,"D323",null,null,"A323"]
[null,null,null,"H324","防府エネルギーサービス株式会社",null,null,null,null,"K324","欠番",null,"D324",null,null,"A324"]
[null,null,null,"H325","胎内ウインドファーム合同会社",null,null,null,null,"K325","欠番",null,"D325",null,null,"A325"]
[null,null,null,"H326","三菱マテリアル株式会社",null,null,null,null,"K326","株式会社大林クリーンエナジー",null,"D326",null,null,"A326"]
[null,null,null,"H327","株式会社クラフティア",null,null,null,null,"K327","欠番",null,"D327",null,null,"A327"]
[null,null,null,"H328","熊本市",null,null,null,null,"K328","欠番",null,"D328",null,null,"A328"]
[null,null,null,"H329","パシフィコ・エナジー郡上美並合同会社",null,null,null,null,"K329","欠番",null,"D329",null,null,"A329"]
[null,null,null,"H330","合同会社九重ソーラー",null,null,null,null,"K330","香川電力株式会社",null,"D330",null,null,"A330"]
[null,null,null,"H331","エネサーブ株式会社",null,null,null,null,"K331","欠番",null,"D331",null,null,"A331"]
[null,null,null,"H332","株式会社ツジデン",null,null,null,null,"K332","株式会社PinT",null,"D332",null,null,"A332"]
[null,null,null,"H333","佐和田発電所株式会社",null,null,null,null,"K333","欠番",null,"D333",null,null,"A333"]
[null,null,null,"H334","伊方エコ・パーク株式会社",null,null,null,null,"K334","欠番",null,"D334",null,null,"A334"]
[null,null,null,"H335","欠番",null,null,null,null,"K335","欠番",null,"D335",null,null,"A335"]
[null,null,null,"H336","日本製鉄株式会社",null,null,null,null,"K336","株式会社沖縄ガスニューパワー",null,"D336",null,null,"A336"]
[null,null,null,"H337","サニーヘルス株式会社",null,null,null,null,"K337","諏訪瓦斯株式会社",null,"D337",null,null,"A337"]
[null,null,null,"H338","日本風力開発ジョイントファンド株式会社",null,null,null,null,"K338","エッセンシャルエナジー株式会社",null,"D338",null,null,"A338"]
[null,null,null,"H339","掛川風力開発株式会社",null,null,null,null,"K339","欠番",null,"D339",null,null,"A339"]
[null,null,null,"H340","株式会社シーエナジー",null,null,null,null,"K340","株式会社エージーピー",null,"D340",null,null,"A340"]
[null,null,null,"H341","合同会社サンシャインエナジー湧水",null,null,null,null,"K341","神栖パワープラントセールス合同会社",null,"D341",null,null,"A341"]
[null,null,null,"H342","合同会社Ｔ＆Ｍソーラー",null,null,null,null,"K342","株式会社いちき串木野電力",null,"D342",null,null,"A342"]
[null,null,null,"H343","プライムソーラー合同会社",null,null,null,null,"K343","株式会社クローバー・テクノロジーズ",null,"D343",null,null,"A343"]
[null,null,null,"H344","Ｘ－Ｅｌｉｏ　Ｊａｐａｎ株式会社",null,null,null,null,"K344","西武ガス株式会社",null,"D344",null,null,"A344"]
[null,null,null,"H345","山佐株式会社",null,null,null,null,"K345","松本ガス株式会社",null,"D345",null,null,"A345"]
[null,null,null,"H346","山佐産業株式会社",null,null,null,null,"K346","欠番",null,"D346",null,null,"A346"]
[null,null,null,"H347","イビデン株式会社",null,null,null,null,"K347","欠番",null,"D347",null,null,"A347"]
[null,null,null,"H348","欠番",null,null,null,null,"K348","南部だんだんエナジー株式会社",null,"D348",null,null,"A348"]
[null,null,null,"H349","西条小松太陽光発電所共同経営事業組合",null,null,null,null,"K349","株式会社エフエネ",null,"D349",null,null,"A349"]
[null,null,null,"H350","今治造船株式会社",null,null,null,null,"K350","こなんウルトラパワー株式会社",null,"D350",null,null,"A350"]
[null,null,null,"H351","株式会社ケン・コーポレーション",null,null,null,null,"K351","株式会社ＣＨＩＢＡむつざわエナジー",null,"D351",null,null,"A351"]
[null,null,null,"H352","江差グリーンエナジー株式会社",null,null,null,null,"K352","株式会社関西空調",null,"D352",null,null,"A352"]
[null,null,null,"H353","大崎クールジェン株式会社",null,null,null,null,"K353","奥出雲電力株式会社",null,"D353",null,null,"A353"]
[null,null,null,"H354","日本製紙石巻エネルギーセンター株式会社",null,null,null,null,"K354","清水建設株式会社",null,"D354",null,null,"A354"]
[null,null,null,"H355","北栄町",null,null,null,null,"K355","レジル株式会社",null,"D355",null,null,"A355"]
[null,null,null,"H356","パシフィコ・エナジーいわきメガソーラー合同会社",null,null,null,null,"K356","株式会社成田香取エネルギー",null,"D356",null,null,"A356"]
[null,null,null,"H357","パシフィコ・エナジー豊田メガソーラー合同会社",null,null,null,null,"K357","欠番",null,"D357",null,null,"A357"]
[null,null,null,"H358","パシフィコ・エナジー作東合同会社",null,null,null,null,"K358","株式会社エネクスライフサービス",null,"D358",null,null,"A358"]
[null,null,null,"H359","ＳＧＥＴみやこメガソーラー合同会社",null,null,null,null,"K359","株式会社ネットプライスエナジー",null,"D359",null,null,"A359"]
[null,null,null,"H360","ＳＧＥＴ常陸大宮メガソーラー合同会社",null,null,null,null,"K360","三光株式会社",null,"D360",null,null,"A360"]
[null,null,null,"H361","ＳＧＥＴ神栖メガソーラー合同会社",null,null,null,null,"K361","欠番",null,"D361",null,null,"A361"]
[null,null,null,"H362","ＳＧＥＴ栃木メガソーラー合同会社",null,null,null,null,"K362","グローバルソリューションサービス株式会社",null,"D362",null,null,"A362"]
[null,null,null,"H363","ＳＧＥＴ木更津メガソーラー合同会社",null,null,null,null,"K363","欠番",null,"D363",null,null,"A363"]
[null,null,null,"H364","ＳＧＥＴ釧路メガソーラー合同会社",null,null,null,null,"K364","株式会社ＣＷＳ",null,"D364",null,null,"A364"]
[null,null,null,"H365","ＳＧＥＴ栗原メガソーラー合同会社",null,null,null,null,"K365","欠番",null,"D365",null,null,"A365"]
[null,null,null,"H366","ＳＧＥＴ新郷ウインドファーム合同会社",null,null,null,null,"K366","ふくしま新電力株式会社",null,"D366",null,null,"A366"]
[null,null,null,"H367","株式会社エナリスパワー",null,null,null,null,"K367","ティーダッシュ合同会社",null,"D367",null,null,"A367"]
[null,null,null,"H368","欠番",null,null,null,null,"K368","ネイチャーエナジー小国株式会社",null,"D368",null,null,"A368"]
[null,null,null,"H369","株式会社キナン",null,null,null,null,"K369","リエスパワーネクスト株式会社",null,"D369",null,null,"A369"]
[null,null,null,"H370","群馬県企業局（発電事業）",null,null,null,null,"K370","京都生活協同組合",null,"D370",null,null,"A370"]
[null,null,null,"H371","大阪府",null,null,null,null,"K371","山本商事株式会社",null,"D371",null,null,"A371"]
[null,null,null,"H372","欠番",null,null,null,null,"K372","エネルギーパワー株式会社",null,"D372",null,null,"A372"]
[null,null,null,"H373","グッドマンジャパン株式会社",null,null,null,null,"K373","株式会社グリムスパワー",null,"D373",null,null,"A373"]
[null,null,null,"H374","東亜石油株式会社",null,null,null,null,"K374","欠番",null,"D374",null,null,"A374"]
[null,null,null,"H375","合同会社Ｄ２Ｋ雫石ソーラー",null,null,null,null,"K375","株式会社日本グリーンエネルギーアグリゲート",null,"D375",null,null,"A375"]
[null,null,null,"H376","楽天信託株式会社",null,null,null,null,"K376","欠番",null,"D376",null,null,"A376"]
[null,null,null,"H377","北九州市",null,null,null,null,"K377","自然電力株式会社",null,"D377",null,null,"A377"]
[null,null,null,"H378","合同会社MERCHANT　ENERGY第八",null,null,null,null,"K378","株式会社オノプロックス",null,"D378",null,null,"A378"]
[null,null,null,"H379","株式会社山岸",null,null,null,null,"K379","本庄ガス株式会社",null,"D379",null,null,"A379"]
[null,null,null,"H380","東急不動産株式会社",null,null,null,null,"K380","欠番",null,"D380",null,null,"A380"]
[null,null,null,"H381","横浜市",null,null,null,null,"K381","青森県民エナジー株式会社",null,"D381",null,null,"A381"]
[null,null,null,"H382","株式会社九州エターナルエナジー",null,null,null,null,"K382","国際航業株式会社",null,"D382",null,null,"A382"]
[null,null,null,"H383","株式会社ダイセル",null,null,null,null,"K383","ローカルでんき株式会社",null,"D383",null,null,"A383"]
[null,null,null,"H384","岡山県企業局",null,null,null,null,"K384","株式会社明治産業",null,"D384",null,null,"A384"]
[null,null,null,"H385","黒沢建設株式会社",null,null,null,null,"K385","欠番",null,"D385",null,null,"A385"]
[null,null,null,"H386","三井不動産株式会社",null,null,null,null,"K386","岡山電力株式会社",null,"D386",null,null,"A386"]
[null,null,null,"H387","株式会社橋本道路",null,null,null,null,"K387","ミライフ株式会社",null,"D387",null,null,"A387"]
[null,null,null,"H388","日本毛織株式会社",null,null,null,null,"K388","株式会社翠光トップライン",null,"D388",null,null,"A388"]
[null,null,null,"H389","大牟田三池港ソーラーパーク株式会社",null,null,null,null,"K389","欠番",null,"D389",null,null,"A389"]
[null,null,null,"H390","鳥取米子ソーラーパーク株式会社",null,null,null,null,"K390","うすきエネルギー株式会社",null,"D390",null,null,"A390"]
[null,null,null,"H391","苫東安平ソーラーパーク株式会社",null,null,null,null,"K391","欠番",null,"D391",null,null,"A391"]
[null,null,null,"H392","熊本荒尾ソーラーパーク株式会社",null,null,null,null,"K392","森のエネルギー株式会社",null,"D392",null,null,"A392"]
[null,null,null,"H393","泉大津ソーラーパーク株式会社",null,null,null,null,"K393","岐阜電力株式会社",null,"D393",null,null,"A393"]
[null,null,null,"H394","浜松中開ソーラーパーク株式会社",null,null,null,null,"K394","欠番",null,"D394",null,null,"A394"]
[null,null,null,"H395","欠番",null,null,null,null,"K395","株式会社ゼック",null,"D395",null,null,"A395"]
[null,null,null,"H396","福岡市",null,null,null,null,"K396","欠番",null,"D396",null,null,"A396"]
[null,null,null,"H397","欠番",null,null,null,null,"K397","株式会社エスケーエナジー",null,"D397",null,null,"A397"]
[null,null,null,"H398","三菱ケミカル株式会社",null,null,null,null,"K398","名南共同エネルギー株式会社",null,"D398",null,null,"A398"]
[null,null,null,"H399","欠番",null,null,null,null,"K399","欠番",null,"D399",null,null,"A399"]
[null,null,null,"H400","欠番",null,null,null,null,"K400","欠番",null,"D400",null,null,"A400"]
[null,null,null,"H401","オリックス株式会社",null,null,null,null,"K401","欠番",null,"D401",null,null,"A401"]
[null,null,null,"H402","メガソーラーファクトリー合同会社",null,null,null,null,"K402","欠番",null,"D402",null,null,"A402"]
[null,null,null,"H403","欠番",null,null,null,null,"K403","ＢＰエナジージャパン株式会社",null,"D403",null,null,"A403"]
[null,null,null,"H404","伊丹産業株式会社",null,null,null,null,"K404","大分ケーブルテレコム株式会社",null,"D404",null,null,"A404"]
[null,null,null,"H405","芝浦グループホールディングス株式会社",null,null,null,null,"K405","やめエネルギー株式会社",null,"D405",null,null,"A405"]
[null,null,null,"H406","九州ソーラーファーム７合同会社",null,null,null,null,"K406","欠番",null,"D406",null,null,"A406"]
[null,null,null,"H407","近鉄不動産株式会社",null,null,null,null,"K407","アストマックス・エネルギー株式会社",null,"D407",null,null,"A407"]
[null,null,null,"H408","未来創電上三緒株式会社",null,null,null,null,"K408","生活協同組合コープみらい",null,"D408",null,null,"A408"]
[null,null,null,"H409","富山共同自家発電株式会社",null,null,null,null,"K409","ＡＬＬ　ＧＲＥＥＮ　ＰＯＷＥＲ株式会社",null,"D409",null,null,"A409"]
[null,null,null,"H410","株式会社吾妻バイオパワー",null,null,null,null,"K410","欠番",null,"D410",null,null,"A410"]
[null,null,null,"H411","欠番",null,null,null,null,"K411","富士山電力株式会社",null,"D411",null,null,"A411"]
[null,null,null,"H412","岡崎市",null,null,null,null,"K412","欠番",null,"D412",null,null,"A412"]
[null,null,null,"H413","欠番",null,null,null,null,"K413","福井電力株式会社",null,"D413",null,null,"A413"]
[null,null,null,"H414","コムシスクリエイト株式会社",null,null,null,null,"K414","欠番",null,"D414",null,null,"A414"]
[null,null,null,"H415","君津共同火力株式会社",null,null,null,null,"K415","株式会社ＭＫエネルギー",null,"D415",null,null,"A415"]
[null,null,null,"H416","欠番",null,null,null,null,"K416","欠番",null,"D416",null,null,"A416"]
[null,null,null,"H417","株式会社ウィンド・パワー",null,null,null,null,"K417","エネラボ株式会社",null,"D417",null,null,"A417"]
[null,null,null,"H418","株式会社ウィンド・パワー・いばらき",null,null,null,null,"K418","株式会社ＮＥＸＹＺ．ファシリティーズ",null,"D418",null,null,"A418"]
[null,null,null,"H419","未来創電知多美浜合同会社",null,null,null,null,"K419","欠番",null,"D419",null,null,"A419"]
[null,null,null,"H420","未来創電上北六ヶ所合同会社",null,null,null,null,"K420","欠番",null,"D420",null,null,"A420"]
[null,null,null,"H421","名古屋市",null,null,null,null,"K421","スマートエナジー磐田株式会社",null,"D421",null,null,"A421"]
[null,null,null,"H422","株式会社ブイハウス",null,null,null,null,"K422","そうまIグリッド合同会社",null,"D422",null,null,"A422"]
[null,null,null,"H423","株式会社新昭和",null,null,null,null,"K423","欠番",null,"D423",null,null,"A423"]
[null,null,null,"H424","Ｃｌｅａｎ　Ｇｒｅｅｎ　Ｊａｐａｎ　ＦＩＴ１有限責任事業組合",null,null,null,null,"K424","ＲＷＥ　Ｓｕｐｐｌｙ＆Ｔｒａｄｉｎｇ　Ｊａｐａｎ株式会社",null,"D424",null,null,"A424"]
[null,null,null,"H425","丸紅株式会社",null,null,null,null,"K425","欠番",null,"D425",null,null,"A425"]
[null,null,null,"H426","大阪いずみ市民生活協同組合",null,null,null,null,"K426","欠番",null,"D426",null,null,"A426"]
[null,null,null,"H427","高梁環境発電合同会社",null,null,null,null,"K427","エネトレード株式会社",null,"D427",null,null,"A427"]
[null,null,null,"H428","欠番",null,null,null,null,"K428","株式会社サンヴィレッジ",null,"D428",null,null,"A428"]
[null,null,null,"H429","欠番",null,null,null,null,"K429","欠番",null,"D429",null,null,"A429"]
[null,null,null,"H430","合同会社ユーラス江差風力",null,null,null,null,"K430","欠番",null,"D430",null,null,"A430"]
[null,null,null,"H431","合同会社ユーラスエナジー秋田港",null,null,null,null,"K431","ニシムラ株式会社",null,"D431",null,null,"A431"]
[null,null,null,"H432","合同会社ユーラスエナジー有田川",null,null,null,null,"K432","株式会社さくら新電力",null,"D432",null,null,"A432"]
[null,null,null,"H433","合同会社ユーラスエナジー淡路",null,null,null,null,"K433","株式会社グローアップ",null,"D433",null,null,"A433"]
[null,null,null,"H434","合同会社ユーラス東通風力",null,null,null,null,"K434","佐賀電力株式会社",null,"D434",null,null,"A434"]
[null,null,null,"H435","合同会社ユーラスエナジー小田野沢",null,null,null,null,"K435","欠番",null,"D435",null,null,"A435"]
[null,null,null,"H436","合同会社ユーラスエナジー北野沢",null,null,null,null,"K436","欠番",null,"D436",null,null,"A436"]
[null,null,null,"H437","合同会社ユーラスエナジー輝北",null,null,null,null,"K437","いこま市民パワー株式会社",null,"D437",null,null,"A437"]
[null,null,null,"H438","合同会社ユーラスエナジー肝付",null,null,null,null,"K438","株式会社コープでんき東北",null,"D438",null,null,"A438"]
[null,null,null,"H439","合同会社ユーラスエナジー里美",null,null,null,null,"K439","おもてなし山形株式会社",null,"D439",null,null,"A439"]
[null,null,null,"H440","欠番",null,null,null,null,"K440","長野都市ガス株式会社",null,"D440",null,null,"A440"]
[null,null,null,"H441","合同会社ユーラスエナジー白糠",null,null,null,null,"K441","上田ガス株式会社",null,"D441",null,null,"A441"]
[null,null,null,"H442","合同会社ユーラスエナジー宗谷",null,null,null,null,"K442","日本瓦斯株式会社",null,"D442",null,null,"A442"]
[null,null,null,"H443","合同会社ユーラスエナジー滝根小白井",null,null,null,null,"K443","マーキュリア・エナジー・トレーディング・ジャパン合同会社",null,"D443",null,null,"A443"]
[null,null,null,"H444","欠番",null,null,null,null,"K444","株式会社シグナストラスト",null,"D444",null,null,"A444"]
[null,null,null,"H445","合同会社ユーラスエナジー苫前",null,null,null,null,"K445","ゲーテハウス株式会社",null,"D445",null,null,"A445"]
[null,null,null,"H446","合同会社ユーラスエナジー西目",null,null,null,null,"K446","株式会社恒電社",null,"D446",null,null,"A446"]
[null,null,null,"H447","合同会社ユーラスエナジー野辺地",null,null,null,null,"K447","欠番",null,"D447",null,null,"A447"]
[null,null,null,"H448","合同会社ユーラスエナジー岬",null,null,null,null,"K448","ＪＰエネルギー株式会社",null,"D448",null,null,"A448"]
[null,null,null,"H449","合同会社ユーラス天明太陽光",null,null,null,null,"K449","株式会社リージョン",null,"D449",null,null,"A449"]
[null,null,null,"H450","合同会社ユーラス豊頃太陽光",null,null,null,null,"K450","欠番",null,"D450",null,null,"A450"]
[null,null,null,"H451","合同会社ユーラス六ヶ所太陽光",null,null,null,null,"K451","京都新電力株式会社",null,"D451",null,null,"A451"]
[null,null,null,"H452","合同会社新出雲ウインドファーム",null,null,null,null,"K452","欠番",null,"D452",null,null,"A452"]
[null,null,null,"H453","株式会社大川原ウインドファーム",null,null,null,null,"K453","Ｃｏｃｏテラスたがわ株式会社",null,"D453",null,null,"A453"]
[null,null,null,"H454","株式会社ユーラスエナジーホールディングス",null,null,null,null,"K454","東北電力エナジートレーディング株式会社",null,"D454",null,null,"A454"]
[null,null,null,"H455","株式会社天北エナジー",null,null,null,null,"K455","株式会社横浜環境デザイン",null,"D455",null,null,"A455"]
[null,null,null,"H456","合同会社ユーラス北淡路太陽光",null,null,null,null,"K456","株式会社まち未来製作所",null,"D456",null,null,"A456"]
[null,null,null,"H457","合同会社ユーラス東由利原風力",null,null,null,null,"K457","TRENDE株式会社",null,"D457",null,null,"A457"]
[null,null,null,"H458","合同会社ユーラス大豊風力",null,null,null,null,"K458","株式会社どさんこパワー",null,"D458",null,null,"A458"]
[null,null,null,"H459","ＣＥＦ豊北ウインドファーム株式会社",null,null,null,null,"K459","トリニティエナジー株式会社",null,"D459",null,null,"A459"]
[null,null,null,"H460","ＣＥＦ南あわじウインドファーム株式会社",null,null,null,null,"K460","ワンワールドエナジー株式会社",null,"D460",null,null,"A460"]
[null,null,null,"H461","ＣＥＦ伊豆熱川ウインドファーム合同会社",null,null,null,null,"K461","みなとみらい電力株式会社",null,"D461",null,null,"A461"]
[null,null,null,"H462","スマートソーラー山口秋穗合同会社",null,null,null,null,"K462","欠番",null,"D462",null,null,"A462"]
[null,null,null,"H463","合同会社ユーラス由利高原風力",null,null,null,null,"K463","株式会社LIXILTEPCOスマートパートナーズ",null,"D463",null,null,"A463"]
[null,null,null,"H464","株式会社リオグループホールディングス",null,null,null,null,"K464","欠番",null,"D464",null,null,"A464"]
[null,null,null,"H465","株式会社日出電機",null,null,null,null,"K465","株式会社ＮＥＸＴ　ＯＮＥ",null,"D465",null,null,"A465"]
[null,null,null,"H466","ＭＣＭエネルギーサービス株式会社",null,null,null,null,"K466","三菱瓦斯化学株式会社",null,"D466",null,null,"A466"]
[null,null,null,"H467","欠番",null,null,null,null,"K467","欠番",null,"D467",null,null,"A467"]
[null,null,null,"H468","群馬新巻メガソーラー合同会社",null,null,null,null,"K468","欠番",null,"D468",null,null,"A468"]
[null,null,null,"H469","タマホーム有明メガソーラー合同会社",null,null,null,null,"K469","欠番",null,"D469",null,null,"A469"]
[null,null,null,"H470","Ｓｕｎ　Ｓｔａｔｉｏｎ　Ｈｉｋａｒｉ　ＶＩ　合同会社",null,null,null,null,"K470","おおすみ半島スマートエネルギー株式会社",null,"D470",null,null,"A470"]
[null,null,null,"H471","Ｓｏｍａ　Ｓｏｌａｒ　合同会社",null,null,null,null,"K471","Ｓｅｃｏｎｄ　Ｆｏｕｎｄａｔｉｏｎ　Ｊａｐａｎ合同会社",null,"D471",null,null,"A471"]
[null,null,null,"H472","Ｏｉｔａ　Ｓｏｌａｒ　合同会社",null,null,null,null,"K472","おきなわコープエナジー株式会社",null,"D472",null,null,"A472"]
[null,null,null,"H473","欠番",null,null,null,null,"K473","久慈地域エネルギー株式会社",null,"D473",null,null,"A473"]
[null,null,null,"H474","Ｓｕｎ　Ｓｔａｔｉｏｎ　Ｈｉｋａｒｉ　Ｘ　合同会社",null,null,null,null,"K474","弘前ガス株式会社",null,"D474",null,null,"A474"]
[null,null,null,"H475","合同会社ＤＳソーラープロジェクト日光多気",null,null,null,null,"K475","株式会社フォーバルテレコム",null,"D475",null,null,"A475"]
[null,null,null,"H476","大王製紙株式会社",null,null,null,null,"K476","欠番",null,"D476",null,null,"A476"]
[null,null,null,"H477","株式会社レクスポート",null,null,null,null,"K477","欠番",null,"D477",null,null,"A477"]
[null,null,null,"H478","大子ソーラーエナジー合同会社",null,null,null,null,"K478","株式会社ストエネ",null,"D478",null,null,"A478"]
[null,null,null,"H479","欠番",null,null,null,null,"K479","くるめエネルギー株式会社",null,"D479",null,null,"A479"]
[null,null,null,"H480","光エナジー合同会社",null,null,null,null,"K480","欠番",null,"D480",null,null,"A480"]
[null,null,null,"H481","合同会社ユーラスエナジー河津",null,null,null,null,"K481","欠番",null,"D481",null,null,"A481"]
[null,null,null,"H482","合同会社ユーラスエナジー釜石",null,null,null,null,"K482","松阪新電力株式会社",null,"D482",null,null,"A482"]
[null,null,null,"H483","合同会社ユーラス伊達黄金風力",null,null,null,null,"K483","欠番",null,"D483",null,null,"A483"]
[null,null,null,"H484","ＭＰみらいソーラー石川合同会社",null,null,null,null,"K484","宮崎電力株式会社",null,"D484",null,null,"A484"]
[null,null,null,"H485","直江津エネルギーセンター株式会社",null,null,null,null,"K485","欠番",null,"D485",null,null,"A485"]
[null,null,null,"H486","ＭＣＫＢエネルギーサービス株式会社",null,null,null,null,"K486","三友エンテック株式会社",null,"D486",null,null,"A486"]
[null,null,null,"H487","三洋製紙株式会社",null,null,null,null,"K487","東京電力リニューアブルパワー株式会社",null,"D487",null,null,"A487"]
[null,null,null,"H488","大和エネルギー株式会社",null,null,null,null,"K488","欠番",null,"D488",null,null,"A488"]
[null,null,null,"H489","丸森太陽光発電２０１９合同会社",null,null,null,null,"K489","欠番",null,"D489",null,null,"A489"]
[null,null,null,"H490","欠番",null,null,null,null,"K490","欠番",null,"D490",null,null,"A490"]
[null,null,null,"H491","合同会社三重松尾",null,null,null,null,"K491","株式会社CDエナジーダイレクト",null,"D491",null,null,"A491"]
[null,null,null,"H492","株式会社クリハラント",null,null,null,null,"K492","Ｑ．ＥＮＥＳＴでんき株式会社",null,"D492",null,null,"A492"]
[null,null,null,"H493","合同会社六戸ソーラーパーク",null,null,null,null,"K493","株式会社エネコード",null,"D493",null,null,"A493"]
[null,null,null,"H494","自然環境システム株式会社",null,null,null,null,"K494","株式会社ぶんごおおのエナジー",null,"D494",null,null,"A494"]
[null,null,null,"H495","パシフィコ・エナジー大崎合同会社",null,null,null,null,"K495","ヴィジョナリーパワー株式会社",null,"D495",null,null,"A495"]
[null,null,null,"H496","ＮＴＴアノードエナジー株式会社",null,null,null,null,"K496","有明エナジー株式会社",null,"D496",null,null,"A496"]
[null,null,null,"H497","鹿屋大崎ソーラーヒルズ合同会社",null,null,null,null,"K497","欠番",null,"D497",null,null,"A497"]
[null,null,null,"H498","八峰風力開発株式会社",null,null,null,null,"K498","欠番",null,"D498",null,null,"A498"]
[null,null,null,"H499","株式会社科戸の風",null,null,null,null,"K499","欠番",null,"D499",null,null,"A499"]
[null,null,null,"H500","ＫＰＪＵ東広島合同会社",null,null,null,null,"K500","厚木瓦斯株式会社",null,"D500",null,null,"A500"]
[null,null,null,"H501","松前ウィンドファーム合同会社",null,null,null,null,"K501","株式会社エネ・ビジョン"]
[null,null,null,"H502","銭函ウィンドファーム合同会社",null,null,null,null,"K502","イワタニ三重株式会社"]
[null,null,null,"H503","寿都町",null,null,null,null,"K503","株式会社マルヰ"]
[null,null,null,"H504","欠番",null,null,null,null,"K504","大多喜ガス株式会社"]
[null,null,null,"H505","株式会社ウイネット石狩",null,null,null,null,"K505","ベスト・ウイング株式会社"]
[null,null,null,"H506","由良風力開発株式会社",null,null,null,null,"K506","欠番"]
[null,null,null,"H507","風の松原自然エネルギー株式会社",null,null,null,null,"K507","鈴与電力株式会社"]
[null,null,null,"H508","大英ソーラー株式会社",null,null,null,null,"K508","コープ電力株式会社"]
[null,null,null,"H509","株式会社鹿児島風力発電研究所",null,null,null,null,"K509","生活協同組合　コープぐんま"]
[null,null,null,"H510","富岡復興エナジー合同会社",null,null,null,null,"K510","とちぎコープ生活協同組合"]
[null,null,null,"H511","欠番",null,null,null,null,"K511","いばらきコープ生活協同組合"]
[null,null,null,"H512","欠番",null,null,null,null,"K512","亀岡ふるさとエナジー株式会社"]
[null,null,null,"H513","株式会社ジェイウインドくずまき",null,null,null,null,"K513","欠番"]
[null,null,null,"H514","尻別風力開発株式会社",null,null,null,null,"K514","株式会社織戸組"]
[null,null,null,"H515","エム・ピー・エム・王子エコエネルギー株式会社",null,null,null,null,"K515","ふかやeパワー株式会社"]
[null,null,null,"H516","サミット半田パワー株式会社",null,null,null,null,"K516","株式会社Ｌｉｎｋ　Ｌｉｆｅ"]
[null,null,null,"H517","株式会社デンケン",null,null,null,null,"K517","淡路島電力株式会社"]
[null,null,null,"H518","エナジーバンクジャパン株式会社",null,null,null,null,"K518","欠番"]
[null,null,null,"H519","Ｓｕｎ　Ｓｔａｔｉｏｎ　Ｈｉｋａｒｉ　ＶＩＩ合同会社",null,null,null,null,"K519","欠番"]
[null,null,null,"H520","日鉄鉱業株式会社",null,null,null,null,"K520","日本エネルギー総合システム株式会社"]
[null,null,null,"H521","クリーンエネルギー研究所合同会社",null,null,null,null,"K521","イワタニ東海株式会社"]
[null,null,null,"H522","株式会社コベルコパワー真岡",null,null,null,null,"K522","欠番"]
[null,null,null,"H523","神栖パワープラント合同会社",null,null,null,null,"K523","欠番"]
[null,null,null,"H524","欠番",null,null,null,null,"K524","イーゲート株式会社"]
[null,null,null,"H525","株式会社大多喜ソーラー",null,null,null,null,"K525","欠番"]
[null,null,null,"H526","欠番",null,null,null,null,"K526","株式会社ところざわ未来電力"]
[null,null,null,"H527","串間ウインドヒル株式会社",null,null,null,null,"K527","朝日ガスエナジー株式会社"]
[null,null,null,"H528","合同会社白河ソーラーパーク",null,null,null,null,"K528","欠番"]
[null,null,null,"H529","欠番",null,null,null,null,"K529","株式会社エネファント"]
[null,null,null,"H530","欠番",null,null,null,null,"K530","株式会社エスエナジー"]
[null,null,null,"H531","くろしお風力発電株式会社",null,null,null,null,"K531","欠番"]
[null,null,null,"H532","ふそう風力発電株式会社",null,null,null,null,"K532","欠番"]
[null,null,null,"H533","レクサスリニューワブル合同会社",null,null,null,null,"K533","株式会社フリクト電力"]
[null,null,null,"H534","ソーラー・フィールド４合同会社",null,null,null,null,"K534","秩父新電力株式会社"]
[null,null,null,"H535","欠番",null,null,null,null,"K535","みよしエナジー株式会社"]
[null,null,null,"H536","水島エネルギーセンター株式会社",null,null,null,null,"K536","エンゲルハートCTP合同会社"]
[null,null,null,"H537","神戸市",null,null,null,null,"K537","欠番"]
[null,null,null,"H538","ＯＣＥ日向メガソーラー株式会社",null,null,null,null,"K538","欠番"]
[null,null,null,"H539","ＯＣＥ釧路町メガソーラー株式会社",null,null,null,null,"K539","綿半パートナーズ株式会社"]
[null,null,null,"H540","ＫＤＤＩ株式会社",null,null,null,null,"K540","株式会社ｋａｒｃｈ"]
[null,null,null,"H541","ＥＮＥＯＳバイオマスパワー室蘭合同会社",null,null,null,null,"K541","株式会社くきつ"]
[null,null,null,"H542","合同会社そら",null,null,null,null,"K542","株式会社フィリッジ"]
[null,null,null,"H543","合同会社西の郷ソーラーパーク",null,null,null,null,"K543","欠番"]
[null,null,null,"H544","ＳＨＩＮＫＯ合同会社",null,null,null,null,"K544","株式会社かみでん里山公社"]
[null,null,null,"H545","シン・エナジー株式会社",null,null,null,null,"K545","欠番"]
[null,null,null,"H546","大月バイオマス発電株式会社",null,null,null,null,"K546","ワイズテレコム株式会社"]
[null,null,null,"H547","欠番",null,null,null,null,"K547","株式会社三郷ひまわりエナジー"]
[null,null,null,"H548","新岡山ソーラー株式会社",null,null,null,null,"K548","株式会社球磨村森電力"]
[null,null,null,"H549","酒田港メガソーラーパーク合同会社",null,null,null,null,"K549","欠番"]
[null,null,null,"H550","ＳＧＥＴ広島メガソーラー合同会社",null,null,null,null,"K550","株式会社Ｕ－ＰＯＷＥＲ　ＧＲＥＥＮ　ＭＡＲＫＥＴＩＮＧ"]
[null,null,null,"H551","株式会社ジェイウインドせたな",null,null,null,null,"K551","株式会社エコログ"]
[null,null,null,"H552","合同会社楢葉大谷ソーラー",null,null,null,null,"K552","飯田まちづくり電力株式会社"]
[null,null,null,"H553","株式会社瀬戸ウィンドヒル",null,null,null,null,"K553","欠番"]
[null,null,null,"H554","合同会社富岡杉内ソーラー",null,null,null,null,"K554","シェルジャパン株式会社"]
[null,null,null,"H555","勿来ＩＧＣＣパワー合同会社",null,null,null,null,"K555","株式会社クボタ"]
[null,null,null,"H556","株式会社ＳＭＢＣ信託銀行",null,null,null,null,"K556","石油資源開発株式会社"]
[null,null,null,"H557","ソーラーパワー南相馬・原町株式会社",null,null,null,null,"K557","越後天然ガス株式会社"]
[null,null,null,"H558","旭メガソーラー美咲発電株式会社",null,null,null,null,"K558","欠番"]
[null,null,null,"H559","株式会社キャピタル",null,null,null,null,"K559","坂戸ガス株式会社"]
[null,null,null,"H560","仙台パワーステーション株式会社",null,null,null,null,"K560","株式会社デベロップ"]
[null,null,null,"H561","欠番",null,null,null,null,"K561","テレ・マーカーグループ株式会社"]
[null,null,null,"H562","合同会社Ｄ２Ｋ小松ソーラー",null,null,null,null,"K562","銚子電力株式会社"]
[null,null,null,"H563","大分メガソーラー合同会社",null,null,null,null,"K563","MGCエネルギー株式会社"]
[null,null,null,"H564","七尾ソーラーパーク合同会社",null,null,null,null,"K564","欠番"]
[null,null,null,"H565","Ｍ・Ｎ・Ｐ合同会社",null,null,null,null,"K565","欠番"]
[null,null,null,"H566","佐賀相知ソーラー株式会社",null,null,null,null,"K566","福島フェニックス電力株式会社"]
[null,null,null,"H567","欠番",null,null,null,null,"K567","あんしん電力合同会社"]
[null,null,null,"H568","平泉ソーラーエナジー合同会社",null,null,null,null,"K568","株式会社美作国電力"]
[null,null,null,"H569","敦賀グリーンパワー株式会社",null,null,null,null,"K569","欠番"]
[null,null,null,"H570","東大阪都市清掃施設組合",null,null,null,null,"K570","株式会社サンジュニア"]
[null,null,null,"H571","株式会社エフオン壬生",null,null,null,null,"K571","八幡商事株式会社"]
[null,null,null,"H572","欠番",null,null,null,null,"K572","おいでんエネルギー株式会社"]
[null,null,null,"H573","ＫＳＦ３合同会社",null,null,null,null,"K573","株式会社イシオ"]
[null,null,null,"H574","Ｎｅｂｉｏ　ＳＵＰＥＲ電力合同会社",null,null,null,null,"K574","北陸電力ビズ・エナジーソリューション株式会社"]
[null,null,null,"H575","ＥＳ　ＮＰＶ１合同会社",null,null,null,null,"K575","リニューアブルトレード株式会社"]
[null,null,null,"H576","北海道瓦斯株式会社",null,null,null,null,"K576","エンジー・エナジー・マーケティング・ジャパン株式会社"]
[null,null,null,"H577","太陽Ｒｅｓｅｒｖｅ１合同会社",null,null,null,null,"K577","欠番"]
[null,null,null,"H578","太陽Ｒｅｓｅｒｖｅ３合同会社",null,null,null,null,"K578","ICT伊那みらいでんき株式会社"]
[null,null,null,"H579","日本再生可能エネルギーオペレーター合同会社",null,null,null,null,"K579","富士山エナジー株式会社"]
[null,null,null,"H580","合同会社ソーラーエナジー・クリエイト",null,null,null,null,"K580","九州スポーツ電力株式会社"]
[null,null,null,"H581","欠番",null,null,null,null,"K581","欠番"]
[null,null,null,"H582","ＳＵＮ・ＳＵＷＡ合同会社",null,null,null,null,"K582","株式会社エナネス"]
[null,null,null,"H583","株式会社平戸南風力発電所",null,null,null,null,"K583","WSエナジー株式会社"]
[null,null,null,"H584","株式会社宇久島風力発電所",null,null,null,null,"K584","ＴＥＲＡ　Ｅｎｅｒｇｙ株式会社"]
[null,null,null,"H585","欠番",null,null,null,null,"K585","欠番"]
[null,null,null,"H586","ティーダ・パワー０１合同会社",null,null,null,null,"K586","欠番"]
[null,null,null,"H587","那珂グリーンパワー株式会社",null,null,null,null,"K587","グリーンシティこばやし株式会社"]
[null,null,null,"H588","株式会社ソーラークリーニング",null,null,null,null,"K588","株式会社吉田石油店"]
[null,null,null,"H589","パシフィコ・エナジー勝浦メガソーラー合同会社",null,null,null,null,"K589","欠番"]
[null,null,null,"H590","新日本電工株式会社",null,null,null,null,"K590","スマートエナジー熊本株式会社"]
[null,null,null,"H591","欠番",null,null,null,null,"K591","福山未来エナジー株式会社"]
[null,null,null,"H592","未来創電鳥羽合同会社",null,null,null,null,"K592","株式会社Kエナジー"]
[null,null,null,"H593","欠番",null,null,null,null,"K593","株式会社メディオテック"]
[null,null,null,"H594","エネルギア・パワー山口株式会社",null,null,null,null,"K594","欠番"]
[null,null,null,"H595","ＳＯＬＡＲ　ＥＮＥＲＧＹ鉾田合同会社",null,null,null,null,"K595","欠番"]
[null,null,null,"H596","合同会社美咲ソーラー",null,null,null,null,"K596","AOIエネルギーソリューション株式会社"]
[null,null,null,"H597","株式会社三池火力発電所",null,null,null,null,"K597","五島市民電力株式会社"]
[null,null,null,"H598","未来創電津白山株式会社",null,null,null,null,"K598","電力保全サービス株式会社"]
[null,null,null,"H599","ＳＤＴソーラーパワー株式会社",null,null,null,null,"K599","リストプロパティーズ株式会社"]
[null,null,null,"H600","プロスペックAZ株式会社",null,null,null,null,"K600","ＥＮＥＣＨＡＮＧＥ株式会社"]
[null,null,null,"H601","旭メガソーラー神郷発電株式会社",null,null,null,null,"K601","欠番"]
[null,null,null,"H602","合同会社えひめ森林発電",null,null,null,null,"K602","欠番"]
[null,null,null,"H603","若美風力開発株式会社",null,null,null,null,"K603","株式会社情熱電力"]
[null,null,null,"H604","クラスタ―クリーンエナジー１合同会社",null,null,null,null,"K604","バンプーパワートレーディング合同会社"]
[null,null,null,"H605","株式会社サカイホールディングス",null,null,null,null,"K605","株式会社エイチティーピー"]
[null,null,null,"H606","欠番",null,null,null,null,"K606","株式会社センカク"]
[null,null,null,"H607","鹿児島湧水ソーラーパーク合同会社",null,null,null,null,"K607","ＭＣＰＤ株式会社"]
[null,null,null,"H608","とまこまい勇払ソーラーパーク合同会社",null,null,null,null,"K608","新電力いばらき株式会社"]
[null,null,null,"H609","欠番",null,null,null,null,"K609","欠番"]
[null,null,null,"H610","未来創電松阪嬉野合同会社",null,null,null,null,"K610","株式会社日精協サービスセンター"]
[null,null,null,"H611","Ｓｏｌａｒｉａｎｔ　Ｐｏｒｔｆｏｌｉｏ　Ｔｗｏ合同会社",null,null,null,null,"K611","株式会社ミナサポ"]
[null,null,null,"H612","欠番",null,null,null,null,"K612","唐津電力株式会社"]
[null,null,null,"H613","合同会社はやぶさソーラー",null,null,null,null,"K613","ＲＥ１００電力株式会社"]
[null,null,null,"H614","大和ハウス工業株式会社",null,null,null,null,"K614","日本エネルギーファーム株式会社"]
[null,null,null,"H615","津クリーンエナジー合同会社",null,null,null,null,"K615","一般社団法人フライングエステート"]
[null,null,null,"H616","合同会社ソーラーパーク高岡",null,null,null,null,"K616","欠番"]
[null,null,null,"H617","パシフィコ・エナジー柳井合同会社",null,null,null,null,"K617","株式会社イーネットワーク"]
[null,null,null,"H618","エクシオグループ株式会社",null,null,null,null,"K618","バイオガスエナジー株式会社"]
[null,null,null,"H619","ニューデジタルケーブル株式会社",null,null,null,null,"K619","スマートエコエナジー株式会社"]
[null,null,null,"H620","直方ソーラーファーム合同会社",null,null,null,null,"K620","欠番"]
[null,null,null,"H621","三菱ＨＣキャピタルエナジー株式会社",null,null,null,null,"K621","欠番"]
[null,null,null,"H622","大石田町太陽光発電所合同会社",null,null,null,null,"K622","株式会社ＬＥＮＥＴＳ"]
[null,null,null,"H623","未来創電高萩合同会社",null,null,null,null,"K623","株式会社あおぞら"]
[null,null,null,"H624","合同会社ユーラス石巻風力",null,null,null,null,"K624","アイエスジー株式会社"]
[null,null,null,"H625","株式会社ティーティーエス企画",null,null,null,null,"K625","欠番"]
[null,null,null,"H626","バンチャックソーラーyield-co合同会社",null,null,null,null,"K626","株式会社エネクル"]
[null,null,null,"H627","合同会社ミエトバ",null,null,null,null,"K627","欠番"]
[null,null,null,"H628","合同会社オブトン成田神崎",null,null,null,null,"K628","欠番"]
[null,null,null,"H629","Ｓｕｎ　Ｓｔａｔｉｏｎ　Ｈｉｋａｒｉ　Ｖ合同会社",null,null,null,null,"K629","フィンテックラボ協同組合"]
[null,null,null,"H630","株式会社上組",null,null,null,null,"K630","欠番"]
[null,null,null,"H631","中里風力合同会社",null,null,null,null,"K631","新電力新潟株式会社"]
[null,null,null,"H632","いちご昭和村生越ECO発電所合同会社",null,null,null,null,"K632","株式会社タケエイでんき"]
[null,null,null,"H633","合同会社NRE-39インベストメント",null,null,null,null,"K633","気仙沼グリーンエナジー株式会社"]
[null,null,null,"H634","相馬エネルギーパーク合同会社",null,null,null,null,"K634","株式会社ユーラスグリーンエナジー"]
[null,null,null,"H635","パシフィコ・エナジー赤穂合同会社",null,null,null,null,"K635","欠番"]
[null,null,null,"H636","欠番",null,null,null,null,"K636","ネミー株式会社"]
[null,null,null,"H637","名南共同エネルギー株式会社",null,null,null,null,"K637","欠番"]
[null,null,null,"H638","大林神栖バイオマス発電株式会社",null,null,null,null,"K638","生活協同組合コープながの"]
[null,null,null,"H639","八戸バイオマス発電株式会社",null,null,null,null,"K639","欠番"]
[null,null,null,"H640","合同会社グリーンパワー大月",null,null,null,null,"K640","株式会社Ｅｎｅｒｇｙ　Ｃｏｎｃｉｅｒｇｅ"]
[null,null,null,"H641","広野IGCCパワー合同会社",null,null,null,null,"K641","酒田天然瓦斯株式会社"]
[null,null,null,"H642","株式会社二川工業製作所",null,null,null,null,"K642","東亜ガス株式会社"]
[null,null,null,"H643","株式会社ホテルニューアワジ",null,null,null,null,"K643","株式会社三河の山里コミュニティパワー"]
[null,null,null,"H644","秋田潟上ウインドファーム合同会社",null,null,null,null,"K644","新潟スワンエナジー株式会社"]
[null,null,null,"H645","合同会社相馬伊達太陽光発電所",null,null,null,null,"K645","欠番"]
[null,null,null,"H646","千歳太陽光発電所合同会社",null,null,null,null,"K646","グリーンピープルズパワー株式会社"]
[null,null,null,"H647","合同会社開発３８号",null,null,null,null,"K647","欠番"]
[null,null,null,"H648","合同会社サクシード松阪庄町",null,null,null,null,"K648","Ｑ．ＥＮＥＳＴホールディングス株式会社"]
[null,null,null,"H649","本田技研工業株式会社",null,null,null,null,"K649","レネックス電力合同会社"]
[null,null,null,"H650","市原バイオマス発電株式会社",null,null,null,null,"K650","株式会社マルイファシリティーズ"]
[null,null,null,"H651","合同会社吉野",null,null,null,null,"K651","株式会社デンケン"]
[null,null,null,"H652","アーク不動産株式会社",null,null,null,null,"K652","株式会社東名"]
[null,null,null,"H653","合同会社サクシード瀬戸",null,null,null,null,"K653","欠番"]
[null,null,null,"H654","合同会社サクシード津波瀬",null,null,null,null,"K654","欠番"]
[null,null,null,"H655","合同会社KSFブリッジ1",null,null,null,null,"K655","ＮＴＴアノードエナジー株式会社"]
[null,null,null,"H656","株式会社一条工務店",null,null,null,null,"K656","スマート電気株式会社"]
[null,null,null,"H657","合同会社ユーラス上勝神山風力",null,null,null,null,"K657","株式会社唐津パワーホールディングス"]
[null,null,null,"H658","欠番",null,null,null,null,"K658","株式会社クリーンエネルギー総合研究所"]
[null,null,null,"H659","欠番",null,null,null,null,"K659","株式会社スマートエナジー"]
[null,null,null,"H660","いちごECOエナジー株式会社",null,null,null,null,"K660","新電力株式会社"]
[null,null,null,"H661","Ichinoseki　Solar　Power　１　合同会社",null,null,null,null,"K661","株式会社かづのパワー"]
[null,null,null,"H662","欠番",null,null,null,null,"K662","ＵＮＩＶＥＲＧＹ株式会社"]
[null,null,null,"H663","宮古くざかいソーラーパーク合同会社",null,null,null,null,"K663","欠番"]
[null,null,null,"H664","ファームランド株式会社",null,null,null,null,"K664","欠番"]
[null,null,null,"H665","合同会社庄内太陽光発電所",null,null,null,null,"K665","株式会社アイキューブ・マーケティング"]
[null,null,null,"H666","ＪＡＩ　再生可能エネルギー発電２０１５－０１合同会社",null,null,null,null,"K666","ワタミエコパワー株式会社"]
[null,null,null,"H667","合同会社JRE八幡岳",null,null,null,null,"K667","株式会社西九州させぼパワーズ"]
[null,null,null,"H668","GPDすいせんソーラー株式会社",null,null,null,null,"K668","たんたんエナジー株式会社"]
[null,null,null,"H669","有限会社ケイ・ティ経営研究所",null,null,null,null,"K669","株式会社能勢・豊能まちづくり"]
[null,null,null,"H670","CEF津山ウインドファーム株式会社",null,null,null,null,"K670","欠番"]
[null,null,null,"H671","欠番",null,null,null,null,"K671","株式会社再エネ思考電力"]
[null,null,null,"H672","瀬戸内kirei未来創り合同会社",null,null,null,null,"K672","株式会社スマート"]
[null,null,null,"H673","熊本鉄構株式会社",null,null,null,null,"K673","欠番"]
[null,null,null,"H674","GPDすずらんソーラー株式会社",null,null,null,null,"K674","株式会社ジャパネットサービスイノベーション"]
[null,null,null,"H675","株式会社東京ガスコルザパワー",null,null,null,null,"K675","かみすでんき株式会社"]
[null,null,null,"H676","ＡＣ１０合同会社",null,null,null,null,"K676","欠番"]
[null,null,null,"H677","合同会社鹿児島頴娃",null,null,null,null,"K677","ＫＢＮ株式会社"]
[null,null,null,"H678","欠番",null,null,null,null,"K678","株式会社しおさい電力"]
[null,null,null,"H679","合同会社TSMH1",null,null,null,null,"K679","欠番"]
[null,null,null,"H680","湯沢地熱株式会社",null,null,null,null,"K680","欠番"]
[null,null,null,"H681","森トラスト株式会社",null,null,null,null,"K681","会津エナジー株式会社"]
[null,null,null,"H682","東京インフラ電力合同会社",null,null,null,null,"K682","うべ未来エネルギー株式会社"]
[null,null,null,"H683","海田バイオマスパワー株式会社",null,null,null,null,"K683","欠番"]
[null,null,null,"H684","合同会社NRE-18インベストメント",null,null,null,null,"K684","永井自動車工業株式会社"]
[null,null,null,"H685","新川メガソーラー発電合同会社",null,null,null,null,"K685","小島電機工業株式会社"]
[null,null,null,"H686","長岡パワージェネレーション株式会社",null,null,null,null,"K686","陸前高田しみんエネルギー株式会社"]
[null,null,null,"H687","合同会社五浦ソーラー",null,null,null,null,"K687","株式会社アーク"]
[null,null,null,"H688","合同会社鬼怒川ソーラー",null,null,null,null,"K688","株式会社チャームドライフ"]
[null,null,null,"H689","河津ソーラーエナジー合同会社",null,null,null,null,"K689","株式会社エイワット"]
[null,null,null,"H690","青森七戸メガソーラー発電所合同会社",null,null,null,null,"K690","スターティア株式会社"]
[null,null,null,"H691","印南風力発電株式会社",null,null,null,null,"K691","東広島スマートエネルギー株式会社"]
[null,null,null,"H692","かみすパワー株式会社",null,null,null,null,"K692","欠番"]
[null,null,null,"H693","よこはま風力発電株式会社",null,null,null,null,"K693","旭化成株式会社"]
[null,null,null,"H694","合同会社白河ソーラー",null,null,null,null,"K694","株式会社岡崎さくら電力"]
[null,null,null,"H695","合同会社JRE山都高森",null,null,null,null,"K695","株式会社エフオン"]
[null,null,null,"H696","響灘エネルギーパーク合同会社",null,null,null,null,"K696","株式会社ｅＣｌｅａｒ"]
[null,null,null,"H697","合同会社宮リバー度会ソーラーパーク",null,null,null,null,"K697","ＫＭパワー株式会社"]
[null,null,null,"H698","FS　Japan　Project　２４合同会社",null,null,null,null,"K698","京和ガス株式会社"]
[null,null,null,"H699","FS　Japan　Project　２５合同会社",null,null,null,null,"K699","株式会社Ｏｋａｚａｋｉ"]
[null,null,null,"H700","FS　Japan　Project　２７合同会社",null,null,null,null,"K700","欠番"]
[null,null,null,"H701","FS　Japan　Project　B４合同会社",null,null,null,null,"K701","デジタルグリッド株式会社"]
[null,null,null,"H702","FS　Japan　Project　B５合同会社",null,null,null,null,"K702","欠番"]
[null,null,null,"H703","明日パワー１合同会社",null,null,null,null,"K703","株式会社平安コーポレーション"]
[null,null,null,"H704","福島さくらソーラー発電合同会社",null,null,null,null,"K704","旭マルヰ株式会社"]
[null,null,null,"H705","ＪＩＦソーラーエナジー合同会社",null,null,null,null,"K705","ENEOSリニューアブル・エナジー・ソリューションズ株式会社"]
[null,null,null,"H706","合同会社気仙沼漆原",null,null,null,null,"K706","Castleton　Commodities　Japan合同会社"]
[null,null,null,"H707","合同会社気仙沼泉沢",null,null,null,null,"K707","神戸電力株式会社"]
[null,null,null,"H708","GPDさくらソーラー株式会社",null,null,null,null,"K708","一般社団法人全国新エネルギー次世代設備施工協会"]
[null,null,null,"H709","株式会社響灘火力発電所",null,null,null,null,"K709","Ｖａｌｈａｌｌ合同会社"]
[null,null,null,"H710","ディー・ティーエナジー合同会社",null,null,null,null,"K710","エア・ウォーター・ライフソリューション株式会社"]
[null,null,null,"H711","国際航業株式会社",null,null,null,null,"K711","生活協同組合ひろしま"]
[null,null,null,"H712","Ｒｉｃｈ　Ｓｏｌａｒ　Ｅｎｅｒｇｙ合同会社",null,null,null,null,"K712","欠番"]
[null,null,null,"H713","合同会社八戸是川",null,null,null,null,"K713","株式会社ＲｅｎｏＬａｂｏ"]
[null,null,null,"H714","四国風力発電株式会社",null,null,null,null,"K714","欠番"]
[null,null,null,"H715","佐野ソーラーウェイ合同会社",null,null,null,null,"K715","欠番"]
[null,null,null,"H716","合同会社グリーンパワー住田遠野",null,null,null,null,"K716","エルメック株式会社"]
[null,null,null,"H717","穴水太陽光発電２０１９合同会社",null,null,null,null,"K717","株式会社オズエナジー"]
[null,null,null,"H718","第一Ｑソーラー合同会社",null,null,null,null,"K718","レモンガス株式会社"]
[null,null,null,"H719","株式会社アジアインフォネット",null,null,null,null,"K719","欠番"]
[null,null,null,"H720","ＭＥＧＡＳＯＬＡＲ　ＧＥＮＥＲＡＴＩＯＮ　ＮＩ　合同会社",null,null,null,null,"K720","株式会社日本海水"]
[null,null,null,"H721","神戸山田太陽光発電所合同会社",null,null,null,null,"K721","株式会社イーネットワークネクスト"]
[null,null,null,"H722","株式会社石油輸送リース森山",null,null,null,null,"K722","しろくま電力株式会社"]
[null,null,null,"H723","秋田洋上風力発電株式会社",null,null,null,null,"K723","中小企業支援株式会社"]
[null,null,null,"H724","アサヒハウス工業株式会社",null,null,null,null,"K724","サントラベラーズサービス有限会社"]
[null,null,null,"H725","七ツ島バイオマスパワー合同会社",null,null,null,null,"K725","株式会社カインドホーム"]
[null,null,null,"H726","Ｔ&Jパワープラント株式会社",null,null,null,null,"K726","株式会社ウエストエナジー"]
[null,null,null,"H727","ＳＳ・ＭＩＮＥ合同会社",null,null,null,null,"K727","合同会社Ｐｅａｋ８"]
[null,null,null,"H728","下関バイオマスエナジー合同会社",null,null,null,null,"K728","八千代エンジニヤリング株式会社"]
[null,null,null,"H729","日立十王太陽光発電合同会社",null,null,null,null,"K729","日本海ガス株式会社"]
[null,null,null,"H730","LOHAS　ECE　BROWN株式会社",null,null,null,null,"K730","欠番"]
[null,null,null,"H731","株式会社サン・エナジー川内",null,null,null,null,"K731","神楽電力株式会社"]
[null,null,null,"H732","欠番",null,null,null,null,"K732","ゆきぐに新電力株式会社"]
[null,null,null,"H733","BLD　Power　Stations株式会社",null,null,null,null,"K733","欠番"]
[null,null,null,"H734","パシフィコ・エナジー和歌山メガソーラー合同会社",null,null,null,null,"K734","株式会社ながさきサステナエナジー"]
[null,null,null,"H735","庄内風力発電株式会社",null,null,null,null,"K735","欠番"]
[null,null,null,"H736","合同会社ＫＣ－０１インベストメント",null,null,null,null,"K736","葛尾創生電力株式会社"]
[null,null,null,"H737","君津メガソーラー合同会社",null,null,null,null,"K737","欠番"]
[null,null,null,"H738","津軽風力発電株式会社",null,null,null,null,"K738","欠番"]
[null,null,null,"H739","仙台大倉GD第一合同会社",null,null,null,null,"K739","株式会社ＥＦでんき"]
[null,null,null,"H740","株式会社藤巻建設",null,null,null,null,"K740","株式会社グルーヴエナジー"]
[null,null,null,"H741","富士宮南原インベストメント合同会社",null,null,null,null,"K741","高知ニューエナジー株式会社"]
[null,null,null,"H742","NC電源開発株式会社",null,null,null,null,"K742","もみじ電力株式会社"]
[null,null,null,"H743","合同会社Ｄ＆Ｄソーラー",null,null,null,null,"K743","Ｎａｔｕｒｅ株式会社"]
[null,null,null,"H744","合同会社クリスタル・クリア・エナジー",null,null,null,null,"K744","株式会社縁人"]
[null,null,null,"H745","株式会社庄内自然エネルギー発電",null,null,null,null,"K745","Ｔ＆Ｔエナジー株式会社"]
[null,null,null,"H746","サニーヘルスホールディングス株式会社",null,null,null,null,"K746","株式会社ルーク"]
[null,null,null,"H747","未来創電指宿山川合同会社",null,null,null,null,"K747","欠番"]
[null,null,null,"H748","会津ソーラーエネルギー合同会社",null,null,null,null,"K748","かけがわ報徳パワー株式会社"]
[null,null,null,"H749","欠番",null,null,null,null,"K749","ＳｕｓｔａｉｎａｂｌｅＥｎｅｒｇｙ株式会社"]
[null,null,null,"H750","合同会社浪江酒井ソーラー",null,null,null,null,"K750","穂の国とよはし電力株式会社"]
[null,null,null,"H751","欠番",null,null,null,null,"K751","欠番"]
[null,null,null,"H752","合同会社福岡みやこソーラーパワー",null,null,null,null,"K752","ＲｅＧｅｎ１００株式会社"]
[null,null,null,"H753","欠番",null,null,null,null,"K753","欠番"]
[null,null,null,"H754","FS　Japan　Project　６合同会社",null,null,null,null,"K754","イワタニ北海道株式会社"]
[null,null,null,"H755","神岡鉱業株式会社",null,null,null,null,"K755","ホームタウンエナジー株式会社"]
[null,null,null,"H756","しろくま電力株式会社",null,null,null,null,"K756","株式会社彩の国でんき"]
[null,null,null,"H757","合同会社ソーラーファーム南さつま",null,null,null,null,"K757","株式会社ＳＣＮ電力"]
[null,null,null,"H758","合同会社下小鯖ソーラー",null,null,null,null,"K758","欠番"]
[null,null,null,"H759","Beppu　Solar　合資会社",null,null,null,null,"K759","株式会社ｅパワー"]
[null,null,null,"H760","横浜風力開発株式会社",null,null,null,null,"K760","株式会社みやきエネルギー"]
[null,null,null,"H761","エア・ウォーター小名浜バイオマス電力株式会社　",null,null,null,null,"K761","株式会社クリーンベンチャー２１"]
[null,null,null,"H762","安比地熱株式会社",null,null,null,null,"K762","三河商事株式会社"]
[null,null,null,"H763","石川花見月１合同会社",null,null,null,null,"K763","株式会社みとや"]
[null,null,null,"H764","伊勢志摩メガソーラー合同会社",null,null,null,null,"K764","三州電力株式会社"]
[null,null,null,"H765","株式会社一条メガソーラー",null,null,null,null,"K765","欠番"]
[null,null,null,"H766","有限会社新日邦",null,null,null,null,"K766","沖縄新エネ開発株式会社"]
[null,null,null,"H767","日本再生可能エネルギー発電２０１７－４号合同会社",null,null,null,null,"K767","欠番"]
[null,null,null,"H768","FS　Japan　Project　２３合同会社",null,null,null,null,"K768","つづくみらいエナジー株式会社"]
[null,null,null,"H769","FS　Japan　Project　１合同会社",null,null,null,null,"K769","欠番"]
[null,null,null,"H770","サーラｅパワー株式会社",null,null,null,null,"K770","ＥＧトレーディング合同会社"]
[null,null,null,"H771","合同会社御前崎港バイオマスエナジー",null,null,null,null,"K771","欠番"]
[null,null,null,"H772","欠番",null,null,null,null,"K772","株式会社ほくだん"]
[null,null,null,"H773","七尾メガソーラー合同会社",null,null,null,null,"K773","欠番"]
[null,null,null,"H774","テクノロジーバンク株式会社",null,null,null,null,"K774","株式会社エスコ"]
[null,null,null,"H775","宇久島みらいエネルギー合同会社",null,null,null,null,"K775","株式会社Ｑｖｏｕ"]
[null,null,null,"H776","紋別太陽光発電合同会社",null,null,null,null,"K776","株式会社コノミヤホールディングス"]
[null,null,null,"H777","福島ガス発電株式会社",null,null,null,null,"K777","森の国から電力株式会社"]
[null,null,null,"H778","欠番",null,null,null,null,"K778","自由でんき株式会社"]
[null,null,null,"H779","合同会社ＪＲＥ阿蘇高森",null,null,null,null,"K779","住友商事株式会社"]
[null,null,null,"H780","合同会社ＪＲＥインベストメント２号",null,null,null,null,"K780","欠番"]
[null,null,null,"H781","合同会社ＳＳひだかの森",null,null,null,null,"K781","欠番"]
[null,null,null,"H782","欠番",null,null,null,null,"K782","欠番"]
[null,null,null,"H783","宇部西沖ソーラーエナジー合同会社",null,null,null,null,"K783","株式会社丸の内電力"]
[null,null,null,"H784","合同会社鴻草渋川エナジー",null,null,null,null,"K784","欠番"]
[null,null,null,"H785","株式会社ＳＪソーラー北海道",null,null,null,null,"K785","株式会社中京電力"]
[null,null,null,"H786","株式会社ジェイウインド上ノ国",null,null,null,null,"K786","箕面ゆずる電力株式会社"]
[null,null,null,"H787","ＣＥＰＯ半田バイオマス発電株式会社",null,null,null,null,"K787","株式会社クオリティプラス"]
[null,null,null,"H788","相生バイオエナジー株式会社",null,null,null,null,"K788","Ｙ．Ｗ．Ｃ株式会社"]
[null,null,null,"H789","ＳＳＪメガソーラー６９合同会社",null,null,null,null,"K789","株式会社フジコー"]
[null,null,null,"H790","欠番",null,null,null,null,"K790","株式会社ミライネクト"]
[null,null,null,"H791","欠番",null,null,null,null,"K791","シャチ電工株式会社"]
[null,null,null,"H792","大船渡発電株式会社",null,null,null,null,"K792","株式会社そらいろ電力"]
[null,null,null,"H793","松島太陽光発電合同会社",null,null,null,null,"K793","株式会社タケエイ"]
[null,null,null,"H794","株式会社エフオン新宮",null,null,null,null,"K794","株式会社ＭＴエナジー"]
[null,null,null,"H795","合同会社奈義エナジー",null,null,null,null,"K795","ＴＧオクトパスエナジー株式会社"]
[null,null,null,"H796","合同会社ＤＳソーラープロジェクト宮城栗原",null,null,null,null,"K796","Ｋ．Ｇ．ＴＲＡＤＩＮＧ株式会社"]
[null,null,null,"H797","欠番",null,null,null,null,"K797","欠番"]
[null,null,null,"H798","合同会社浜通りエナジー",null,null,null,null,"K798","東北電力フロンティア株式会社"]
[null,null,null,"H799","ＥｘａＳｏｌ合同会社",null,null,null,null,"K799","株式会社エクソル"]
[null,null,null,"H800","株式会社北名古屋クリーンシステム",null,null,null,null,"K800","株式会社ファラデー"]
[null,null,null,"H801","群馬安中太陽光発電合同会社",null,null,null,null,"K801","三菱ＨＣキャピタルエナジー株式会社"]
[null,null,null,"H802","仙台メガソーラー発電合同会社",null,null,null,null,"K802","欠番"]
[null,null,null,"H803","欠番",null,null,null,null,"K803","ＲＥ　ＣＡＰＩＴＡＬ株式会社"]
[null,null,null,"H804","株式会社Ａ－スタイル",null,null,null,null,"K804","大塚ビジネスサポート株式会社"]
[null,null,null,"H805","パシフィコ・エナジー播州メガソーラー合同会社",null,null,null,null,"K805","出雲ケーブルビジョン株式会社"]
[null,null,null,"H806","パシフィコ・エナジー三田メガソーラー合同会社",null,null,null,null,"K806","株式会社トーラス"]
[null,null,null,"H807","千歳風力開発株式会社",null,null,null,null,"K807","株式会社パワーネットワークス"]
[null,null,null,"H808","合同会社Ｂｌｕｅ　Ｐｏｗｅｒ　猪苗代",null,null,null,null,"K808","いずも縁結び電力株式会社"]
[null,null,null,"H809","合同会社Ｂｌｕｅ　Ｐｏｗｅｒ　福島西郷",null,null,null,null,"K809","恵那電力株式会社"]
[null,null,null,"H810","王子エフテックス株式会社",null,null,null,null,"K810","宇都宮ライトパワー株式会社"]
[null,null,null,"H811","欠番",null,null,null,null,"K811","帯広電力株式会社"]
[null,null,null,"H812","沖縄うるまニューエナジー株式会社",null,null,null,null,"K812","フジ物産株式会社"]
[null,null,null,"H813","合同会社ＧＳＳＥ",null,null,null,null,"K813","Ｔｒａｆｉｇｕｒａ　Ｊａｐａｎ株式会社"]
[null,null,null,"H814","下関洋上風力発電合同会社",null,null,null,null,"K814","金沢エナジー株式会社"]
[null,null,null,"H815","欠番",null,null,null,null,"K815","株式会社シモセ"]
[null,null,null,"H816","野辺地風力開発株式会社",null,null,null,null,"K816","欠番"]
[null,null,null,"H817","磯原太陽光発電合同会社",null,null,null,null,"K817","Ｅｎｅｒｇｙ　Ｃｒｅａｔｉｏｎ株式会社"]
[null,null,null,"H818","日本エコエナジー合同会社",null,null,null,null,"K818","エナジーグリッド株式会社"]
[null,null,null,"H819","ＥＳ　ＮＰＶ５合同会社",null,null,null,null,"K819","株式会社なんとエナジー"]
[null,null,null,"H820","欠番",null,null,null,null,"K820","ＥＤＦ　Ｔｒａｄｉｎｇ　Ｊａｐａｎ株式会社"]
[null,null,null,"H821","協栄ソーラーステーション合同会社",null,null,null,null,"K821","株式会社ボーダレス・ジャパン"]
[null,null,null,"H822","欠番",null,null,null,null,"K822","株式会社ワット"]
[null,null,null,"H823","豊前ニューエナジー合同会社",null,null,null,null,"K823","ジケイ・スペース株式会社"]
[null,null,null,"H824","青森新城山田発電所合同会社",null,null,null,null,"K824","広島ガス株式会社"]
[null,null,null,"H825","東北エコパワーステーション合同会社",null,null,null,null,"K825","欠番"]
[null,null,null,"H826","第四Ｑソーラー合同会社",null,null,null,null,"K826","株式会社ＩＱｇ"]
[null,null,null,"H827","合同会社高知室戸ソーラーパワー",null,null,null,null,"K827","欠番"]
[null,null,null,"H828","黒川発電所合同会社",null,null,null,null,"K828","株式会社ＦＰＳ"]
[null,null,null,"H829","合同会社ＮＲＥ－４２インベストメント",null,null,null,null,"K829","大熊るるるん電力株式会社"]
[null,null,null,"H830","合同会社ＪＲＥ鶴岡八森山",null,null,null,null,"K830","株式会社ビーエイブル"]
[null,null,null,"H831","株式会社Ｇｌｏｂａｌ　Ｎｅｗ　Ｅｎｅｒｇｙ　Ｔｏｇｏ",null,null,null,null,"K831","欠番"]
[null,null,null,"H832","川崎ソーラーファーム合同会社",null,null,null,null,"K832","エーステクノロジー株式会社"]
[null,null,null,"H833","川西ソーラーファーム合同会社",null,null,null,null,"K833","おきたま新電力株式会社"]
[null,null,null,"H834","日本再生可能エネルギー発電２０１７－５号合同会社",null,null,null,null,"K834","Ｗｅｌｌ　Ｅｎｅｒｇｙ株式会社"]
[null,null,null,"H835","ＳＧＥＴ岩泉ウインドファーム合同会社",null,null,null,null,"K835","カスタマイズドエナジーソリューションズジャパン株式会社"]
[null,null,null,"H836","合同会社ＲＳ茨城国木原",null,null,null,null,"K836","イオン株式会社"]
[null,null,null,"H837","合同会社ＪＲＥ宮城加美",null,null,null,null,"K837","河原実業株式会社"]
[null,null,null,"H838","合同会社石巻ひばり野バイオマスエナジー",null,null,null,null,"K838","粋裕株式会社"]
[null,null,null,"H839","ＳＧＥＴ大田原メガソーラー合同会社",null,null,null,null,"K839","一般社団法人地域資源活用推進協会"]
[null,null,null,"H840","ロイヤルリース株式会社",null,null,null,null,"K840","株式会社ｓｔｃ"]
[null,null,null,"H841","合同会社ＫＳパワー１",null,null,null,null,"K841","株式会社工営エナジー"]
[null,null,null,"H842","ＳＧＥＴ三国メガソーラー合同会社",null,null,null,null,"K842","アースシグナルソリューションズ株式会社"]
[null,null,null,"H843","茨城塙ウインド合同会社",null,null,null,null,"K843","日本電力供給株式会社"]
[null,null,null,"H844","留寿都ウインド合同会社",null,null,null,null,"K844","青山株式会社"]
[null,null,null,"H845","Ｉｎａｗａｓｈｉｒｏ　Ｓｏｌａｒ　合資会社",null,null,null,null,"K845","シントウエナジー株式会社"]
[null,null,null,"H846","稲庭ウインド合同会社",null,null,null,null,"K846","那須野ヶ原みらい電力株式会社"]
[null,null,null,"H847","Ｅｎｅｒｇｙ　Ｇａｔｅ　合同会社",null,null,null,null,"K847","ＥｌｅｃｔｒｏＲｏｕｔｅ　Ｊａｐａｎ株式会社"]
[null,null,null,"H848","大洲バイオマス発電株式会社",null,null,null,null,"K848","株式会社ＪＥＲＡグローバルマーケッツ"]
[null,null,null,"H849","パシフィコ・エナジー佐野合同会社",null,null,null,null,"K849","柏崎あい・あーるエナジー株式会社"]
[null,null,null,"H850","合同会社開発８号",null,null,null,null,"K850","おおなんきらりエネルギー株式会社"]
[null,null,null,"H851","合同会社吾妻高原ウィンドファーム",null,null,null,null,"K851","京セラ株式会社"]
[null,null,null,"H852","ジェイバリュー信託株式会社",null,null,null,null,"K852","ＥｌｅｃＯＮＥ株式会社"]
[null,null,null,"H853","合同会社一関大東",null,null,null,null,"K853","株式会社鳥取みらい電力"]
[null,null,null,"H854","鹿島パワー株式会社",null,null,null,null,"K854","鈴鹿グリーンエナジー株式会社"]
[null,null,null,"H855","合同会社多治見北小木",null,null,null,null,"K855","一般社団法人東北自動車産業グリーンエネルギー普及協会"]
[null,null,null,"H856","広畑バイオマス発電株式会社",null,null,null,null,"K856","刈谷知立みらい電力株式会社"]
[null,null,null,"H857","ウッドレイク合同会社",null,null,null,null,"K857","株式会社フレックス"]
[null,null,null,"H858","合同会社ＳＪソーラー白河１号",null,null,null,null,"K858","有限会社本郷工業"]
[null,null,null,"H859","エイコーエナジオ株式会社",null,null,null,null,"K859","株式会社パワーエックス"]
[null,null,null,"H860","大分バイオマスエナジー合同会社",null,null,null,null,"K860","ＭＦＴ　Ｅｎｅｒｇｙ　ＡＰＡＣ３株式会社"]
[null,null,null,"H861","中標津ソーラー合同会社",null,null,null,null,"K861","いちのみや未来エネルギー株式会社"]
[null,null,null,"H862","西川登ソーラー合同会社",null,null,null,null,"K862","岡谷酸素株式会社"]
[null,null,null,"H863","宮崎国富ソーラーパーク合同会社",null,null,null,null,"K863","ＧＢＰ株式会社"]
[null,null,null,"H864","那須塩原アグリソーラー合同会社",null,null,null,null,"K864","株式会社ＳＡＮＷＡみらい電力"]
[null,null,null,"H865","四日市足見川メガソーラー合同会社",null,null,null,null,"K865","株式会社絆"]
[null,null,null,"H866","Ｋクリーンエナジー・スリー株式会社",null,null,null,null,"K866","三菱電機フィナンシャルソリューションズ株式会社"]
[null,null,null,"H867","エコプレクサス山田プロジェクト合同会社",null,null,null,null,"K867","東北エネルギーサービス株式会社"]
[null,null,null,"H868","株式会社さくらソーラー",null,null,null,null,"K868","株式会社いなしきエナジー"]
[null,null,null,"H869","恵庭開発株式会社",null,null,null,null,"K869","ながのスマートパワー株式会社"]
[null,null,null,"H870","合同会社東日本Ｓｏｌａｒ１３",null,null,null,null,"K870","株式会社ホクレン油機サービス"]
[null,null,null,"H871","株式会社日本海水ＴＴＳ苅田パワー",null,null,null,null,"K871","株式会社ＪＲ東日本商事"]
[null,null,null,"H872","山梨甲斐東平メガソーラー発電合同会社",null,null,null,null,"K872","二次資源ホールディングス株式会社"]
[null,null,null,"H873","合同会社千葉香取ソーラーパワー",null,null,null,null,"K873","株式会社シーラソーラー"]
[null,null,null,"H874","山口由宇太陽光発電合同会社",null,null,null,null,"K874","Ｆｏｒｗａｒｄ　Ｔｒａｄｉｎｇ株式会社"]
[null,null,null,"H875","合同会社ＲＪソーラー",null,null,null,null,"K875","川崎未来エナジー株式会社"]
[null,null,null,"H876","合同会社開発２８号",null,null,null,null,"K876","Ｅ－Ｆｌｏｗ合同会社"]
[null,null,null,"H877","合同会社西郷羽太",null,null,null,null,"K877","エンフィニティ・エナジー株式会社"]
[null,null,null,"H878","王子グリーンエナジー徳島株式会社",null,null,null,null,"K878","岡山ガス株式会社"]
[null,null,null,"H879","千葉長南発電所合同会社",null,null,null,null,"K879","株式会社Ｅｎｅｒｇｙ　ｐｒｏ"]
[null,null,null,"H880","合同会社地方創生太陽光発電所２号",null,null,null,null,"K880","欠番"]
[null,null,null,"H881","欠番",null,null,null,null,"K881","合同会社グリーンパワーリテイリング"]
[null,null,null,"H882","ＤＥＩソーラーファンドアルファ合同会社",null,null,null,null,"K882","株式会社いずみみらい"]
[null,null,null,"H883","姫路天然ガス発電株式会社",null,null,null,null,"K883","株式会社ＲＥフォワード"]
[null,null,null,"H884","欠番",null,null,null,null,"K884","株式会社アット東京"]
[null,null,null,"H885","アフターフィット大和那珂太陽光合同会社",null,null,null,null,"K885","株式会社グリーングロース"]
[null,null,null,"H886","南関ソーラーファーム合同会社",null,null,null,null,"K886","Ａｘｐｏ　Ｊａｐａｎ株式会社"]
[null,null,null,"H887","釧路メガソーラー合同会社",null,null,null,null,"K887","Ｔｗｉｇ　Ｋｕｒｉ合同会社"]
[null,null,null,"H888","中国電力ネットワーク株式会社",null,null,null,null,"K888","株式会社エクスゲート"]
[null,null,null,"H889","九州電力送配電株式会社",null,null,null,null,"K889","宮崎瓦斯株式会社"]
[null,null,null,"H890","福島富岡ソーラーキャッスル合同会社",null,null,null,null,"K890","合同会社エコパワー"]
[null,null,null,"H891","欠番",null,null,null,null,"K891","株式会社つるエネルギー"]
[null,null,null,"H892","北海道電力ネットワーク株式会社",null,null,null,null,"K892","川重商事株式会社"]
[null,null,null,"H893","東北電力ネットワーク株式会社",null,null,null,null,"K893","株式会社ＪＥＲＡ　Ｃｒｏｓｓ"]
[null,null,null,"H894","合同会社ＪＲＥ折爪岳南１",null,null,null,null,"K894","飛騨高山電力株式会社"]
[null,null,null,"H895","広島市",null,null,null,null,"K895","大平洋金属株式会社"]
[null,null,null,"H896","昭和プランニング株式会社",null,null,null,null,"K896","パシフィコ・エナジー株式会社"]
[null,null,null,"H897","杉之沢太陽光発電所合同会社",null,null,null,null,"K897","欠番"]
[null,null,null,"H898","合同会社飛騨高山ソーラーヒルズ",null,null,null,null,"K898","株式会社ｚｅｐｌｕｓ"]
[null,null,null,"H899","欠番",null,null,null,null,"K899","ＥＮＥＯＳ　Ｐｏｗｅｒ株式会社"]
[null,null,null,"H900","欠番",null,null,null,null,"K900","株式会社レックス"]
[null,null,null,"H901","ＧＳＳＧ　Ｓｏｌａｒ　Ｊａｐａｎ　Ｈｏｌｄｉｎｇｓ　８合同会社",null,null,null,null,"K901","Ｘ‐ｅｎｅｒｇｙ　Ｊａｐａｎ株式会社"]
[null,null,null,"H902","鳥羽太陽光発電合同会社",null,null,null,null,"K902","株式会社リボンエナジー"]
[null,null,null,"H903","合同会社霧島龍馬ソーラーパーク",null,null,null,null,"K903","株式会社平成興産"]
[null,null,null,"H904","合同会社阿武隈ソーラー",null,null,null,null,"K904","株式会社大崎クリエーション"]
[null,null,null,"H905","欠番",null,null,null,null,"K905","欠番"]
[null,null,null,"H906","合同会社那須烏山ソーラー",null,null,null,null,"K906","株式会社ＵＰＸ"]
[null,null,null,"H907","合同会社軽米東ソーラー",null,null,null,null,"K907","株式会社ＣｌａｓｓＬａｂ．"]
[null,null,null,"H908","合同会社軽米西ソーラー",null,null,null,null,"K908","株式会社ＥＭＣ"]
[null,null,null,"H909","浪江谷津田復興ソーラー合同会社",null,null,null,null,"K909","Ｍｉｒａｉつのエナジー株式会社"]
[null,null,null,"H910","合同会社四日市ソーラー",null,null,null,null,"K910","欠番"]
[null,null,null,"H911","合同会社ＪＲＥ第二中九州風力",null,null,null,null,"K911","自然電力いなべ株式会社"]
[null,null,null,"H912","合同会社日光ソーラー",null,null,null,null,"K912","株式会社ＤＫ－Ｐｏｗｅｒ"]
[null,null,null,"H913","欠番",null,null,null,null,"K913","株式会社ｅＸｓｔｅｎｄ"]
[null,null,null,"H914","東京電力リニューアブルパワー株式会社",null,null,null,null,"K914","イー・トップ株式会社"]
[null,null,null,"H915","ＦＳ　Ｊａｐａｎ　Ｐｒｏｊｅｃｔ　２６合同会社",null,null,null,null,"K915","株式会社ナンワ"]
[null,null,null,"H916","欠番",null,null,null,null,"K916","株式会社インカムハウス"]
[null,null,null,"H917","欠番",null,null,null,null,"K917","相鉄クリーンエナジー株式会社"]
[null,null,null,"H918","合同会社杜の都バイオマスエナジー",null,null,null,null,"K918","なかよし電力株式会社"]
[null,null,null,"H919","Ｉｗａｔｅ　Ｍｉｚｕｓａｗａ　Ｓｏｌａｒ　合資会社",null,null,null,null,"K919","欠番"]
[null,null,null,"H920","合同会社鮫川エナジー",null,null,null,null,"K920","株式会社テラス"]
[null,null,null,"H921","アフターフィット大和白老町竹浦ソーラー合同会社",null,null,null,null,"K921","株式会社ジェイシーエス"]
[null,null,null,"H922","野津ソーラー合同会社",null,null,null,null,"K922","株式会社奈良森林資源保全公社"]
[null,null,null,"H923","合同会社メガソーラー市島発電所",null,null,null,null,"K923","株式会社エネパル"]
[null,null,null,"H924","ＥＳ　ＮＰＶ２合同会社",null,null,null,null,"K924","株式会社アクセルパワー"]
[null,null,null,"H925","株式会社釧路火力発電所",null,null,null,null,"K925","半田・知多地域エネルギー株式会社"]
[null,null,null,"H926","苫東安平ソーラーパーク２合同会社",null,null,null,null,"K926","山口グリーンエネルギー株式会社"]
[null,null,null,"H927","リコーリース株式会社",null,null,null,null,"K927","ＫＭｅｎｅｒｇｙ株式会社"]
[null,null,null,"H928","北海道八雲ソーラーパーク合同会社",null,null,null,null,"K928","最適でんき株式会社"]
[null,null,null,"H929","ＣＥＦ株式会社",null,null,null,null,"K929","株式会社クリーンエナジーコネクト"]
[null,null,null,"H930","飯塚ＰＯＷＥＲ　ＰＬＡＮＴ合同会社",null,null,null,null,"K930","若松ガス株式会社"]
[null,null,null,"H931","朝日ガスエコソリューション株式会社",null,null,null,null,"K931","株式会社はちまんたいジオパワー"]
[null,null,null,"H932","プライムソーラー２合同会社",null,null,null,null,"K932","欠番"]
[null,null,null,"H933","ヘップエスピーブイ８ジャパン株式会社",null,null,null,null,"K933","株式会社海響みらい電力"]
[null,null,null,"H934","合同会社ＮＲＥ－１０インベストメント",null,null,null,null,"K934","新潟電力株式会社"]
[null,null,null,"H935","合同会社鈴鹿太陽光発電所",null,null,null,null,"K935","株式会社ロジック"]
[null,null,null,"H936","欠番",null,null,null,null,"K936","ＲＥ　Ｐｏｗｅｒ　Ｃｏｎｎｅｃｔ株式会社"]
[null,null,null,"H937","苅田バイオマスエナジー株式会社",null,null,null,null,"K937","つばさでんき株式会社"]
[null,null,null,"H938","ＰｕｒｐｌｅＳｏｌ合同会社",null,null,null,null,"K938","松本平ゼロカーボンエネルギー株式会社"]
[null,null,null,"H939","合同会社リニューアブルエナジー岐阜",null,null,null,null,"K939","株式会社Ｆｌｙｉｎｇ　Ｄｕｃｋ"]
[null,null,null,"H940","合同会社ＮＲＥ－２４インベストメント",null,null,null,null,"K940","欠番"]
[null,null,null,"H941","ナチュラルエナジーパートナーズ太陽光発電ａ合同会社",null,null,null,null,"K941","一般社団法人清水町ゆうすい未来機構"]
[null,null,null,"H942","太陽光パーク２合同会社",null,null,null,null,"K942","株式会社セブン＆アイ・エナジーマネジメント"]
[null,null,null,"H943","合同会社ユーラス三大明神風力",null,null,null,null,"K943","たかさき新電力株式会社"]
[null,null,null,"H944","合同会社ユーラス田人風力",null,null,null,null,"K944","雷神エナジー合同会社"]
[null,null,null,"H945","合同会社ＮＲＥ－３６インベストメント",null,null,null,null,"K945","株式会社エネマイル"]
[null,null,null,"H946","欠番",null,null,null,null,"K946","株式会社ヒュージモリ商事"]
[null,null,null,"H947","徳島津田バイオマス発電所合同会社",null,null,null,null,"K947","株式会社ＧＲコンサルティング"]
[null,null,null,"H948","欠番",null,null,null,null,"K948","Ｉｎ　Ｃｏｍｍｏｄｉｔｉｅｓ　ＪＰ合同会社"]
[null,null,null,"H949","ＺＥＣ３合同会社",null,null,null,null,"K949","栗東市民でんりょく株式会社"]
[null,null,null,"H950","ケーピーエネルギー合同会社",null,null,null,null,"K950","辻・本郷スマートアセット株式会社"]
[null,null,null,"H951","合同会社ＮＲＥ－１９インベストメント",null,null,null,null,"K951","ゴールドマン・サックス証券株式会社"]
[null,null,null,"H952","合同会社ＲＪソーラー２",null,null,null,null,"K952","よっかいちクリーンエネルギー株式会社"]
[null,null,null,"H953","福島松川太陽光発電事業合同会社",null,null,null,null,"K953","株式会社太陽堂"]
[null,null,null,"H954","合同会社ＮＲＥ－３２インベストメント",null,null,null,null,"K954","株式会社エクスレイ"]
[null,null,null,"H955","合同会社ＳＪソーラー那須烏山",null,null,null,null,"K955","ＭＵＦＧトレーディング株式会社"]
[null,null,null,"H956","株式会社日本ベネックス",null,null,null,null,"K956","瀬戸内市民電力株式会社"]
[null,null,null,"H957","欠番",null,null,null,null,"K957","欠番"]
[null,null,null,"H958","豊富Ｗｉｎｄ　Ｅｎｅｒｇｙ合同会社",null,null,null,null,"K958","グリッドプラスホールディングス株式会社"]
[null,null,null,"H959","ＮＯＢＳＰ合同会社",null,null,null,null,"K959","株式会社グリムスエナジー"]
[null,null,null,"H960","株式会社そら’ｐ",null,null,null,null,"K960","楽天モバイル株式会社"]
[null,null,null,"H961","株式会社Ｌｏｏｏｐ",null,null,null,null,"K961","ＥＮＥＸＩＡ合同会社"]
[null,null,null,"H962","ｓａｆｅｒａｙ　Ｊａｐａｎ　ｐｒｏｊｅｃｔ　ｐｏｒｔｆｏｌｉｏ合資会社",null,null,null,null,"K962","ｍａｎｏｒｄａいわて株式会社"]
[null,null,null,"H963","欠番",null,null,null,null,"K963","一般社団法人北広島町地域エネルギー会社"]
[null,null,null,"H964","デンカ株式会社",null,null,null,null,"K964","株式会社いくさかてらす"]
[null,null,null,"H965","福島県石川第一発電所合同会社",null,null,null,null,"K965","東光電気工事株式会社"]
[null,null,null,"H966","欠番",null,null,null,null,"K966","Ｖｉｔｏｌ　Ｊａｐａｎ株式会社"]
[null,null,null,"H967","欠番",null,null,null,null,"K967","株式会社足立本店"]
[null,null,null,"H968","バイオパワー苅田合同会社",null,null,null,null,"K968","ゆすはらエネルギー株式会社"]
[null,null,null,"H969","東京産業株式会社",null,null,null,null,"K969","フィデアエナジー株式会社"]
[null,null,null,"H970","ＺＥＣ２合同会社",null,null,null,null,"K970","日産自動車株式会社"]
[null,null,null,"H971","神流町太陽光発電所合同会社",null,null,null,null,"K971","株式会社かさいスマートエナジー"]
[null,null,null,"H972","合同会社茨城牛久ソーラーパワー",null,null,null,null,"K972","九電みらいエナジー株式会社"]
[null,null,null,"H973","合同会社Ｂｌｕｅ　Ｐｏｗｅｒ箱根",null,null,null,null,"K973","九電ネクスト株式会社"]
[null,null,null,"H974","アマテラス・ソーラー合同会社",null,null,null,null,"K974","株式会社Ａｒｉｇｈｔ"]
[null,null,null,"H975","ＳＧＥＴ片品メガソーラー合同会社",null,null,null,null,"K975","株式会社サニックス資源開発グループ"]
[null,null,null,"H976","エネ・シード株式会社",null,null,null,null,"K976","ユビ電株式会社"]
[null,null,null,"H977","南会津太陽光発電所合同会社",null,null,null,null,"K977","Ｈａｒｔｒｅｅ　Ｐａｒｔｎｅｒｓ　Ｊａｐａｎ合同会社"]
[null,null,null,"H978","ＪＰＳ第２０号株式会社",null,null,null,null,"K978","株式会社フィックスパワー"]
[null,null,null,"H979","ＳＧＥＴ南相馬メガソーラー合同会社",null,null,null,null,"K979","株式会社ユーラスエナジーホールディングス"]
[null,null,null,"H980","ＳＧＥＴ原町南メガソーラー合同会社",null,null,null,null,"K980","株式会社ＲＵＴＩＬＥＡ"]
[null,null,null,"H981","ＹＭＧ合同会社",null,null,null,null,"K981","株式会社ツジデン"]
[null,null,null,"H982","犬山太陽光発電所合同会社",null,null,null,null,"K982","久喜新電力株式会社"]
[null,null,null,"H983","合同会社開発７２号",null,null,null,null,"K983","沖縄セルラー電話株式会社"]
[null,null,null,"H984","愛知蒲郡バイオマス発電合同会社",null,null,null,null,"K984","株式会社イクロス"]
[null,null,null,"H985","合同会社道北風力",null,null,null,null,"K985","株式会社オリエントシステム"]
[null,null,null,"H986","合同会社有水太陽光発電所",null,null,null,null,"K986","Ｓｕｓｔａｉｎｅｒｇｙ　Ｐｏｗｅｒ　Ｊａｐａｎ株式会社"]
[null,null,null,"H987","合同会社グリーンパワー深浦",null,null,null,null,"K987","イーグルエナジー合同会社"]
[null,null,null,"H988","合同会社南相馬小木迫太陽の郷６号",null,null,null,null,"K988","ＨｅＬＭ　Ａｇｇｒｅｇａｔｉｏｎ株式会社"]
[null,null,null,"H989","小安地熱株式会社",null,null,null,null,"K989","鹿追未来エネルギー株式会社"]
[null,null,null,"H990","欠番",null,null,null,null,"K990","ヘキサ・エネルギーサービス合同会社"]
[null,null,null,"H991","ＥＢＮ太陽光発電合同会社",null,null,null,null,"K991","ヤマトエナジーマネジメント株式会社"]
[null,null,null,"H992","赤磐ソーラーエナジー合同会社",null,null,null,null,"K992","株式会社サントエナジーうえだ"]
[null,null,null,"H993","株式会社九電工福王山太陽光発電所",null,null,null,null,"K993","株式会社クロスワン"]
[null,null,null,"H994","株式会社ＢＰＳ大東",null,null,null,null,"K994","株式会社　ひめじ電力"]
[null,null,null,"H995","石狩グリーンエナジー株式会社",null,null,null,null,"K995","セーバー技研株式会社"]
[null,null,null,"H996","ＱソーラーＢ合同会社",null,null,null,null,"K996","株式会社ふるなび電力"]
[null,null,null,"H997","広野町サステナブルエナジー合同会社",null,null,null,null,"K997","ヒューリックエナジーソリューション株式会社"]
[null,null,null,"H998","合同会社とっとりＹＤソーラー",null,null,null,null,"K998","Ａｐａｍａｎ　Ｐｒｏｐｅｒｔｙ株式会社"]
[null,null,null,"H999","株式会社そら’ｒ",null,null,null,null,"K999","株式会社Ａ＆Ｔ　Ｐｏｗｅｒ　Ｓｏｌｕｔｉｏｎｓ"]
[null,null,null,"H1000","野村不動産熱供給株式会社",null,null,null,null,"K1000","Ｅｎｅｒｇｙ　Ｐａｙ合同会社"]
[null,null,null,"H1001","欠番",null,null,null,null,"K1001","株式会社Ｂ’ｓ　ＳＴＹＬＥ"]
[null,null,null,"H1002","ＳＭＦＬみらいパートナーズ株式会社",null,null,null,null,"K1002","北海道再エネアグリゲーション株式会社"]
[null,null,null,"H1003","株式会社シャロンテック",null,null,null,null,"K1003","パワープール株式会社"]
[null,null,null,"H1004","欠番",null,null,null,null,"K1004","三菱マテリアル株式会社"]
[null,null,null,"H1005","ＰＳ出雲合同会社",null,null,null,null,"K1005","株式会社Ｗｉｔｈみやざき"]
[null,null,null,"H1006","欠番",null,null,null,null,"K1006","株式会社リレー"]
[null,null,null,"H1007","恒輝株式会社",null,null,null,null,"K1007","おきなわパワーＨＤ株式会社"]
[null,null,null,"H1008","英田光メガソーラー発電合同会社",null,null,null,null,"K1008","中泊リージョナルパワー株式会社"]
[null,null,null,"H1009","合同会社まんのう・丸亀太陽光発電所",null,null,null,null,"K1009","キーエナジー合同会社"]
[null,null,null,"H1010","ＡＣ７合同会社",null,null,null,null,"K1010","燈・アンド・カンパニー株式会社"]
[null,null,null,"H1011","二本松太陽光発電合同会社",null,null,null,null,"K1011","ブルースカイソーラー株式会社"]
[null,null,null,"H1012","シリウス・ソーラー・ジャパン１１合同会社",null,null,null,null,"K1012","株式会社スマートパワーシステム"]
[null,null,null,"H1013","豊畑放牧場風力開発株式会社",null,null,null,null,"K1013","株式会社操電"]
[null,null,null,"H1014","清水建設株式会社",null,null,null,null,"K1014","アークエルエナジー株式会社"]
[null,null,null,"H1015","イー・トップ株式会社",null,null,null,null,"K1015","静銀リース株式会社"]
[null,null,null,"H1016","株式会社フロンティア・サンワ",null,null,null,null,"K1016","株式会社バランスハーツ"]
[null,null,null,"H1017","欠番",null,null,null,null,"K1017","近畿住設株式会社"]
[null,null,null,"H1018","槇川正木ウィンドファーム合同会社",null,null,null,null,"K1018","Ｎｉｔｅｒｒａ電力株式会社",null,"　　"]
[null,null,null,"H1019","伏木万葉埠頭バイオマス発電合同会社",null,null,null,null,"K1019","株式会社ＧＲＥＥＮ　ＡＣＴＩＯＮ"]
[null,null,null,"H1020","宮城大郷ソーラーパーク合同会社",null,null,null,null,"K1020"]
[null,null,null,"H1021","えびの市浦太陽光発電所合同会社",null,null,null,null,"K1021"]
[null,null,null,"H1022","合同会社唐津バイオマスエナジー",null,null,null,null,"K1022"]
[null,null,null,"H1023","Ｅｎｅｒｇｙ　Ｇａｔｅ２合同会社",null,null,null,null,"K1023"]
[null,null,null,"H1024","合同会社軽米尊坊ソーラー",null,null,null,null,"K1024"]
[null,null,null,"H1025","欠番",null,null,null,null,"K1025"]
[null,null,null,"H1026","日本ＢＳＬ株式会社",null,null,null,null,"K1026"]
[null,null,null,"H1027","株式会社ウエストエネルギーソリューション",null,null,null,null,"K1027"]
[null,null,null,"H1028","合同会社ＮＲＥ－２０インベストメント",null,null,null,null,"K1028"]
[null,null,null,"H1029","合同会社グリーンパワー稲庭田子",null,null,null,null,"K1029"]
[null,null,null,"H1030","ＣＥＳ水俣太陽光発電所合同会社",null,null,null,null,"K1030"]
[null,null,null,"H1031","合同会社アサヒ飯塚",null,null,null,null,"K1031"]
[null,null,null,"H1032","ＳＧＥＴ新白河メガソーラー合同会社",null,null,null,null,"K1032"]
[null,null,null,"H1033","つくば営農型太陽光発電株式会社",null,null,null,null,"K1033"]
[null,null,null,"H1034","株式会社コベルコパワー神戸第二",null,null,null,null,"K1034"]
[null,null,null,"H1035","福島郡山みらいエネルギー合同会社",null,null,null,null,"K1035"]
[null,null,null,"H1036","リージョナルパワー株式会社",null,null,null,null,"K1036"]
[null,null,null,"H1037","合同会社ＮＲＥ－２１インベストメント",null,null,null,null,"K1037"]
[null,null,null,"H1038","合同会社ユーラス伊達北黄金風力",null,null,null,null,"K1038"]
[null,null,null,"H1039","合同会社南相馬村上福岡ソーラー",null,null,null,null,"K1039"]
[null,null,null,"H1040","合同会社ＮＲＥ－３７インベストメント",null,null,null,null,"K1040"]
[null,null,null,"H1041","欠番",null,null,null,null,"K1041"]
[null,null,null,"H1042","リニューアブル・ジャパン株式会社",null,null,null,null,"K1042"]
[null,null,null,"H1043","阿賀野メガソーラー合同会社",null,null,null,null,"K1043"]
[null,null,null,"H1044","株式会社ＷＩＮＤ－ＳＭＩＬＥ",null,null,null,null,"K1044"]
[null,null,null,"H1045","周南パワー株式会社",null,null,null,null,"K1045"]
[null,null,null,"H1046","ＵＢＥ三菱セメント株式会社",null,null,null,null,"K1046"]
[null,null,null,"H1047","欠番",null,null,null,null,"K1047"]
[null,null,null,"H1048","七ヶ宿白石風力発電株式会社",null,null,null,null,"K1048"]
[null,null,null,"H1049","株式会社野馬追サステナジー",null,null,null,null,"K1049"]
[null,null,null,"H1050","欠番",null,null,null,null,"K1050"]
[null,null,null,"H1051","鹿児島市",null,null,null,null,"K1051"]
[null,null,null,"H1052","田原バイオマスパワー合同会社",null,null,null,null,"K1052"]
[null,null,null,"H1053","洋野ソーラーエナジー合同会社",null,null,null,null,"K1053"]
[null,null,null,"H1054","六ヶ所村風力開発株式会社",null,null,null,null,"K1054"]
[null,null,null,"H1055","白神ウインド合同会社",null,null,null,null,"K1055"]
[null,null,null,"H1056","栃木宇都宮合同会社",null,null,null,null,"K1056"]
[null,null,null,"H1057","合同会社開発７９号",null,null,null,null,"K1057"]
[null,null,null,"H1058","合同会社ソーラーパーク２号",null,null,null,null,"K1058"]
[null,null,null,"H1059","合同会社クリーンパワー",null,null,null,null,"K1059"]
[null,null,null,"H1060","袖ケ浦バイオマス発電株式会社",null,null,null,null,"K1060"]
[null,null,null,"H1061","合同会社ＵＲ高萩ソーラーパーク",null,null,null,null,"K1061"]
[null,null,null,"H1062","吉沢太陽光発電所合同会社",null,null,null,null,"K1062"]
[null,null,null,"H1063","欠番",null,null,null,null,"K1063"]
[null,null,null,"H1064","愛知田原バイオマス発電合同会社",null,null,null,null,"K1064"]
[null,null,null,"H1065","新居浜太陽光合同会社",null,null,null,null,"K1065"]
[null,null,null,"H1066","合同会社ＲＪエネルギー新潟阿賀野",null,null,null,null,"K1066"]
[null,null,null,"H1067","大分杉原太陽光発電所合同会社",null,null,null,null,"K1067"]
[null,null,null,"H1068","合同会社ＢＨ山梨甲斐",null,null,null,null,"K1068"]
[null,null,null,"H1069","ＡＣ２３合同会社",null,null,null,null,"K1069"]
[null,null,null,"H1070","旭メガソーラー勝央発電株式会社",null,null,null,null,"K1070"]
[null,null,null,"H1071","矢吹太陽光発電所合同会社",null,null,null,null,"K1071"]
[null,null,null,"H1072","合同会社石狩郡当別町西当別陸上発電所",null,null,null,null,"K1072"]
[null,null,null,"H1073","合同会社石狩市厚田区聚富陸上発電所",null,null,null,null,"K1073"]
[null,null,null,"H1074","株式会社グリーン電力エンジニアリング",null,null,null,null,"K1074"]
[null,null,null,"H1075","ＨＷＰ株式会社",null,null,null,null,"K1075"]
[null,null,null,"H1076","合同会社玖珠発電所",null,null,null,null,"K1076"]
[null,null,null,"H1077","常磐興産株式会社",null,null,null,null,"K1077"]
[null,null,null,"H1078","合同会社開発４０号",null,null,null,null,"K1078"]
[null,null,null,"H1079","合同会社ＮＲＥ－２３インベストメント",null,null,null,null,"K1079"]
[null,null,null,"H1080","田原グリーンバイオマス合同会社",null,null,null,null,"K1080"]
[null,null,null,"H1081","田原バイオマス発電所合同会社",null,null,null,null,"K1081"]
[null,null,null,"H1082","柏崎ソーラー合同会社",null,null,null,null,"K1082"]
[null,null,null,"H1083","ＦＳ　Ｊａｐａｎ　Ｐｒｏｊｅｃｔ　３９合同会社",null,null,null,null,"K1083"]
[null,null,null,"H1084","駒ヶ根太陽光発電所合同会社",null,null,null,null,"K1084"]
[null,null,null,"H1085","ながとろ町太陽光発電合同会社",null,null,null,null,"K1085"]
[null,null,null,"H1086","合同会社ユーラス常呂能取風力",null,null,null,null,"K1086"]
[null,null,null,"H1087","鳥海南バイオマスパワー株式会社",null,null,null,null,"K1087"]
[null,null,null,"H1088","株式会社ヒデ・ハウジング",null,null,null,null,"K1088"]
[null,null,null,"H1089","勇払エネルギーセンター合同会社",null,null,null,null,"K1089"]
[null,null,null,"H1090","ゼロワットパワー株式会社",null,null,null,null,"K1090"]
[null,null,null,"H1091","株式会社上里建設",null,null,null,null,"K1091"]
[null,null,null,"H1092","株式会社エクシング",null,null,null,null,"K1092"]
[null,null,null,"H1093","合同会社Ｑ’ｓソーラーファンド",null,null,null,null,"K1093"]
[null,null,null,"H1094","ＰＨＯＴＯＮ　ＣＡＰＩＴＡＬ合同会社",null,null,null,null,"K1094"]
[null,null,null,"H1095","テスホールディングス株式会社",null,null,null,null,"K1095"]
[null,null,null,"H1096","青森いわき浜田ソーラー合同会社",null,null,null,null,"K1096"]
[null,null,null,"H1097","合同会社ＮＲＥ－２５インベストメント",null,null,null,null,"K1097"]
[null,null,null,"H1098","合同会社ＮＲＥ－４１インベストメント",null,null,null,null,"K1098"]
[null,null,null,"H1099","合同会社ＮＲＥ－４４インベストメント",null,null,null,null,"K1099"]
[null,null,null,"H1100","合同会社グリーンパワー新浜田",null,null,null,null,"K1100"]
[null,null,null,"H1101","合同会社境港エネルギーパワー",null,null,null,null,"K1101"]
[null,null,null,"H1102","宮床メガソーラー発電合同会社",null,null,null,null,"K1102"]
[null,null,null,"H1103","合同会社水俣エナジー",null,null,null,null,"K1103"]
[null,null,null,"H1104","ひびき発電合同会社",null,null,null,null,"K1104"]
[null,null,null,"H1105","苓北風力合同会社",null,null,null,null,"K1105"]
[null,null,null,"H1106","福山バイオマス発電所合同会社",null,null,null,null,"K1106"]
[null,null,null,"H1107","神栖バイオマス発電所合同会社",null,null,null,null,"K1107"]
[null,null,null,"H1108","戸田ソーラーエナジー深谷合同会社",null,null,null,null,"K1108"]
[null,null,null,"H1109","ＳＥＢＰＣＯ合同会社",null,null,null,null,"K1109"]
[null,null,null,"H1110","パシフィコ・エナジー徳山合同会社",null,null,null,null,"K1110"]
[null,null,null,"H1111","合同会社グリーンパワー宮古岩泉",null,null,null,null,"K1111"]
[null,null,null,"H1112","欠番",null,null,null,null,"K1112"]
[null,null,null,"H1113","大滝山ウィンドエナジー合同会社",null,null,null,null,"K1113"]
[null,null,null,"H1114","御宿町太陽光発電合同会社",null,null,null,null,"K1114"]
[null,null,null,"H1115","Ｘ－Ｅｌｉｏ１３合同会社",null,null,null,null,"K1115"]
[null,null,null,"H1116","合同会社四万十カフス太陽の郷",null,null,null,null,"K1116"]
[null,null,null,"H1117","株式会社だいせん開発",null,null,null,null,"K1117"]
[null,null,null,"H1118","二枚田風力合同会社",null,null,null,null,"K1118"]
[null,null,null,"H1119","株式会社アドバンス",null,null,null,null,"K1119"]
[null,null,null,"H1120","ＣＳ群馬高崎合同会社",null,null,null,null,"K1120"]
[null,null,null,"H1121","福島復興風力合同会社",null,null,null,null,"K1121"]
[null,null,null,"H1122","ＥＮＥＯＳリニューアブル・エナジー株式会社",null,null,null,null,"K1122"]
[null,null,null,"H1123","熊本北部発電合同会社",null,null,null,null,"K1123"]
[null,null,null,"H1124","合同会社開発７１号",null,null,null,null,"K1124"]
[null,null,null,"H1125","アジア風力発電株式会社",null,null,null,null,"K1125"]
[null,null,null,"H1126","株式会社ウィンド・パワー・エナジー",null,null,null,null,"K1126"]
[null,null,null,"H1127","株式会社グリーンシステムコーポレーション",null,null,null,null,"K1127"]
[null,null,null,"H1128","パシフィックソーラーパーク合同会社",null,null,null,null,"K1128"]
[null,null,null,"H1129","山口柳井メガソーラー合同会社",null,null,null,null,"K1129"]
[null,null,null,"H1130","パシフィコ・エナジー白山合同会社",null,null,null,null,"K1130"]
[null,null,null,"H1131","ソーラー・フィールド１０合同会社",null,null,null,null,"K1131"]
[null,null,null,"H1132","エネグローバル株式会社",null,null,null,null,"K1132"]
[null,null,null,"H1133","株式会社太陽設備",null,null,null,null,"K1133"]
[null,null,null,"H1134","ヒューリック株式会社",null,null,null,null,"K1134"]
[null,null,null,"H1135","和歌山御坊バイオマス発電合同会社",null,null,null,null,"K1135"]
[null,null,null,"H1136","株式会社ＲＥＮＥＲＧＹ",null,null,null,null,"K1136"]
[null,null,null,"H1137","ＦＳ　Ｊａｐａｎ　Ｐｒｏｊｅｃｔ　４０合同会社",null,null,null,null,"K1137"]
[null,null,null,"H1138","合同会社グリーンパワー石狩",null,null,null,null,"K1138"]
[null,null,null,"H1139","ひびきウインドエナジー株式会社",null,null,null,null,"K1139"]
[null,null,null,"H1140","合同会社アストロナージ棚倉太陽光",null,null,null,null,"K1140"]
[null,null,null,"H1141","欠番",null,null,null,null,"K1141"]
[null,null,null,"H1142","大栄環境株式会社",null,null,null,null,"K1142"]
[null,null,null,"H1143","五島フローティングウィンドファーム合同会社",null,null,null,null,"K1143"]
[null,null,null,"H1144","鳥羽プロジェクト合同会社",null,null,null,null,"K1144"]
[null,null,null,"H1145","合同会社人吉ソーラー",null,null,null,null,"K1145"]
[null,null,null,"H1146","株式会社平成興産",null,null,null,null,"K1146"]
[null,null,null,"H1147","合同会社グリーンエネルギー",null,null,null,null,"K1147"]
[null,null,null,"H1148","千葉銚子オフショアウィンド合同会社",null,null,null,null,"K1148"]
[null,null,null,"H1149","岡山津山ソーラー合同会社",null,null,null,null,"K1149"]
[null,null,null,"H1150","株式会社ログ",null,null,null,null,"K1150"]
[null,null,null,"H1151","合同会社ソーラーガーデン",null,null,null,null,"K1151"]
[null,null,null,"H1152","栃木市貝太陽光発電合同会社",null,null,null,null,"K1152"]
[null,null,null,"H1153","境港昭和町バイオマス発電合同会社",null,null,null,null,"K1153"]
[null,null,null,"H1154","リニューアブル・エナジー・マネジメント合同会社",null,null,null,null,"K1154"]
[null,null,null,"H1155","真名子ソーラー発電合同会社",null,null,null,null,"K1155"]
[null,null,null,"H1156","市原八幡埠頭バイオマス発電合同会社",null,null,null,null,"K1156"]
[null,null,null,"H1157","ＰＳ袖ヶ浦合同会社",null,null,null,null,"K1157"]
[null,null,null,"H1158","株式会社千葉袖ケ浦パワー",null,null,null,null,"K1158"]
[null,null,null,"H1159","欠番",null,null,null,null,"K1159"]
[null,null,null,"H1160","鳥取風力合同会社",null,null,null,null,"K1160"]
[null,null,null,"H1161","合同会社ＦＳＰＳ八風",null,null,null,null,"K1161"]
[null,null,null,"H1162","いちごえびの末永ＥＣＯ発電所合同会社",null,null,null,null,"K1162"]
[null,null,null,"H1163","欠番",null,null,null,null,"K1163"]
[null,null,null,"H1164","むつ小川原風力合同会社",null,null,null,null,"K1164"]
[null,null,null,"H1165","鳥取西部風力合同会社",null,null,null,null,"K1165"]
[null,null,null,"H1166","ＡＣ２１合同会社",null,null,null,null,"K1166"]
[null,null,null,"H1167","ＡＣ２２合同会社",null,null,null,null,"K1167"]
[null,null,null,"H1168","エクイスバイオエネルギー・ジャパン株式会社",null,null,null,null,"K1168"]
[null,null,null,"H1169","美沢太陽光発電合同会社",null,null,null,null,"K1169"]
[null,null,null,"H1170","石狩湾新港バイオマス発電合同会社",null,null,null,null,"K1170"]
[null,null,null,"H1171","エクイスエネルギー・ジャパン株式会社",null,null,null,null,"K1171"]
[null,null,null,"H1172","Ｍ＆Ｃ鳥取水力発電株式会社",null,null,null,null,"K1172"]
[null,null,null,"H1173","合同会社グリーンパワー下北",null,null,null,null,"K1173"]
[null,null,null,"H1174","福島ソーラーシェア発電所合同会社",null,null,null,null,"K1174"]
[null,null,null,"H1175","合同会社ＲＪソーラー３",null,null,null,null,"K1175"]
[null,null,null,"H1176","合同会社ソーラーパーク",null,null,null,null,"K1176"]
[null,null,null,"H1177","北広島系統用蓄電池合同会社",null,null,null,null,"K1177"]
[null,null,null,"H1178","ＳＧＥＴ新潟蓄電所合同会社",null,null,null,null,"K1178"]
[null,null,null,"H1179","ＳＧＥＴ第１蓄電所合同会社",null,null,null,null,"K1179"]
[null,null,null,"H1180","ＳＧＥＴ水戸蓄電所合同会社",null,null,null,null,"K1180"]
[null,null,null,"H1181","ＳＧＥＴ山武蓄電所合同会社",null,null,null,null,"K1181"]
[null,null,null,"H1182","ＳＧＥＴ札幌２蓄電所合同会社",null,null,null,null,"K1182"]
[null,null,null,"H1183","ＳＧＥＴ札幌１蓄電所合同会社",null,null,null,null,"K1183"]
[null,null,null,"H1184","ＳＧＥＴ浜松蓄電所合同会社",null,null,null,null,"K1184"]
[null,null,null,"H1185","ＳＧＥＴ笠間バイオマス合同会社",null,null,null,null,"K1185"]
[null,null,null,"H1186","北茨城太陽光発電合同会社",null,null,null,null,"K1186"]
[null,null,null,"H1187","福岡地所株式会社",null,null,null,null,"K1187"]
[null,null,null,"H1188","イーディーエフ・ジャパン株式会社",null,null,null,null,"K1188"]
[null,null,null,"H1189","三井住友建設株式会社",null,null,null,null,"K1189"]
[null,null,null,"H1190","いわき三和ウィンドエナジー合同会社",null,null,null,null,"K1190"]
[null,null,null,"H1191","合同会社ＮＲＥ‐４９インベストメント",null,null,null,null,"K1191"]
[null,null,null,"H1192","合同会社ＨＡＲＥ晴れ",null,null,null,null,"K1192"]
[null,null,null,"H1193","丸０１太陽光発電合同会社",null,null,null,null,"K1193"]
[null,null,null,"H1194","長府バイオパワー合同会社",null,null,null,null,"K1194"]
[null,null,null,"H1195","株式会社鹿児島ソーラーファーム",null,null,null,null,"K1195"]
[null,null,null,"H1196","秋田能代・三種・男鹿オフショアウィンド合同会社",null,null,null,null,"K1196"]
[null,null,null,"H1197","秋田由利本荘オフショアウィンド合同会社",null,null,null,null,"K1197"]
[null,null,null,"H1198","合同会社芝公園再生エネルギー開発",null,null,null,null,"K1198"]
[null,null,null,"H1199","欠番",null,null,null,null,"K1199"]
[null,null,null,"H1200","株式会社尾幌ソーラーグレージング発電所",null,null,null,null,"K1200"]
[null,null,null,"H1201","御徳蓄電所合同会社",null,null,null,null,"K1201"]
[null,null,null,"H1202","ＣＳ宮城加美町合同会社",null,null,null,null,"K1202"]
[null,null,null,"H1203","ＪＭＭソーラー合同会社",null,null,null,null,"K1203"]
[null,null,null,"H1204","インベナジー・ウインド合同会社",null,null,null,null,"K1204"]
[null,null,null,"H1205","ＭＩＲＡＲＴＨエナジーソリューションズ株式会社",null,null,null,null,"K1205"]
[null,null,null,"H1206","株式会社Ａｓｔｒｏｎｅｒｇｙ　Ｊａｐａｎ",null,null,null,null,"K1206"]
[null,null,null,"H1207","ＳＧＥＴ第２蓄電所合同会社",null,null,null,null,"K1207"]
[null,null,null,"H1208","松山みかんエナジー合同会社",null,null,null,null,"K1208"]
[null,null,null,"H1209","合同会社姫路蓄電所",null,null,null,null,"K1209"]
[null,null,null,"H1210","株式会社黒電空調",null,null,null,null,"K1210"]
[null,null,null,"H1211","地域電力株式会社",null,null,null,null,"K1211"]
[null,null,null,"H1212","株式会社ニジオ",null,null,null,null,"K1212"]
[null,null,null,"H1213","日本蓄電株式会社",null,null,null,null,"K1213"]
[null,null,null,"H1214","Ｂｉｓｏｎｅｎｅｒｇｙ株式会社",null,null,null,null,"K1214"]
[null,null,null,"H1215","アストマックス株式会社",null,null,null,null,"K1215"]
[null,null,null,"H1216","ＧＰＳＳ１０合同会社",null,null,null,null,"K1216"]
[null,null,null,"H1217","ＪＳソーラー合同会社",null,null,null,null,"K1217"]
[null,null,null,"H1218","合同会社厚岸ソーラー",null,null,null,null,"K1218"]
[null,null,null,"H1219","東邦ガス株式会社",null,null,null,null,"K1219"]
[null,null,null,"H1220","合同会社ＮＲＥ－３０インベストメント",null,null,null,null,"K1220"]
[null,null,null,"H1221","ＥＮＥＯＳ　Ｐｏｗｅｒ株式会社",null,null,null,null,"K1221"]
[null,null,null,"H1222","ＣＳ岡山新湯原ＣＣ合同会社",null,null,null,null,"K1222"]
[null,null,null,"H1223","有限会社オフィス中熊",null,null,null,null,"K1223"]
[null,null,null,"H1224","ヘリオス１合同会社",null,null,null,null,"K1224"]
[null,null,null,"H1225","ａｕリニューアブルエナジー株式会社",null,null,null,null,"K1225"]
[null,null,null,"H1226","ＫａｅＲｕｕ株式会社",null,null,null,null,"K1226"]
[null,null,null,"H1227","高崎市",null,null,null,null,"K1227"]
[null,null,null,"H1228","合同会社ＪＲＥ新酒田風力",null,null,null,null,"K1228"]
[null,null,null,"H1229","Ｓｕｎ　Ｓｔａｔｉｏｎ　Ｈｉｋａｒｉ　ＸＸＩ合同会社",null,null,null,null,"K1229"]
[null,null,null,"H1230","熊本大津ソーラーパーク合同会社",null,null,null,null,"K1230"]
[null,null,null,"H1231","男鹿・潟上・秋田Ｏｆｆｓｈｏｒｅ　Ｇｒｅｅｎ　Ｅｎｅｒｇｙ合同会社",null,null,null,null,"K1231"]
[null,null,null,"H1232","夢前夢ふる里太陽光発電合同会社",null,null,null,null,"K1232"]
[null,null,null,"H1233","備前雲の上太陽光発電合同会社",null,null,null,null,"K1233"]
[null,null,null,"H1234","欠番",null,null,null,null,"K1234"]
[null,null,null,"H1235","浜松市",null,null,null,null,"K1235"]
[null,null,null,"H1236","ＦＳ　Ｊａｐａｎ　Ｐｒｏｊｅｃｔ４合同会社",null,null,null,null,"K1236"]
[null,null,null,"H1237","合同会社くまもと森林発電",null,null,null,null,"K1237"]
[null,null,null,"H1238","芝山・大黒山風力発電合同会社",null,null,null,null,"K1238"]
[null,null,null,"H1239","別府内成ソーラー発電所管理株式会社",null,null,null,null,"K1239"]
[null,null,null,"H1240","ＧＰＳＳ４合同会社",null,null,null,null,"K1240"]
[null,null,null,"H1241","ベル合同会社",null,null,null,null,"K1241"]
[null,null,null,"H1242","新潟東港バイオマス発電合同会社",null,null,null,null,"K1242"]
[null,null,null,"H1243","日向バイオマス発電株式会社",null,null,null,null,"K1243"]
[null,null,null,"H1244","合同会社グリーンパワー薮川",null,null,null,null,"K1244"]
[null,null,null,"H1245","福山市",null,null,null,null,"K1245"]
[null,null,null,"H1246","株式会社Ｐａｉｘ",null,null,null,null,"K1246"]
[null,null,null,"H1247","千里蓄電所株式会社",null,null,null,null,"K1247"]
[null,null,null,"H1248","合同会社夷隅ソーラー",null,null,null,null,"K1248"]
[null,null,null,"H1249","欠番",null,null,null,null,"K1249"]
[null,null,null,"H1250","紀の川蓄電所合同会社",null,null,null,null,"K1250"]
[null,null,null,"H1251","株式会社グリッド",null,null,null,null,"K1251"]
[null,null,null,"H1252","ＴＳＥ株式会社",null,null,null,null,"K1252"]
[null,null,null,"H1253","坂出バイオマスパワー合同会社",null,null,null,null,"K1253"]
[null,null,null,"H1254","欠番",null,null,null,null,"K1254"]
[null,null,null,"H1255","エネクス電力株式会社",null,null,null,null,"K1255"]
[null,null,null,"H1256","原町ソーラーパーク合同会社",null,null,null,null,"K1256"]
[null,null,null,"H1257","株式会社しがぎんエナジー",null,null,null,null,"K1257"]
[null,null,null,"H1258","合同会社由利本荘ソーラー",null,null,null,null,"K1258"]
[null,null,null,"H1259","クリーンエナジー３合同会社",null,null,null,null,"K1259"]
[null,null,null,"H1260","川内復興エナジー合同会社",null,null,null,null,"K1260"]
[null,null,null,"H1261","合同会社ユーラス横浜風力",null,null,null,null,"K1261"]
[null,null,null,"H1262","合同会社玉山メガニッコウ",null,null,null,null,"K1262"]
[null,null,null,"H1263","ＬＯＨＡＳ　ＥＣＥ　ＳＰＡＩＮ　ＧＩＦＵ株式会社",null,null,null,null,"K1263"]
[null,null,null,"H1264","苫東バイオマス発電合同会社",null,null,null,null,"K1264"]
[null,null,null,"H1265","苫小牧弁天バイオマスパワー合同会社",null,null,null,null,"K1265"]
[null,null,null,"H1266","広原蓄電合同会社",null,null,null,null,"K1266"]
[null,null,null,"H1267","雲雀平風力開発株式会社",null,null,null,null,"K1267"]
[null,null,null,"H1268","株式会社ＩＮＰＥＸ　ＪＡＰＡＮ",null,null,null,null,"K1268"]
[null,null,null,"H1269","桜パワーエナジー１合同会社",null,null,null,null,"K1269"]
[null,null,null,"H1270","桜パワーエナジー２合同会社",null,null,null,null,"K1270"]
[null,null,null,"H1271","いわき神楽山復興エナジー合同会社",null,null,null,null,"K1271"]
[null,null,null,"H1272","ＢａｙＷａ　ｒ．ｅ．Ｊａｐａｎ株式会社",null,null,null,null,"K1272"]
[null,null,null,"H1273","株式会社ＳＵＮＰＩＮ　ＪＡＰＡＮ",null,null,null,null,"K1273"]
[null,null,null,"H1274","合同会社ＢＥ１号",null,null,null,null,"K1274"]
[null,null,null,"H1275","石狩湾新港西埠頭バイオパワー株式会社",null,null,null,null,"K1275"]
[null,null,null,"H1276","ＫＡ　Ｓｏｌａｒ合同会社",null,null,null,null,"K1276"]
[null,null,null,"H1277","株式会社美之源",null,null,null,null,"K1277"]
[null,null,null,"H1278","Ｇｒｅｅｎｖｏｌｔ　Ｓｏｌａｒ　Ｊａｐａｎ株式会社",null,null,null,null,"K1278"]
[null,null,null,"H1279","Ｍｉｙａｎｏｓａｗａ‐１ＢＥＳＳ合同会社",null,null,null,null,"K1279"]
[null,null,null,"H1280","ＫＩＴＡＭＩ－１ＢＥＳＳ合同会社",null,null,null,null,"K1280"]
[null,null,null,"H1281","Ａｏｍｏｒｉ‐１ＢＥＳＳ合同会社",null,null,null,null,"K1281"]
[null,null,null,"H1282","アールワン蓄電所合同会社",null,null,null,null,"K1282"]
[null,null,null,"H1283","合同会社蓄電所１号",null,null,null,null,"K1283"]
[null,null,null,"H1284","ＧＳＳＧソーラージャパン株式会社",null,null,null,null,"K1284"]
[null,null,null,"H1285","上長都ひかり蓄電合同会社",null,null,null,null,"K1285"]
[null,null,null,"H1286","道南水力発電合同会社",null,null,null,null,"K1286"]
[null,null,null,"H1287","かごしま郡山風力合同会社",null,null,null,null,"K1287"]
[null,null,null,"H1288","アールツー蓄電所合同会社",null,null,null,null,"K1288"]
[null,null,null,"H1289","徳島洋上風力発電合同会社",null,null,null,null,"K1289"]
[null,null,null,"H1290","合同会社ユーラス宗谷岬風力",null,null,null,null,"K1290"]
[null,null,null,"H1291","盈泰ジャパン株式会社",null,null,null,null,"K1291"]
[null,null,null,"H1292","村上胎内洋上風力発電株式会社",null,null,null,null,"K1292"]
[null,null,null,"H1293","合同会社ＮＷＥ－０９インベストメント",null,null,null,null,"K1293"]
[null,null,null,"H1294","丸加菜の花太陽光合同会社",null,null,null,null,"K1294"]
[null,null,null,"H1295","姫路天然ガス発電３号合同会社",null,null,null,null,"K1295"]
[null,null,null,"H1296","さいたま市",null,null,null,null,"K1296"]
[null,null,null,"H1297","合同会社白河表郷",null,null,null,null,"K1297"]
[null,null,null,"H1298","唐津風力合同会社",null,null,null,null,"K1298"]
[null,null,null,"H1299","株式会社エネフォワード",null,null,null,null,"K1299"]
[null,null,null,"H1300","ヘップエスピーブイ１６ジャパン株式会社",null,null,null,null,"K1300"]
[null,null,null,"H1301","エムエル・パワー株式会社",null,null,null,null,"K1301"]
[null,null,null,"H1302","株式会社モリタ電器",null,null,null,null,"K1302"]
[null,null,null,"H1303","西山風力合同会社",null,null,null,null,"K1303"]
[null,null,null,"H1304","新潟阿賀野太陽光発電合同会社",null,null,null,null,"K1304"]
[null,null,null,"H1305","ＡＣ２４合同会社",null,null,null,null,"K1305"]
[null,null,null,"H1306","シリウス・ソーラー・ジャパン５５合同会社",null,null,null,null,"K1306"]
[null,null,null,"H1307","ＰＧ串間メガソーラー２号合同会社",null,null,null,null,"K1307"]
[null,null,null,"H1308","株式会社東京アセットソリューション",null,null,null,null,"K1308"]
[null,null,null,"H1309","ＡＣ２８合同会社",null,null,null,null,"K1309"]
[null,null,null,"H1310","ＫＡ　Ｗｉｎｄ深持合同会社",null,null,null,null,"K1310"]
[null,null,null,"H1311","つがるオフショアエナジー合同会社",null,null,null,null,"K1311"]
[null,null,null,"H1312","ＩＮＦ蓄電所２号合同会社",null,null,null,null,"K1312"]
[null,null,null,"H1313","ＡＣ３２合同会社",null,null,null,null,"K1313"]
[null,null,null,"H1314","Ｊ＆Ａ　Ｅｎｅｒｇｙ合同会社",null,null,null,null,"K1314"]
[null,null,null,"H1315","合同会社ＡＤソーラー８号",null,null,null,null,"K1315"]
[null,null,null,"H1316","合同会社島根水明",null,null,null,null,"K1316"]
[null,null,null,"H1317","あづま小富士エナジー合同会社",null,null,null,null,"K1317"]
[null,null,null,"H1318","北陸電力ビズ・エナジーソリューション株式会社",null,null,null,null,"K1318"]
[null,null,null,"H1319","八ヶ岳太陽光発電所合同会社",null,null,null,null,"K1319"]
[null,null,null,"H1320","葛尾風力株式会社",null,null,null,null,"K1320"]
[null,null,null,"H1321","ＡＣ３０合同会社",null,null,null,null,"K1321"]
[null,null,null,"H1322","株式会社エー・ディー・ワークス",null,null,null,null,"K1322"]
[null,null,null,"H1323","日本蓄電池株式会社",null,null,null,null,"K1323"]
[null,null,null,"H1324","ポート株式会社",null,null,null,null,"K1324"]
[null,null,null,"H1325","昆布森太陽光合同会社",null,null,null,null,"K1325"]
[null,null,null,"H1326","根室西浜太陽光合同会社",null,null,null,null,"K1326"]
[null,null,null,"H1327","白老竹浦太陽光合同会社",null,null,null,null,"K1327"]
[null,null,null,"H1328","一色ミロク太陽光合同会社",null,null,null,null,"K1328"]
[null,null,null,"H1329","仙台港バイオマスパワー合同会社",null,null,null,null,"K1329"]
[null,null,null,"H1330","合同会社蓄電所３号",null,null,null,null,"K1330"]
[null,null,null,"H1331","スマートエネルギー株式会社",null,null,null,null,"K1331"]
[null,null,null,"H1332","アールスリー蓄電所合同会社",null,null,null,null,"K1332"]
[null,null,null,"H1333","合同会社蓄電所４号",null,null,null,null,"K1333"]
[null,null,null,"H1334","合同会社御殿場高圧蓄電所",null,null,null,null,"K1334"]
[null,null,null,"H1335","ジーアイエナジーストレージ１号合同会社",null,null,null,null,"K1335"]
[null,null,null,"H1336","株式会社人間電力",null,null,null,null,"K1336"]
[null,null,null,"H1337","合同会社ＡＣベスタ",null,null,null,null,"K1337"]
[null,null,null,"H1338","合同会社ＮＷ‐３",null,null,null,null,"K1338"]
[null,null,null,"H1339","合同会社ＲＤソーラーパワー",null,null,null,null,"K1339"]
[null,null,null,"H1340","日本海風力合同会社",null,null,null,null,"K1340"]
[null,null,null,"H1341","合同会社蓄電所２号",null,null,null,null,"K1341"]
[null,null,null,"H1342","ＣＥＦ玖珠ウインドファーム株式会社",null,null,null,null,"K1342"]
[null,null,null,"H1343","ＡＭＰ１０合同会社",null,null,null,null,"K1343"]
[null,null,null,"H1344","株式会社ＳＶＴ‐２",null,null,null,null,"K1344"]
[null,null,null,"H1345","株式会社九州健好プラス",null,null,null,null,"K1345"]
[null,null,null,"H1346","白老太陽光発電合同会社",null,null,null,null,"K1346"]
[null,null,null,"H1347","Ｘ－Ｅｌｉｏ２３合同会社",null,null,null,null,"K1347"]
[null,null,null,"H1348","リニューアブルエナジーデベロップメント合同会社",null,null,null,null,"K1348"]
[null,null,null,"H1349","株式会社ミササ",null,null,null,null,"K1349"]
[null,null,null,"H1350","合同会社ワタリＥＳＳ",null,null,null,null,"K1350"]
[null,null,null,"H1351","株式会社ＤＵＲＩ",null,null,null,null,"K1351"]
[null,null,null,"H1352","関門エナジー株式会社",null,null,null,null,"K1352"]
[null,null,null,"H1353","Ｆｕｔｕｒｅ　Ｇｒｉｄ１号合同会社",null,null,null,null,"K1353"]
[null,null,null,"H1354","エラブルインフラファンド合同会社",null,null,null,null,"K1354"]
[null,null,null,"H1355","株式会社サンヴィレッジ",null,null,null,null,"K1355"]
[null,null,null,"H1356","石油資源開発株式会社",null,null,null,null,"K1356"]
[null,null,null,"H1357","合同会社ＮＷＥ－１２インベストメント",null,null,null,null,"K1357"]
[null,null,null,"H1358","合同会社ＮＲＥー４６インベストメント",null,null,null,null,"K1358"]
[null,null,null,"H1359","ＳＶ　ＢＥＳＳ　ＯＮＥ合同会社",null,null,null,null,"K1359"]
[null,null,null,"H1360","合同会社翼パワー",null,null,null,null,"K1360"]
[null,null,null,"H1361","株式会社三栄産業",null,null,null,null,"K1361"]
[null,null,null,"H1362","合同会社ＡＤソーラー１０号",null,null,null,null,"K1362"]
[null,null,null,"H1363","株式会社マッシュテック",null,null,null,null,"K1363"]
[null,null,null,"H1364","ＰＯＷＥＲ　ＰＯＯＬ６号合同会社",null,null,null,null,"K1364"]
[null,null,null,"H1365","合同会社ＵＬＴＲＡ　ＥＶ　ＣＨＡＲＧＥＲ",null,null,null,null,"K1365"]
[null,null,null,"H1366","ＡＣ１２合同会社",null,null,null,null,"K1366"]
[null,null,null,"H1367","釧路ソーラー合同会社",null,null,null,null,"K1367"]
[null,null,null,"H1368","ジーアイエナジーストレージ２号合同会社",null,null,null,null,"K1368"]
[null,null,null,"H1369","ブルースカイソーラー株式会社",null,null,null,null,"K1369"]
[null,null,null,"H1370","合同会社トパーズ",null,null,null,null,"K1370"]
[null,null,null,"H1371","株式会社フラクタス",null,null,null,null,"K1371"]
[null,null,null,"H1372","赤穂蓄電所合同会社",null,null,null,null,"K1372"]
[null,null,null,"H1373","合同会社メガソーラーきそ",null,null,null,null,"K1373"]
[null,null,null,"H1374","株式会社鳴鳳堂エンジニアリング",null,null,null,null,"K1374"]
[null,null,null,"H1375","ＴＡＯＫＥ　ＥＮＥＲＧＹ株式会社",null,null,null,null,"K1375"]
[null,null,null,"H1376","株式会社トーチインターナショナル",null,null,null,null,"K1376"]
[null,null,null,"H1377","Ｘ－Ｅｌｉｏ２６合同会社",null,null,null,null,"K1377"]
[null,null,null,"H1378","合同会社ＭＨＤパワーバンク１号",null,null,null,null,"K1378"]
[null,null,null,"H1379","Ｓｅｎｎａ　ＩＩＩ合同会社",null,null,null,null,"K1379"]
[null,null,null,"H1380","欠番",null,null,null,null,"K1380"]
[null,null,null,"H1381","合同会社エナジーフォレスト",null,null,null,null,"K1381"]
[null,null,null,"H1382","Ｓｏｎｎｅｎｂｌｕｍｅ第二発電所合同会社",null,null,null,null,"K1382"]
[null,null,null,"H1383","むかわソーラー発電合同会社",null,null,null,null,"K1383"]
[null,null,null,"H1384","ＡＭＰ１１合同会社",null,null,null,null,"K1384"]
[null,null,null,"H1385","アールシックス蓄電所合同会社",null,null,null,null,"K1385"]
[null,null,null,"H1386","株式会社町おこしエナジー",null,null,null,null,"K1386"]
[null,null,null,"H1387","レネソーラエナジー株式会社",null,null,null,null,"K1387"]
[null,null,null,"H1388","株式会社プロメディア",null,null,null,null,"K1388"]
[null,null,null,"H1389","新温泉風力合同会社",null,null,null,null,"K1389"]
[null,null,null,"H1390","株式会社ＡＢＩＬＩＴＹ　ＥＮＥＲＧＹ",null,null,null,null,"K1390"]
[null,null,null,"H1391","諏訪山バッテリーパワー合同会社",null,null,null,null,"K1391"]
[null,null,null,"H1392","ＭＲひかり蓄電合同会社",null,null,null,null,"K1392"]
[null,null,null,"H1393","シンファエナジー株式会社",null,null,null,null,"K1393"]
[null,null,null,"H1394","株式会社ネクサスグリッド",null,null,null,null,"K1394"]
[null,null,null,"H1395","合同会社ベガ",null,null,null,null,"K1395"]
[null,null,null,"H1396","サーラエナジー株式会社",null,null,null,null,"K1396"]
[null,null,null,"H1397","株式会社アイエフアール",null,null,null,null,"K1397"]
[null,null,null,"H1398","合同会社キキョウ",null,null,null,null,"K1398"]
[null,null,null,"H1399","株式会社ＧＲＩＴＺ",null,null,null,null,"K1399"]
[null,null,null,"H1400","ＷＷＢ株式会社",null,null,null,null,"K1400"]
[null,null,null,"H1401","ＧＶＰ　Ａｓｉａ０１合同会社",null,null,null,null,"K1401"]
[null,null,null,"H1402","株式会社エコ革",null,null,null,null,"K1402"]
[null,null,null,"H1403","ヒラソル・エナジー株式会社",null,null,null,null,"K1403"]
[null,null,null,"H1404","エフビットコミュニケーションズ株式会社",null,null,null,null,"K1404"]
[null,null,null,"H1405","エレビスタ株式会社",null,null,null,null,"K1405"]
[null,null,null,"H1406","株式会社エネウィル",null,null,null,null,"K1406"]
[null,null,null,"H1407","スズカ電工株式会社",null,null,null,null,"K1407"]
[null,null,null,"H1408","日本エネルギー総合システム株式会社",null,null,null,null,"K1408"]
[null,null,null,"H1409","ＦＩＰＰ１合同会社",null,null,null,null,"K1409"]
[null,null,null,"H1410","綿半ウッドパワー株式会社",null,null,null,null,"K1410"]
[null,null,null,"H1411","ＧＳＳＧ　Ｓｏｌａｒ　Ｊａｐａｎ　Ｈｏｌｄｉｎｇｓ１９合同会社",null,null,null,null,"K1411"]
[null,null,null,"H1412","芦屋バッテリーパワー合同会社",null,null,null,null,"K1412"]
[null,null,null,"H1413","ＳＫ　Ｅｎｅｒｇｙ株式会社",null,null,null,null,"K1413"]
[null,null,null,"H1414","ＰＯＷＥＲ　ＰＯＯＬ７号合同会社",null,null,null,null,"K1414"]
[null,null,null,"H1415","パワープール株式会社",null,null,null,null,"K1415"]
[null,null,null,"H1416","株式会社グリーングロース",null,null,null,null,"K1416"]
[null,null,null,"H1417","ハニカム８合同会社",null,null,null,null,"K1417"]
[null,null,null,"H1418","日新商事株式会社",null,null,null,null,"K1418"]
[null,null,null,"H1419","株式会社クラダシ",null,null,null,null,"K1419"]
[null,null,null,"H1420","須賀川風力発電合同会社",null,null,null,null,"K1420"]
[null,null,null,"H1421","ＤＥＩバッテリーファンドアルファ合同会社",null,null,null,null,"K1421"]
[null,null,null,"H1422","株式会社糺の森",null,null,null,null,"K1422"]
[null,null,null,"H1423","ＧＳＳＧ　Ｓｏｌａｒ　Ｊａｐａｎ　Ｈｏｌｄｉｎｇｓ１３合同会社",null,null,null,null,"K1423"]
[null,null,null,"H1424","ＧＳＳＧ　Ｓｏｌａｒ　Ｊａｐａｎ　Ｈｏｌｄｉｎｇｓ１４合同会社",null,null,null,null,"K1424"]
[null,null,null,"H1425","ＧＳＳＧ　Ｓｏｌａｒ　Ｊａｐａｎ　Ｈｏｌｄｉｎｇｓ１５合同会社",null,null,null,null,"K1425"]
[null,null,null,"H1426","ＧＳＳＧ　Ｓｏｌａｒ　Ｊａｐａｎ　Ｈｏｌｄｉｎｇｓ１６合同会社",null,null,null,null,"K1426"]
[null,null,null,"H1427","ＺＥＣ５合同会社",null,null,null,null,"K1427"]
[null,null,null,"H1428","合同会社バッテリーファーム",null,null,null,null,"K1428"]
[null,null,null,"H1429","株式会社ニューオーサカホテルエンタープライズ",null,null,null,null,"K1429"]
[null,null,null,"H1430","株式会社ビッグ・インテック",null,null,null,null,"K1430"]
[null,null,null,"H1431","合同会社ギバー",null,null,null,null,"K1431"]
[null,null,null,"H1432","株式会社大辰",null,null,null,null,"K1432"]
[null,null,null,"H1433","明日パワー２合同会社",null,null,null,null,"K1433"]
[null,null,null,"H1434","株式会社アレックスソーラージャパン",null,null,null,null,"K1434"]
[null,null,null,"H1435","株式会社渡辺電設",null,null,null,null,"K1435"]
[null,null,null,"H1436","株式会社カンエイ",null,null,null,null,"K1436"]
[null,null,null,"H1437","株式会社ウィンフィールドジャパン",null,null,null,null,"K1437"]
[null,null,null,"H1438","ＧＳＳＧ　Ｃｈｉｋｕｄｅｎ　Ａｓｓｅｔ　Ｍａｎａｇｅｍｅｎｔ合同会社",null,null,null,null,"K1438"]
[null,null,null,"H1439","アリエス太陽光開発合同会社",null,null,null,null,"K1439"]
[null,null,null,"H1440","株式会社エスココーポレーション",null,null,null,null,"K1440"]
[null,null,null,"H1441","株式会社タナック",null,null,null,null,"K1441"]
[null,null,null,"H1442","合同会社バッテリーパーク１",null,null,null,null,"K1442"]
[null,null,null,"H1443","ＥＭＣ　ｃｏｒｅ株式会社",null,null,null,null,"K1443"]
[null,null,null,"H1444","日本蓄電池株式会社",null,null,null,null,"K1444"]
[null,null,null,"H1445","東那須ソーラーパワー合同会社",null,null,null,null,"K1445"]
[null,null,null,"H1446","株式会社メディオテック",null,null,null,null,"K1446"]
[null,null,null,"H1447","合同会社ちゅうぎんエナジー１号",null,null,null,null,"K1447"]
[null,null,null,"H1448","株式会社共創",null,null,null,null,"K1448"]
[null,null,null,"H1449","株式会社ＰＳＳ",null,null,null,null,"K1449"]
[null,null,null,"H1450","合同会社ＬＥ",null,null,null,null,"K1450"]
[null,null,null,"H1451","株式会社レオ・コーポレーション",null,null,null,null,"K1451"]
[null,null,null,"H1452","株式会社サン・ホーム",null,null,null,null,"K1452"]
[null,null,null,"H1453","光陽エネルギー株式会社",null,null,null,null,"K1453"]
[null,null,null,"H1454","株式会社ワールドモバイル",null,null,null,null,"K1454"]
[null,null,null,"H1455","ＮｅｘｔＤｒｉｖｅ株式会社",null,null,null,null,"K1455"]
[null,null,null,"H1456","合同会社日本ストレージ",null,null,null,null,"K1456"]
[null,null,null,"H1457","株式会社Ｇ＆Ｇエンタープライズ",null,null,null,null,"K1457"]
[null,null,null,"H1458","株式会社ヒカリ",null,null,null,null,"K1458"]
[null,null,null,"H1459","株式会社プラス",null,null,null,null,"K1459"]
[null,null,null,"H1460","Ｇｒａｖｉｔｙ　ＡＨ合同会社",null,null,null,null,"K1460"]
[null,null,null,"H1461","株式会社奈良森林資源保全公社",null,null,null,null,"K1461"]
[null,null,null,"H1462","株式会社阪神マテリアル",null,null,null,null,"K1462"]
[null,null,null,"H1463","磐栄運送株式会社",null,null,null,null,"K1463"]
[null,null,null,"H1464","ニッショク株式会社",null,null,null,null,"K1464"]
[null,null,null,"H1465",null,null,null,null,null,"K1465"]
[null,null,null,"H1466",null,null,null,null,null,"K1466"]
[null,null,null,"H1467",null,null,null,null,null,"K1467"]
[null,null,null,"H1468",null,null,null,null,null,"K1468"]
[null,null,null,"H1469",null,null,null,null,null,"K1469"]
[null,null,null,"H1470",null,null,null,null,null,"K1470"]
[null,null,null,"H1471",null,null,null,null,null,"K1471"]
[null,null,null,"H1472",null,null,null,null,null,"K1472"]
[null,null,null,"H1473",null,null,null,null,null,"K1473"]
[null,null,null,"H1474",null,null,null,null,null,"K1474"]
[null,null,null,"H1475",null,null,null,null,null,"K1475"]
[null,null,null,"H1476",null,null,null,null,null,"K1476"]
[null,null,null,"H1477",null,null,null,null,null,"K1477"]
[null,null,null,"H1478",null,null,null,null,null,"K1478"]
[null,null,null,"H1479",null,null,null,null,null,"K1479"]
[null,null,null,"H1480",null,null,null,null,null,"K1480"]
[null,null,null,"H1481",null,null,null,null,null,"K1481"]
[null,null,null,"H1482",null,null,null,null,null,"K1482"]
[null,null,null,"H1483",null,null,null,null,null,"K1483"]
[null,null,null,"H1484",null,null,null,null,null,"K1484"]
[null,null,null,"H1485",null,null,null,null,null,"K1485"]
[null,null,null,"H1486",null,null,null,null,null,"K1486"]
[null,null,null,"H1487",null,null,null,null,null,"K1487"]
[null,null,null,"H1488",null,null,null,null,null,"K1488"]
[null,null,null,"H1489",null,null,null,null,null,"K1489"]
[null,null,null,"H1490",null,null,null,null,null,"K1490"]
[null,null,null,"H1491",null,null,null,null,null,"K1491"]
[null,null,null,"H1492",null,null,null,null,null,"K1492"]
[null,null,null,"H1493",null,null,null,null,null,"K1493"]
[null,null,null,"H1494",null,null,null,null,null,"K1494"]
[null,null,null,"H1495",null,null,null,null,null,"K1495"]
[null,null,null,"H1496",null,null,null,null,null,"K1496"]
[null,null,null,"H1497",null,null,null,null,null,"K1497"]
[null,null,null,"H1498",null,null,null,null,null,"K1498"]
[null,null,null,"H1499",null,null,null,null,null,"K1499"]
[null,null,null,"H1500",null,null,null,null,null,"K1500"]
[null,null,null,"H1501",null,null,null,null,null,"K1501"]
[null,null,null,"H1502",null,null,null,null,null,"K1502"]
[null,null,null,"H1503",null,null,null,null,null,"K1503"]
[null,null,null,"H1504",null,null,null,null,null,"K1504"]
[null,null,null,"H1505",null,null,null,null,null,"K1505"]
[null,null,null,"H1506",null,null,null,null,null,"K1506"]
[null,null,null,"H1507",null,null,null,null,null,"K1507"]
[null,null,null,"H1508",null,null,null,null,null,"K1508"]
[null,null,null,"H1509",null,null,null,null,null,"K1509"]
[null,null,null,"H1510",null,null,null,null,null,"K1510"]
[null,null,null,"H1511",null,null,null,null,null,"K1511"]
[null,null,null,"H1512",null,null,null,null,null,"K1512"]
[null,null,null,"H1513",null,null,null,null,null,"K1513"]
[null,null,null,"H1514",null,null,null,null,null,"K1514"]
[null,null,null,"H1515",null,null,null,null,null,"K1515"]
[null,null,null,"H1516",null,null,null,null,null,"K1516"]
[null,null,null,"H1517",null,null,null,null,null,"K1517"]
[null,null,null,"H1518",null,null,null,null,null,"K1518"]
[null,null,null,"H1519",null,null,null,null,null,"K1519"]
[null,null,null,"H1520",null,null,null,null,null,"K1520"]
[null,null,null,"H1521",null,null,null,null,null,"K1521"]
[null,null,null,"H1522",null,null,null,null,null,"K1522"]
[null,null,null,"H1523",null,null,null,null,null,"K1523"]
[null,null,null,"H1524",null,null,null,null,null,"K1524"]
[null,null,null,"H1525",null,null,null,null,null,"K1525"]
[null,null,null,"H1526",null,null,null,null,null,"K1526"]
[null,null,null,"H1527",null,null,null,null,null,"K1527"]
[null,null,null,"H1528",null,null,null,null,null,"K1528"]
[null,null,null,"H1529",null,null,null,null,null,"K1529"]
[null,null,null,"H1530",null,null,null,null,null,"K1530"]
[null,null,null,"H1531",null,null,null,null,null,"K1531"]
[null,null,null,"H1532",null,null,null,null,null,"K1532"]
[null,null,null,"H1533",null,null,null,null,null,"K1533"]
[null,null,null,"H1534",null,null,null,null,null,"K1534"]
[null,null,null,"H1535",null,null,null,null,null,"K1535"]
[null,null,null,"H1536",null,null,null,null,null,"K1536"]
[null,null,null,"H1537",null,null,null,null,null,"K1537"]
[null,null,null,"H1538",null,null,null,null,null,"K1538"]
[null,null,null,"H1539",null,null,null,null,null,"K1539"]
[null,null,null,"H1540",null,null,null,null,null,"K1540"]
[null,null,null,"H1541",null,null,null,null,null,"K1541"]
[null,null,null,"H1542",null,null,null,null,null,"K1542"]
[null,null,null,"H1543",null,null,null,null,null,"K1543"]
[null,null,null,"H1544",null,null,null,null,null,"K1544"]
[null,null,null,"H1545",null,null,null,null,null,"K1545"]
[null,null,null,"H1546",null,null,null,null,null,"K1546"]
[null,null,null,"H1547",null,null,null,null,null,"K1547"]
[null,null,null,"H1548",null,null,null,null,null,"K1548"]
[null,null,null,"H1549",null,null,null,null,null,"K1549"]
[null,null,null,"H1550",null,null,null,null,null,"K1550"]
[null,null,null,"H1551",null,null,null,null,null,"K1551"]
[null,null,null,"H1552",null,null,null,null,null,"K1552"]
[null,null,null,"H1553",null,null,null,null,null,"K1553"]
[null,null,null,"H1554",null,null,null,null,null,"K1554"]
[null,null,null,"H1555",null,null,null,null,null,"K1555"]
[null,null,null,"H1556",null,null,null,null,null,"K1556"]
[null,null,null,"H1557",null,null,null,null,null,"K1557"]
[null,null,null,"H1558",null,null,null,null,null,"K1558"]
[null,null,null,"H1559",null,null,null,null,null,"K1559"]
[null,null,null,"H1560",null,null,null,null,null,"K1560"]
[null,null,null,"H1561",null,null,null,null,null,"K1561"]
[null,null,null,"H1562",null,null,null,null,null,"K1562"]
[null,null,null,"H1563",null,null,null,null,null,"K1563"]
[null,null,null,"H1564",null,null,null,null,null,"K1564"]
[null,null,null,"H1565",null,null,null,null,null,"K1565"]
[null,null,null,"H1566",null,null,null,null,null,"K1566"]
[null,null,null,"H1567",null,null,null,null,null,"K1567"]
[null,null,null,"H1568",null,null,null,null,null,"K1568"]
[null,null,null,"H1569",null,null,null,null,null,"K1569"]
[null,null,null,"H1570",null,null,null,null,null,"K1570"]
[null,null,null,"H1571",null,null,null,null,null,"K1571"]
[null,null,null,"H1572",null,null,null,null,null,"K1572"]
[null,null,null,"H1573",null,null,null,null,null,"K1573"]
[null,null,null,"H1574",null,null,null,null,null,"K1574"]
[null,null,null,"H1575",null,null,null,null,null,"K1575"]
[null,null,null,"H1576",null,null,null,null,null,"K1576"]
[null,null,null,"H1577",null,null,null,null,null,"K1577"]
[null,null,null,"H1578",null,null,null,null,null,"K1578"]
[null,null,null,"H1579",null,null,null,null,null,"K1579"]
[null,null,null,"H1580",null,null,null,null,null,"K1580"]
[null,null,null,"H1581",null,null,null,null,null,"K1581"]
[null,null,null,"H1582",null,null,null,null,null,"K1582"]
[null,null,null,"H1583",null,null,null,null,null,"K1583"]
[null,null,null,"H1584",null,null,null,null,null,"K1584"]
[null,null,null,"H1585",null,null,null,null,null,"K1585"]
[null,null,null,"H1586",null,null,null,null,null,"K1586"]
[null,null,null,"H1587",null,null,null,null,null,"K1587"]
[null,null,null,"H1588",null,null,null,null,null,"K1588"]
[null,null,null,"H1589",null,null,null,null,null,"K1589"]
[null,null,null,"H1590",null,null,null,null,null,"K1590"]
[null,null,null,"H1591",null,null,null,null,null,"K1591"]
[null,null,null,"H1592",null,null,null,null,null,"K1592"]
[null,null,null,"H1593",null,null,null,null,null,"K1593"]
[null,null,null,"H1594",null,null,null,null,null,"K1594"]
[null,null,null,"H1595",null,null,null,null,null,"K1595"]
[null,null,null,"H1596",null,null,null,null,null,"K1596"]
[null,null,null,"H1597",null,null,null,null,null,"K1597"]
[null,null,null,"H1598",null,null,null,null,null,"K1598"]
[null,null,null,"H1599",null,null,null,null,null,"K1599"]
[null,null,null,"H1600",null,null,null,null,null,"K1600"]
[null,null,null,"H1601",null,null,null,null,null,"K1601"]
[null,null,null,"H1602",null,null,null,null,null,"K1602"]
[null,null,null,"H1603",null,null,null,null,null,"K1603"]
[null,null,null,"H1604",null,null,null,null,null,"K1604"]
[null,null,null,"H1605",null,null,null,null,null,"K1605"]
[null,null,null,"H1606",null,null,null,null,null,"K1606"]
[null,null,null,"H1607",null,null,null,null,null,"K1607"]
[null,null,null,"H1608",null,null,null,null,null,"K1608"]
[null,null,null,"H1609",null,null,null,null,null,"K1609"]
[null,null,null,"H1610",null,null,null,null,null,"K1610"]
[null,null,null,"H1611",null,null,null,null,null,"K1611"]
[null,null,null,"H1612",null,null,null,null,null,"K1612"]
[null,null,null,"H1613",null,null,null,null,null,"K1613"]
[null,null,null,"H1614",null,null,null,null,null,"K1614"]
[null,null,null,"H1615",null,null,null,null,null,"K1615"]
[null,null,null,"H1616",null,null,null,null,null,"K1616"]
[null,null,null,"H1617",null,null,null,null,null,"K1617"]
[null,null,null,"H1618",null,null,null,null,null,"K1618"]
[null,null,null,"H1619",null,null,null,null,null,"K1619"]
[null,null,null,"H1620",null,null,null,null,null,"K1620"]
[null,null,null,"H1621",null,null,null,null,null,"K1621"]
[null,null,null,"H1622",null,null,null,null,null,"K1622"]
[null,null,null,"H1623",null,null,null,null,null,"K1623"]
[null,null,null,"H1624",null,null,null,null,null,"K1624"]
[null,null,null,"H1625",null,null,null,null,null,"K1625"]
[null,null,null,"H1626",null,null,null,null,null,"K1626"]
[null,null,null,"H1627",null,null,null,null,null,"K1627"]
[null,null,null,"H1628",null,null,null,null,null,"K1628"]
[null,null,null,"H1629",null,null,null,null,null,"K1629"]
[null,null,null,"H1630",null,null,null,null,null,"K1630"]
[null,null,null,"H1631",null,null,null,null,null,"K1631"]
[null,null,null,"H1632",null,null,null,null,null,"K1632"]
[null,null,null,"H1633",null,null,null,null,null,"K1633"]
[null,null,null,"H1634",null,null,null,null,null,"K1634"]
[null,null,null,"H1635",null,null,null,null,null,"K1635"]
[null,null,null,"H1636",null,null,null,null,null,"K1636"]
[null,null,null,"H1637",null,null,null,null,null,"K1637"]
[null,null,null,"H1638",null,null,null,null,null,"K1638"]
[null,null,null,"H1639",null,null,null,null,null,"K1639"]
[null,null,null,"H1640",null,null,null,null,null,"K1640"]
[null,null,null,"H1641",null,null,null,null,null,"K1641"]
[null,null,null,"H1642",null,null,null,null,null,"K1642"]
[null,null,null,"H1643",null,null,null,null,null,"K1643"]
[null,null,null,"H1644",null,null,null,null,null,"K1644"]
[null,null,null,"H1645",null,null,null,null,null,"K1645"]
[null,null,null,"H1646",null,null,null,null,null,"K1646"]
[null,null,null,"H1647",null,null,null,null,null,"K1647"]
[null,null,null,"H1648",null,null,null,null,null,"K1648"]
[null,null,null,"H1649",null,null,null,null,null,"K1649"]
[null,null,null,"H1650",null,null,null,null,null,"K1650"]
[null,null,null,"H1651",null,null,null,null,null,"K1651"]
[null,null,null,"H1652",null,null,null,null,null,"K1652"]
[null,null,null,"H1653",null,null,null,null,null,"K1653"]
[null,null,null,"H1654",null,null,null,null,null,"K1654"]
[null,null,null,"H1655",null,null,null,null,null,"K1655"]
[null,null,null,"H1656",null,null,null,null,null,"K1656"]
[null,null,null,"H1657",null,null,null,null,null,"K1657"]
[null,null,null,"H1658",null,null,null,null,null,"K1658"]
[null,null,null,"H1659",null,null,null,null,null,"K1659"]
[null,null,null,"H1660",null,null,null,null,null,"K1660"]
[null,null,null,"H1661",null,null,null,null,null,"K1661"]
[null,null,null,"H1662",null,null,null,null,null,"K1662"]
[null,null,null,"H1663",null,null,null,null,null,"K1663"]
[null,null,null,"H1664",null,null,null,null,null,"K1664"]
[null,null,null,"H1665",null,null,null,null,null,"K1665"]
[null,null,null,"H1666",null,null,null,null,null,"K1666"]
[null,null,null,"H1667",null,null,null,null,null,"K1667"]
[null,null,null,"H1668",null,null,null,null,null,"K1668"]
[null,null,null,"H1669",null,null,null,null,null,"K1669"]
[null,null,null,"H1670",null,null,null,null,null,"K1670"]
[null,null,null,"H1671",null,null,null,null,null,"K1671"]
[null,null,null,"H1672",null,null,null,null,null,"K1672"]
[null,null,null,"H1673",null,null,null,null,null,"K1673"]
[null,null,null,"H1674",null,null,null,null,null,"K1674"]
[null,null,null,"H1675",null,null,null,null,null,"K1675"]
[null,null,null,"H1676",null,null,null,null,null,"K1676"]
[null,null,null,"H1677",null,null,null,null,null,"K1677"]
[null,null,null,"H1678",null,null,null,null,null,"K1678"]
[null,null,null,"H1679",null,null,null,null,null,"K1679"]
[null,null,null,"H1680",null,null,null,null,null,"K1680"]
[null,null,null,"H1681",null,null,null,null,null,"K1681"]
[null,null,null,"H1682",null,null,null,null,null,"K1682"]
[null,null,null,"H1683",null,null,null,null,null,"K1683"]
[null,null,null,"H1684",null,null,null,null,null,"K1684"]
[null,null,null,"H1685",null,null,null,null,null,"K1685"]
[null,null,null,"H1686",null,null,null,null,null,"K1686"]
[null,null,null,"H1687",null,null,null,null,null,"K1687"]
[null,null,null,"H1688",null,null,null,null,null,"K1688"]
[null,null,null,"H1689",null,null,null,null,null,"K1689"]
[null,null,null,"H1690",null,null,null,null,null,"K1690"]
[null,null,null,"H1691",null,null,null,null,null,"K1691"]
[null,null,null,"H1692",null,null,null,null,null,"K1692"]
[null,null,null,"H1693",null,null,null,null,null,"K1693"]
[null,null,null,"H1694",null,null,null,null,null,"K1694"]
[null,null,null,"H1695",null,null,null,null,null,"K1695"]
[null,null,null,"H1696",null,null,null,null,null,"K1696"]
[null,null,null,"H1697",null,null,null,null,null,"K1697"]
[null,null,null,"H1698",null,null,null,null,null,"K1698"]
[null,null,null,"H1699",null,null,null,null,null,"K1699"]
[null,null,null,"H1700",null,null,null,null,null,"K1700"]
[null,null,null,"H1701",null,null,null,null,null,"K1701"]
[null,null,null,"H1702",null,null,null,null,null,"K1702"]
[null,null,null,"H1703",null,null,null,null,null,"K1703"]
[null,null,null,"H1704",null,null,null,null,null,"K1704"]
[null,null,null,"H1705",null,null,null,null,null,"K1705"]
[null,null,null,"H1706",null,null,null,null,null,"K1706"]
[null,null,null,"H1707",null,null,null,null,null,"K1707"]
[null,null,null,"H1708",null,null,null,null,null,"K1708"]
[null,null,null,"H1709",null,null,null,null,null,"K1709"]
[null,null,null,"H1710",null,null,null,null,null,"K1710"]
[null,null,null,"H1711",null,null,null,null,null,"K1711"]
[null,null,null,"H1712",null,null,null,null,null,"K1712"]
[null,null,null,"H1713",null,null,null,null,null,"K1713"]
[null,null,null,"H1714",null,null,null,null,null,"K1714"]
[null,null,null,"H1715",null,null,null,null,null,"K1715"]
[null,null,null,"H1716",null,null,null,null,null,"K1716"]
[null,null,null,"H1717",null,null,null,null,null,"K1717"]
[null,null,null,"H1718",null,null,null,null,null,"K1718"]
[null,null,null,"H1719",null,null,null,null,null,"K1719"]
[null,null,null,"H1720",null,null,null,null,null,"K1720"]
[null,null,null,"H1721",null,null,null,null,null,"K1721"]
[null,null,null,"H1722",null,null,null,null,null,"K1722"]
[null,null,null,"H1723",null,null,null,null,null,"K1723"]
[null,null,null,"H1724",null,null,null,null,null,"K1724"]
[null,null,null,"H1725",null,null,null,null,null,"K1725"]
[null,null,null,"H1726",null,null,null,null,null,"K1726"]
[null,null,null,"H1727",null,null,null,null,null,"K1727"]
[null,null,null,"H1728",null,null,null,null,null,"K1728"]
[null,null,null,"H1729",null,null,null,null,null,"K1729"]
[null,null,null,"H1730",null,null,null,null,null,"K1730"]
[null,null,null,"H1731",null,null,null,null,null,"K1731"]
[null,null,null,"H1732",null,null,null,null,null,"K1732"]
[null,null,null,"H1733",null,null,null,null,null,"K1733"]
[null,null,null,"H1734",null,null,null,null,null,"K1734"]
[null,null,null,"H1735",null,null,null,null,null,"K1735"]
[null,null,null,"H1736",null,null,null,null,null,"K1736"]
[null,null,null,"H1737",null,null,null,null,null,"K1737"]
[null,null,null,"H1738",null,null,null,null,null,"K1738"]
[null,null,null,"H1739",null,null,null,null,null,"K1739"]
[null,null,null,"H1740",null,null,null,null,null,"K1740"]
[null,null,null,"H1741",null,null,null,null,null,"K1741"]
[null,null,null,"H1742",null,null,null,null,null,"K1742"]
[null,null,null,"H1743",null,null,null,null,null,"K1743"]
[null,null,null,"H1744",null,null,null,null,null,"K1744"]
[null,null,null,"H1745",null,null,null,null,null,"K1745"]
[null,null,null,"H1746",null,null,null,null,null,"K1746"]
[null,null,null,"H1747",null,null,null,null,null,"K1747"]
[null,null,null,"H1748",null,null,null,null,null,"K1748"]
[null,null,null,"H1749",null,null,null,null,null,"K1749"]
[null,null,null,"H1750",null,null,null,null,null,"K1750"]
[null,null,null,"H1751",null,null,null,null,null,"K1751"]
[null,null,null,"H1752",null,null,null,null,null,"K1752"]
[null,null,null,"H1753",null,null,null,null,null,"K1753"]
[null,null,null,"H1754",null,null,null,null,null,"K1754"]
[null,null,null,"H1755",null,null,null,null,null,"K1755"]
[null,null,null,"H1756",null,null,null,null,null,"K1756"]
[null,null,null,"H1757",null,null,null,null,null,"K1757"]
[null,null,null,"H1758",null,null,null,null,null,"K1758"]
[null,null,null,"H1759",null,null,null,null,null,"K1759"]
[null,null,null,"H1760",null,null,null,null,null,"K1760"]
[null,null,null,"H1761",null,null,null,null,null,"K1761"]
[null,null,null,"H1762",null,null,null,null,null,"K1762"]
[null,null,null,"H1763",null,null,null,null,null,"K1763"]
[null,null,null,"H1764",null,null,null,null,null,"K1764"]
[null,null,null,"H1765",null,null,null,null,null,"K1765"]
[null,null,null,"H1766",null,null,null,null,null,"K1766"]
[null,null,null,"H1767",null,null,null,null,null,"K1767"]
[null,null,null,"H1768",null,null,null,null,null,"K1768"]
[null,null,null,"H1769",null,null,null,null,null,"K1769"]
[null,null,null,"H1770",null,null,null,null,null,"K1770"]
[null,null,null,"H1771",null,null,null,null,null,"K1771"]
[null,null,null,"H1772",null,null,null,null,null,"K1772"]
[null,null,null,"H1773",null,null,null,null,null,"K1773"]
[null,null,null,"H1774",null,null,null,null,null,"K1774"]
[null,null,null,"H1775",null,null,null,null,null,"K1775"]
[null,null,null,"H1776",null,null,null,null,null,"K1776"]
[null,null,null,"H1777",null,null,null,null,null,"K1777"]
[null,null,null,"H1778",null,null,null,null,null,"K1778"]
[null,null,null,"H1779",null,null,null,null,null,"K1779"]
[null,null,null,"H1780",null,null,null,null,null,"K1780"]
[null,null,null,"H1781",null,null,null,null,null,"K1781"]
[null,null,null,"H1782",null,null,null,null,null,"K1782"]
[null,null,null,"H1783",null,null,null,null,null,"K1783"]
[null,null,null,"H1784",null,null,null,null,null,"K1784"]
[null,null,null,"H1785",null,null,null,null,null,"K1785"]
[null,null,null,"H1786",null,null,null,null,null,"K1786"]
[null,null,null,"H1787",null,null,null,null,null,"K1787"]
[null,null,null,"H1788",null,null,null,null,null,"K1788"]
[null,null,null,"H1789",null,null,null,null,null,"K1789"]
[null,null,null,"H1790",null,null,null,null,null,"K1790"]
[null,null,null,"H1791",null,null,null,null,null,"K1791"]
[null,null,null,"H1792",null,null,null,null,null,"K1792"]
[null,null,null,"H1793",null,null,null,null,null,"K1793"]
[null,null,null,"H1794",null,null,null,null,null,"K1794"]
[null,null,null,"H1795",null,null,null,null,null,"K1795"]
[null,null,null,"H1796",null,null,null,null,null,"K1796"]
[null,null,null,"H1797",null,null,null,null,null,"K1797"]
[null,null,null,"H1798",null,null,null,null,null,"K1798"]
[null,null,null,"H1799",null,null,null,null,null,"K1799"]
[null,null,null,"H1800",null,null,null,null,null,"K1800"]
[null,null,null,"H1801",null,null,null,null,null,"K1801"]
[null,null,null,"H1802",null,null,null,null,null,"K1802"]
[null,null,null,"H1803",null,null,null,null,null,"K1803"]
[null,null,null,"H1804",null,null,null,null,null,"K1804"]
[null,null,null,"H1805",null,null,null,null,null,"K1805"]
[null,null,null,"H1806",null,null,null,null,null,"K1806"]
[null,null,null,"H1807",null,null,null,null,null,"K1807"]
[null,null,null,"H1808",null,null,null,null,null,"K1808"]
[null,null,null,"H1809",null,null,null,null,null,"K1809"]
[null,null,null,"H1810",null,null,null,null,null,"K1810"]
[null,null,null,"H1811",null,null,null,null,null,"K1811"]
[null,null,null,"H1812",null,null,null,null,null,"K1812"]
[null,null,null,"H1813",null,null,null,null,null,"K1813"]
[null,null,null,"H1814",null,null,null,null,null,"K1814"]
[null,null,null,"H1815",null,null,null,null,null,"K1815"]
[null,null,null,"H1816",null,null,null,null,null,"K1816"]
[null,null,null,"H1817",null,null,null,null,null,"K1817"]
[null,null,null,"H1818",null,null,null,null,null,"K1818"]
[null,null,null,"H1819",null,null,null,null,null,"K1819"]
[null,null,null,"H1820",null,null,null,null,null,"K1820"]
[null,null,null,"H1821",null,null,null,null,null,"K1821"]
[null,null,null,"H1822",null,null,null,null,null,"K1822"]
[null,null,null,"H1823",null,null,null,null,null,"K1823"]
[null,null,null,"H1824",null,null,null,null,null,"K1824"]
[null,null,null,"H1825",null,null,null,null,null,"K1825"]
[null,null,null,"H1826",null,null,null,null,null,"K1826"]
[null,null,null,"H1827",null,null,null,null,null,"K1827"]
[null,null,null,"H1828",null,null,null,null,null,"K1828"]
[null,null,null,"H1829",null,null,null,null,null,"K1829"]
[null,null,null,"H1830",null,null,null,null,null,"K1830"]
[null,null,null,"H1831",null,null,null,null,null,"K1831"]
[null,null,null,"H1832",null,null,null,null,null,"K1832"]
[null,null,null,"H1833",null,null,null,null,null,"K1833"]
[null,null,null,"H1834",null,null,null,null,null,"K1834"]
[null,null,null,"H1835",null,null,null,null,null,"K1835"]
[null,null,null,"H1836",null,null,null,null,null,"K1836"]
[null,null,null,"H1837",null,null,null,null,null,"K1837"]
[null,null,null,"H1838",null,null,null,null,null,"K1838"]
[null,null,null,"H1839",null,null,null,null,null,"K1839"]
[null,null,null,"H1840",null,null,null,null,null,"K1840"]
[null,null,null,"H1841",null,null,null,null,null,"K1841"]
[null,null,null,"H1842",null,null,null,null,null,"K1842"]
[null,null,null,"H1843",null,null,null,null,null,"K1843"]
[null,null,null,"H1844",null,null,null,null,null,"K1844"]
[null,null,null,"H1845",null,null,null,null,null,"K1845"]
[null,null,null,"H1846",null,null,null,null,null,"K1846"]
[null,null,null,"H1847",null,null,null,null,null,"K1847"]
[null,null,null,"H1848",null,null,null,null,null,"K1848"]
[null,null,null,"H1849",null,null,null,null,null,"K1849"]
[null,null,null,"H1850",null,null,null,null,null,"K1850"]
[null,null,null,"H1851",null,null,null,null,null,"K1851"]
[null,null,null,"H1852",null,null,null,null,null,"K1852"]
[null,null,null,"H1853",null,null,null,null,null,"K1853"]
[null,null,null,"H1854",null,null,null,null,null,"K1854"]
[null,null,null,"H1855",null,null,null,null,null,"K1855"]
[null,null,null,"H1856",null,null,null,null,null,"K1856"]
[null,null,null,"H1857",null,null,null,null,null,"K1857"]
[null,null,null,"H1858",null,null,null,null,null,"K1858"]
[null,null,null,"H1859",null,null,null,null,null,"K1859"]
[null,null,null,"H1860",null,null,null,null,null,"K1860"]
[null,null,null,"H1861",null,null,null,null,null,"K1861"]
[null,null,null,"H1862",null,null,null,null,null,"K1862"]
[null,null,null,"H1863",null,null,null,null,null,"K1863"]
[null,null,null,"H1864",null,null,null,null,null,"K1864"]
[null,null,null,"H1865",null,null,null,null,null,"K1865"]
[null,null,null,"H1866",null,null,null,null,null,"K1866"]
[null,null,null,"H1867",null,null,null,null,null,"K1867"]
[null,null,null,"H1868",null,null,null,null,null,"K1868"]
[null,null,null,"H1869",null,null,null,null,null,"K1869"]
[null,null,null,"H1870",null,null,null,null,null,"K1870"]
[null,null,null,"H1871",null,null,null,null,null,"K1871"]
[null,null,null,"H1872",null,null,null,null,null,"K1872"]
[null,null,null,"H1873",null,null,null,null,null,"K1873"]
[null,null,null,"H1874",null,null,null,null,null,"K1874"]
[null,null,null,"H1875",null,null,null,null,null,"K1875"]
[null,null,null,"H1876",null,null,null,null,null,"K1876"]
[null,null,null,"H1877",null,null,null,null,null,"K1877"]
[null,null,null,"H1878",null,null,null,null,null,"K1878"]
[null,null,null,"H1879",null,null,null,null,null,"K1879"]
[null,null,null,"H1880",null,null,null,null,null,"K1880"]
[null,null,null,"H1881",null,null,null,null,null,"K1881"]
[null,null,null,"H1882",null,null,null,null,null,"K1882"]
[null,null,null,"H1883",null,null,null,null,null,"K1883"]
[null,null,null,"H1884",null,null,null,null,null,"K1884"]
[null,null,null,"H1885",null,null,null,null,null,"K1885"]
[null,null,null,"H1886",null,null,null,null,null,"K1886"]
[null,null,null,"H1887",null,null,null,null,null,"K1887"]
[null,null,null,"H1888",null,null,null,null,null,"K1888"]
[null,null,null,"H1889",null,null,null,null,null,"K1889"]
[null,null,null,"H1890",null,null,null,null,null,"K1890"]
[null,null,null,"H1891",null,null,null,null,null,"K1891"]
[null,null,null,"H1892",null,null,null,null,null,"K1892"]
[null,null,null,"H1893",null,null,null,null,null,"K1893"]
[null,null,null,"H1894",null,null,null,null,null,"K1894"]
[null,null,null,"H1895",null,null,null,null,null,"K1895"]
[null,null,null,"H1896",null,null,null,null,null,"K1896"]
[null,null,null,"H1897",null,null,null,null,null,"K1897"]
[null,null,null,"H1898",null,null,null,null,null,"K1898"]
[null,null,null,"H1899",null,null,null,null,null,"K1899"]
[null,null,null,"H1900",null,null,null,null,null,"K1900"]
[null,null,null,"H1901",null,null,null,null,null,"K1901"]
[null,null,null,"H1902",null,null,null,null,null,"K1902"]
[null,null,null,"H1903",null,null,null,null,null,"K1903"]
[null,null,null,"H1904",null,null,null,null,null,"K1904"]
[null,null,null,"H1905",null,null,null,null,null,"K1905"]
[null,null,null,"H1906",null,null,null,null,null,"K1906"]
[null,null,null,"H1907",null,null,null,null,null,"K1907"]
[null,null,null,"H1908",null,null,null,null,null,"K1908"]
[null,null,null,"H1909",null,null,null,null,null,"K1909"]
[null,null,null,"H1910",null,null,null,null,null,"K1910"]
[null,null,null,"H1911",null,null,null,null,null,"K1911"]
[null,null,null,"H1912",null,null,null,null,null,"K1912"]
[null,null,null,"H1913",null,null,null,null,null,"K1913"]
[null,null,null,"H1914",null,null,null,null,null,"K1914"]
[null,null,null,"H1915",null,null,null,null,null,"K1915"]
[null,null,null,"H1916",null,null,null,null,null,"K1916"]
[null,null,null,"H1917",null,null,null,null,null,"K1917"]
[null,null,null,"H1918",null,null,null,null,null,"K1918"]
[null,null,null,"H1919",null,null,null,null,null,"K1919"]
[null,null,null,"H1920",null,null,null,null,null,"K1920"]
[null,null,null,"H1921",null,null,null,null,null,"K1921"]
[null,null,null,"H1922",null,null,null,null,null,"K1922"]
[null,null,null,"H1923",null,null,null,null,null,"K1923"]
[null,null,null,"H1924",null,null,null,null,null,"K1924"]
[null,null,null,"H1925",null,null,null,null,null,"K1925"]
[null,null,null,"H1926",null,null,null,null,null,"K1926"]
[null,null,null,"H1927",null,null,null,null,null,"K1927"]
[null,null,null,"H1928",null,null,null,null,null,"K1928"]
[null,null,null,"H1929",null,null,null,null,null,"K1929"]
[null,null,null,"H1930",null,null,null,null,null,"K1930"]
[null,null,null,"H1931",null,null,null,null,null,"K1931"]
[null,null,null,"H1932",null,null,null,null,null,"K1932"]
[null,null,null,"H1933",null,null,null,null,null,"K1933"]
[null,null,null,"H1934",null,null,null,null,null,"K1934"]
[null,null,null,"H1935",null,null,null,null,null,"K1935"]
[null,null,null,"H1936",null,null,null,null,null,"K1936"]
[null,null,null,"H1937",null,null,null,null,null,"K1937"]
[null,null,null,"H1938",null,null,null,null,null,"K1938"]
[null,null,null,"H1939",null,null,null,null,null,"K1939"]
[null,null,null,"H1940",null,null,null,null,null,"K1940"]
[null,null,null,"H1941",null,null,null,null,null,"K1941"]
[null,null,null,"H1942",null,null,null,null,null,"K1942"]
[null,null,null,"H1943",null,null,null,null,null,"K1943"]
[null,null,null,"H1944",null,null,null,null,null,"K1944"]
[null,null,null,"H1945",null,null,null,null,null,"K1945"]
[null,null,null,"H1946",null,null,null,null,null,"K1946"]
[null,null,null,"H1947",null,null,null,null,null,"K1947"]
[null,null,null,"H1948",null,null,null,null,null,"K1948"]
[null,null,null,"H1949",null,null,null,null,null,"K1949"]
[null,null,null,"H1950",null,null,null,null,null,"K1950"]
[null,null,null,"H1951",null,null,null,null,null,"K1951"]
[null,null,null,"H1952",null,null,null,null,null,"K1952"]
[null,null,null,"H1953",null,null,null,null,null,"K1953"]
[null,null,null,"H1954",null,null,null,null,null,"K1954"]
[null,null,null,"H1955",null,null,null,null,null,"K1955"]
[null,null,null,"H1956",null,null,null,null,null,"K1956"]
[null,null,null,"H1957",null,null,null,null,null,"K1957"]
[null,null,null,"H1958",null,null,null,null,null,"K1958"]
[null,null,null,"H1959",null,null,null,null,null,"K1959"]
[null,null,null,"H1960",null,null,null,null,null,"K1960"]
[null,null,null,"H1961",null,null,null,null,null,"K1961"]
[null,null,null,"H1962",null,null,null,null,null,"K1962"]
[null,null,null,"H1963",null,null,null,null,null,"K1963"]
[null,null,null,"H1964",null,null,null,null,null,"K1964"]
[null,null,null,"H1965",null,null,null,null,null,"K1965"]
[null,null,null,"H1966",null,null,null,null,null,"K1966"]
[null,null,null,"H1967",null,null,null,null,null,"K1967"]
[null,null,null,"H1968",null,null,null,null,null,"K1968"]
[null,null,null,"H1969",null,null,null,null,null,"K1969"]
[null,null,null,"H1970",null,null,null,null,null,"K1970"]
[null,null,null,"H1971",null,null,null,null,null,"K1971"]
[null,null,null,"H1972",null,null,null,null,null,"K1972"]
[null,null,null,"H1973",null,null,null,null,null,"K1973"]
[null,null,null,"H1974",null,null,null,null,null,"K1974"]
[null,null,null,"H1975",null,null,null,null,null,"K1975"]
[null,null,null,"H1976",null,null,null,null,null,"K1976"]
[null,null,null,"H1977",null,null,null,null,null,"K1977"]
[null,null,null,"H1978",null,null,null,null,null,"K1978"]
[null,null,null,"H1979",null,null,null,null,null,"K1979"]
[null,null,null,"H1980",null,null,null,null,null,"K1980"]
[null,null,null,"H1981",null,null,null,null,null,"K1981"]
[null,null,null,"H1982",null,null,null,null,null,"K1982"]
[null,null,null,"H1983",null,null,null,null,null,"K1983"]
[null,null,null,"H1984",null,null,null,null,null,"K1984"]
[null,null,null,"H1985",null,null,null,null,null,"K1985"]
[null,null,null,"H1986",null,null,null,null,null,"K1986"]
[null,null,null,"H1987",null,null,null,null,null,"K1987"]
[null,null,null,"H1988",null,null,null,null,null,"K1988"]
[null,null,null,"H1989",null,null,null,null,null,"K1989"]
[null,null,null,"H1990",null,null,null,null,null,"K1990"]
[null,null,null,"H1991",null,null,null,null,null,"K1991"]
[null,null,null,"H1992",null,null,null,null,null,"K1992"]
[null,null,null,"H1993",null,null,null,null,null,"K1993"]
[null,null,null,"H1994",null,null,null,null,null,"K1994"]
[null,null,null,"H1995",null,null,null,null,null,"K1995"]
[null,null,null,"H1996",null,null,null,null,null,"K1996"]
[null,null,null,"H1997",null,null,null,null,null,"K1997"]
[null,null,null,"H1998",null,null,null,null,null,"K1998"]
[null,null,null,"H1999",null,null,null,null,null,"K1999"]
[null,null,null,"H2000","10万kW以下事業者",null,null,null,null,"K2000","10万kW以下事業者"]

{"sheet":"シート保護解除事業者リスト","index":3,"n_rows":100,"n_cols":26,"rows_kept":100,"cut":false,"hidden":true,"merged":[[1,4,1,5],[1,6,1,7],[1,8,1,15],[2,4,6,4],[2,5,6,5],[2,6,4,6],[2,7,2,15],[3,8,4,8],[3,9,4,9],[3,10,4,10],[3,23,4,23],[3,11,4,11],[3,12,4,12],[3,13,4,13],[3,14,4,14],[3,15,6,15],[3,17,4,17],[5,12,6,12],[5,13,6,13],[5,14,6,14],[5,17,6,17],[3,18,4,18],[3,19,4,19],[3,20,4,20],[3,21,4,21],[3,22,4,22],[5,23,6,23],[5,6,6,6],[5,7,6,7],[5,8,6,8],[5,9,6,9],[5,10,6,10],[5,11,6,11],[5,18,6,18],[5,19,6,19],[5,20,6,20],[5,21,6,21],[5,22,6,22]]}
["●一般送配電事業者+旧一般電気事業者",null,null,null,"●シート保護設定"]
["供計用事業者コード","事業者名","区分",null,"フォーマット",null,"送電事業者用",null,"一般送配電事業者用はシート保護解除版のみ作成"]
["対象なし","対象なし","―",null,"NO","シート一覧","シート表示/非表示","シートの保護",null,null,null,null,null,null,null,null,null,"●シート保護設定パターン"]
[null,null,null,null,null,null,null,null,"セルの書式設定","列の書式設定","行の書式設定","列の挿入","行の挿入","列の削除","行の削除","設定パターン\n（オブジェクトの編集DrawingObjectsについてはすべて編集可=False）",null,"セルの書式設定","列の書式設定","行の書式設定","列の挿入","行の挿入","列の削除","行の削除"]
[]
[null,null,null,null,null,null,"xlSheetVisible","Protect","AllowFormattingCells","AllowFormattingColumns","AllowFormattingRows","AllowInsertingColumns","AllowInsertingRows","AllowDeletingColumns","AllowDeletingRows",null,null,"AllowFormattingCells","AllowFormattingColumns","AllowFormattingRows","AllowInsertingColumns","AllowInsertingRows","AllowDeletingColumns","AllowDeletingRows"]
[]
[null,null,null,null,1,"作成手順","xlSheetVisible","True","False","False","False","False","False","False","False",{"$f":"IF(ISERROR(VLOOKUP(I8&J8&K8&L8&M8&N8&O8,$Y$8:$Z$15,2,FALSE)),\"\",VLOOKUP(I8&J8&K8&L8&M8&N8&O8,$Y$8:$Z$15,2,FALSE))","v":"全て不可"},null,"False","False","False","False","False","False","False",{"$f":"R8&S8&T8&U8&V8&W8&X8","v":"FalseFalseFalseFalseFalseFalseFalse"},"全て不可"]
[null,null,null,null,2,"チェックシート","xlSheetVisible","True","True","True","True","False","False","False","False",{"$f":"IF(ISERROR(VLOOKUP(I9&J9&K9&L9&M9&N9&O9,$Y$8:$Z$15,2,FALSE)),\"\",VLOOKUP(I9&J9&K9&L9&M9&N9&O9,$Y$8:$Z$15,2,FALSE))","v":"行、列書式設定可"},null,"True","False","False","False","False","False","False","TrueFalseFalseFalseFalseFalseFalse","行高さ、列幅変更不可"]
[null,null,null,null,3,"昨年度取込","－",null,null,null,null,null,null,null,null,null,null,"True","False","False","False","True","False","True","TrueFalseFalseFalseTrueFalseTrue","行挿入、削除可"]
[null,null,null,null,4,"事業者リスト一覧","xlSheetVisible","True","True","False","False","False","False","False","False",{"$f":"IF(ISERROR(VLOOKUP(I11&J11&K11&L11&M11&N11&O11,$Y$8:$Z$15,2,FALSE)),\"\",VLOOKUP(I11&J11&K11&L11&M11&N11&O11,$Y$8:$Z$15,2,FALSE))","v":"行高さ、列幅変更不可"},null,"True","False","True","False","False","False","False","TrueFalseTrueFalseFalseFalseFalse","行書式設定可"]
[null,null,null,null,5,"シート保護解除事業者リスト","xlSheetHidden","True","True","True","True","True","True","True","True",{"$f":"IF(ISERROR(VLOOKUP(I12&J12&K12&L12&M12&N12&O12,$Y$8:$Z$15,2,FALSE)),\"\",VLOOKUP(I12&J12&K12&L12&M12&N12&O12,$Y$8:$Z$15,2,FALSE))","v":"全て可"},null,"True","False","True","False","True","False","True","TrueFalseTrueFalseTrueFalseTrue","行挿入、削除可、書式設定可"]
[null,null,null,null,6,"帳票表示切替","xlSheetVisible","True","False","False","False","False","False","False","False",{"$f":"IF(ISERROR(VLOOKUP(I13&J13&K13&L13&M13&N13&O13,$Y$8:$Z$15,2,FALSE)),\"\",VLOOKUP(I13&J13&K13&L13&M13&N13&O13,$Y$8:$Z$15,2,FALSE))","v":"全て不可"},null,"True","True","True","False","False","False","False","TrueTrueTrueFalseFalseFalseFalse","行、列書式設定可"]
[null,null,null,null,7,"エリア表示切替","xlSheetHidden","True","False","False","False","False","False","False","False",{"$f":"IF(ISERROR(VLOOKUP(I14&J14&K14&L14&M14&N14&O14,$Y$8:$Z$15,2,FALSE)),\"\",VLOOKUP(I14&J14&K14&L14&M14&N14&O14,$Y$8:$Z$15,2,FALSE))","v":"全て不可"},null,"True","True","True","False","True","False","True","TrueTrueTrueFalseTrueFalseTrue","行挿入、削除可、行列書式設定可"]
[null,null,null,null,8,"入力支援シート→","－",null,null,null,null,null,null,null,null,null,null,"True","True","True","True","True","True","True","TrueTrueTrueTrueTrueTrueTrue","全て可"]
[null,null,null,null,9,"①風力","－"]
[null,null,null,null,10,"②太陽光（全量）","－"]
[null,null,null,null,11,"③太陽光（余剰）","－"]
[null,null,null,null,12,"風力","－"]
[null,null,null,null,13,"太陽光（全量）","－"]
[null,null,null,null,14,"太陽光（余剰）","－"]
[null,null,null,null,15,"水力保有電源","－"]
[null,null,null,null,16,"自流式","－"]
[null,null,null,null,17,"揚水","－"]
[null,null,null,null,18,"調整係数","－"]
[null,null,null,null,19,"火力保有電源","－"]
[null,null,null,null,20,"原子力保有電源","－"]
[null,null,null,null,21,"新エネルギー等保有電源","－"]
[null,null,null,null,22,"蓄電池","－"]
[null,null,null,null,23,"調整力","－"]
[null,null,null,null,24,"保有電源","－"]
[null,null,null,null,25,"保有電源電力量","－"]
[null,null,null,null,26,"受電取引帳票","－"]
[null,null,null,null,27,"送電取引帳票","－"]
[null,null,null,null,28,"自者間取引帳票","－"]
[null,null,null,null,29,"補正シート→","－"]
[null,null,null,null,30,"補正（ｋW）指定１","－"]
[null,null,null,null,31,"補正（ｋW）指定２","－"]
[null,null,null,null,32,"補正（ｋWｈ）","－"]
[null,null,null,null,33,"補正（太陽光）指定１","－"]
[null,null,null,null,34,"補正（太陽光）指定２","－"]
[null,null,null,null,35,"補正（風力）指定１","－"]
[null,null,null,null,36,"補正（風力）指定２","－",null,null,null,null,null,null,null,null,{"$f":"IF(ISERROR(VLOOKUP(I43&J43&K43&L43&M43&N43&O43,$Y$8:$Z$15,2,FALSE)),\"\",VLOOKUP(I43&J43&K43&L43&M43&N43&O43,$Y$8:$Z$15,2,FALSE))","v":""}]
[null,null,null,null,37,"時間帯別供給力（１２ｈ）","－",null,null,null,null,null,null,null,null,""]
[null,null,null,null,38,"厳気象対応供給力","－",null,null,null,null,null,null,null,null,""]
[null,null,null,null,39,"供給計画届出書様式→","xlSheetVisible","True","False","False","False","False","False","False","False","全て不可"]
[null,null,null,null,40,"表紙","xlSheetVisible","True","True","False","False","False","False","False","False","行高さ、列幅変更不可"]
[null,null,null,null,41,"別紙（変更供計用）","xlSheetHidden","True","True","False","False","False","False","False","False","行高さ、列幅変更不可"]
[null,null,null,null,42,"目次","xlSheetVisible","True","False","False","False","False","False","False","False","全て不可"]
[null,null,null,null,43,"様式第32第1表（指定１）","xlSheetHidden","True","True","False","False","False","False","False","False","行高さ、列幅変更不可"]
[null,null,null,null,44,"様式第32第1表（指定２）","xlSheetHidden","True","True","False","False","False","False","False","False","行高さ、列幅変更不可"]
[null,null,null,null,45,"様式第32第2表","xlSheetHidden","True","True","False","False","False","False","False","False","行高さ、列幅変更不可"]
[null,null,null,null,46,"様式第32第3表（指定）","xlSheetHidden","True","True","False","False","False","False","False","False","行高さ、列幅変更不可"]
[null,null,null,null,47,"様式第32第3表（指定） (2年度目)","xlSheetHidden","True","True","False","False","False","False","False","False","行高さ、列幅変更不可"]
[null,null,null,null,48,"様式第32第4表","xlSheetHidden","True","True","False","False","False","False","False","False","行高さ、列幅変更不可"]
[null,null,null,null,49,"様式第32第5表（水力）","xlSheetHidden","True","True","False","False","False","False","False","False","行高さ、列幅変更不可"]
[null,null,null,null,50,"様式第32第5表（火力）","xlSheetHidden","True","True","False","False","False","False","False","False",{"$f":"IF(ISERROR(VLOOKUP(I57&J57&K57&L57&M57&N57&O57,$Y$8:$Z$15,2,FALSE)),\"\",VLOOKUP(I57&J57&K57&L57&M57&N57&O57,$Y$8:$Z$15,2,FALSE))","v":"行高さ、列幅変更不可"}]
[null,null,null,null,51,"様式第32第5表（原子力）","xlSheetHidden","True","True","False","False","False","False","False","False",{"$f":"IF(ISERROR(VLOOKUP(I58&J58&K58&L58&M58&N58&O58,$Y$8:$Z$15,2,FALSE)),\"\",VLOOKUP(I58&J58&K58&L58&M58&N58&O58,$Y$8:$Z$15,2,FALSE))","v":"行高さ、列幅変更不可"}]
[null,null,null,null,52,"様式第32第5表（新エネ）","xlSheetHidden","True","True","False","False","False","False","False","False","行高さ、列幅変更不可"]
[null,null,null,null,53,"様式第32第6の1表","xlSheetVisible","True","True","False","False","False","False","False","False","行高さ、列幅変更不可"]
[null,null,null,null,54,"様式第32第6の2表","xlSheetVisible","True","True","False","False","False","False","False","False","行高さ、列幅変更不可"]
[null,null,null,null,55,"様式第32第6の3表","xlSheetVisible","True","True","False","False","False","False","False","False","行高さ、列幅変更不可"]
[null,null,null,null,56,"様式第32第7表（水力）","xlSheetHidden","True","True","False","False","False","True","False","True","行挿入、削除可"]
[null,null,null,null,57,"様式第32第7表（火力）","xlSheetHidden","True","True","False","False","False","True","False","True","行挿入、削除可"]
[null,null,null,null,58,"様式第32第7表（原子力）","xlSheetHidden","True","True","False","False","False","True","False","True","行挿入、削除可"]
[null,null,null,null,59,"様式第32第7表（新エネ）","xlSheetHidden","True","True","False","False","False","True","False","True","行挿入、削除可"]
[null,null,null,null,60,"様式第32第8表（指定１）_受電","xlSheetHidden","True","True","False","False","False","False","False","False","行高さ、列幅変更不可"]
[null,null,null,null,61,"様式第32第8表（指定１）_送電","xlSheetHidden","True","True","False","False","False","False","False","False","行高さ、列幅変更不可"]
[null,null,null,null,62,"様式第32第8表（指定２）_受電","xlSheetHidden","True","True","False","False","False","False","False","False","行高さ、列幅変更不可"]
[null,null,null,null,63,"様式第32第8表（指定２）_送電","xlSheetHidden","True","True","False","False","False","False","False","False","行高さ、列幅変更不可"]
[null,null,null,null,64,"添付書類","xlSheetVisible","True","False","False","False","False","False","False","False","全て不可"]
[null,null,null,null,65,"様式第33表（指定１）","xlSheetHidden","True","True","False","False","False","False","False","False","行高さ、列幅変更不可"]
[null,null,null,null,66,"様式第33表（指定２）","xlSheetHidden","True","True","False","False","False","False","False","False","行高さ、列幅変更不可"]
[null,null,null,null,67,"様式第33の2（指定１）","xlSheetHidden","True","True","False","False","False","False","False","False","行高さ、列幅変更不可"]
[null,null,null,null,68,"様式第33の2（指定２）","xlSheetHidden","True","True","False","False","False","False","False","False","行高さ、列幅変更不可"]
[null,null,null,null,69,"様式第33の3第1表（指定１）","xlSheetHidden","True","True","False","False","False","False","False","False","行高さ、列幅変更不可"]
[null,null,null,null,70,"様式第33の3第1表（指定２）","xlSheetHidden","True","True","False","False","False","False","False","False","行高さ、列幅変更不可"]
[null,null,null,null,71,"様式第33の3第2表","xlSheetHidden","True","True","False","False","False","False","False","False","行高さ、列幅変更不可"]
[null,null,null,null,72,"様式第33の3第2表 (2年度目)","xlSheetHidden","True","True","False","False","False","False","False","False","行高さ、列幅変更不可"]
[null,null,null,null,73,"様式第34第1表","xlSheetHidden","True","True","False","False","False","False","False","False","行高さ、列幅変更不可"]
[null,null,null,null,74,"様式第34第1表 (2年度目)","xlSheetHidden","True","True","False","False","False","False","False","False","行高さ、列幅変更不可"]
[null,null,null,null,75,"様式第34第2表","xlSheetHidden","True","True","False","False","False","False","False","False","行高さ、列幅変更不可"]
[null,null,null,null,76,"様式第34第2表 (2年度目)","xlSheetHidden","True","True","False","False","False","False","False","False","行高さ、列幅変更不可"]
[null,null,null,null,77,"様式第34第3表","xlSheetHidden","True","True","False","False","False","False","False","False","行高さ、列幅変更不可"]
[null,null,null,null,78,"様式第34第3表 (2年度目)","xlSheetHidden","True","True","False","False","False","False","False","False","行高さ、列幅変更不可"]
[null,null,null,null,79,"様式第34第4表","xlSheetHidden","True","True","False","False","False","False","False","False","行高さ、列幅変更不可"]
[null,null,null,null,80,"様式第34第4表 (2年度目)","xlSheetHidden","True","True","False","False","False","False","False","False","行高さ、列幅変更不可"]
[null,null,null,null,81,"様式第35第1表","xlSheetHidden","True","True","False","False","False","False","False","False","行高さ、列幅変更不可"]
[null,null,null,null,82,"様式第35第2表","xlSheetHidden","True","True","False","False","False","False","False","False","行高さ、列幅変更不可"]
[null,null,null,null,83,"様式第35第3表","xlSheetHidden","True","True","False","False","False","False","False","False","行高さ、列幅変更不可"]
[null,null,null,null,84,"様式第36表（指定）_受電","xlSheetHidden","True","True","False","False","False","False","False","False","行高さ、列幅変更不可"]
[null,null,null,null,85,"様式第36表（指定）_受電 (2年度目)","xlSheetHidden","True","True","False","False","False","False","False","False","行高さ、列幅変更不可"]
[null,null,null,null,86,"様式第36表（指定）_送電","xlSheetHidden","True","True","False","False","False","False","False","False",{"$f":"IF(ISERROR(VLOOKUP(I93&J93&K93&L93&M93&N93&O93,$Y$8:$Z$15,2,FALSE)),\"\",VLOOKUP(I93&J93&K93&L93&M93&N93&O93,$Y$8:$Z$15,2,FALSE))","v":"行高さ、列幅変更不可"}]
[null,null,null,null,87,"様式第36表（指定）_送電 (2年度目)","xlSheetHidden","True","True","False","False","False","False","False","False",{"$f":"IF(ISERROR(VLOOKUP(I94&J94&K94&L94&M94&N94&O94,$Y$8:$Z$15,2,FALSE)),\"\",VLOOKUP(I94&J94&K94&L94&M94&N94&O94,$Y$8:$Z$15,2,FALSE))","v":"行高さ、列幅変更不可"}]
[null,null,null,null,88,"様式第37表","xlSheetHidden","True","True","False","False","False","False","False","False",{"$f":"IF(ISERROR(VLOOKUP(I95&J95&K95&L95&M95&N95&O95,$Y$8:$Z$15,2,FALSE)),\"\",VLOOKUP(I95&J95&K95&L95&M95&N95&O95,$Y$8:$Z$15,2,FALSE))","v":"行高さ、列幅変更不可"}]
[null,null,null,null,89,"様式第38表（電力系統の状況）","xlSheetVisible","False","False","False","False","False","False","False","False",{"$f":"IF(ISERROR(VLOOKUP(I96&J96&K96&L96&M96&N96&O96,$Y$8:$Z$15,2,FALSE)),\"\",VLOOKUP(I96&J96&K96&L96&M96&N96&O96,$Y$8:$Z$15,2,FALSE))","v":"全て不可"}]
[null,null,null,null,90,"様式第38表（電力潮流の状況）","xlSheetHidden","True","False","False","False","False","False","False","False","全て不可"]
[null,null,null,null,91,"様式第38の2表（指定１）","xlSheetHidden","True","True","False","False","False","True","False","True","行挿入、削除可"]
[null,null,null,null,92,"様式第38の2表（指定２）","xlSheetHidden","True","True","False","False","False","True","False","True","行挿入、削除可"]
[null,null,null,null,93,"見え消し版用表紙（変更供計用）","xlSheetHidden","True","False","False","False","False","False","False","False","全て不可"]

{"sheet":"帳票表示切替","index":4,"n_rows":42,"n_cols":64,"rows_kept":42,"cut":false,"hidden":false,"merged":[]}
[null,null,null,null,null,null,"供給計画の各様式及びエリアの記載状況確認表"]
[null,null,null,null,null,null,"（○印が入っている箇所が記載のある表）",null,null,null,null,null,null,null,null,null,null,null,null,null,null,null,null,null,null,null,null,null,null,null,null,null,null,null,null,null,null,null,null,null,null,null,null,null,null,"届出書",null,"発","卸","小","登","送","一","配",null,null,null,"発","卸","小","登","送","一","配"]
[null,"表示切替フラグ",1,null,null,null,null,null,null,null,null,null,null,null,1,1,1,null,null,null,null,null,null,null,null,1,null,null,null,null,null,null,null,null,null,null,null,null,null,null,null,null,null,null,null,"①","表紙","◎","◎","◎","◎","◎","◎","◎",null,"㊶","様式第35第1表","○"]
[null,null,"①","②","③","④","⑤","⑥","⑦","⑧","⑨","⑩","⑪","⑫","⑬","⑭","⑮","⑯","⑰","⑱","⑲","⑳","㉑","㉒","㉓","㉔","㉕","㉖","㉗","㉘","㉙","㉚","㉛","㉜","㉝","㉞","㉟","㊱","㊲","㊳","㊴","㊵",null,null,null,"②","別紙（変更供計用）","△","△","△","△","△","△","△",null,"㊷","様式第35第2表","○"]
[null,"共通",{"$f":"表紙!AC27","v":""},{"$f":"'別紙（変更供計用）'!AP16","v":""},null,null,null,null,null,null,null,null,null,null,{"$f":"様式第32第6の1表!Q7","v":""},{"$f":"様式第32第6の2表!S7","v":""},{"$f":"様式第32第6の3表!K7","v":""},null,null,null,null,null,null,null,null,{"$f":"IF(COUNTIF(AB5:AJ15,\"○\")+COUNTIF(C19:O29,\"○\")>0,\"○\",\"\")","v":"○"},null,null,null,null,null,null,null,null,null,null,null,null,null,null,null,null,null,null,null,"③","様式第32第1表（指定１）","◎","◎","◎","◎",null,"◎","◎",null,"㊸","様式第35第3表","○"]
[null,"北海道",null,null,null,null,null,null,null,null,null,null,null,null,null,null,null,null,null,null,null,null,null,null,null,null,null,null,null,null,null,null,null,null,null,null,null,null,null,null,null,null,null,null,null,"④","様式第32第1表（指定２）","○","○","○","○",null,"○","○",null,"㊹","様式第36表（指定）_受電","○","○","○","○",null,"○","○"]
[null,"東北",null,null,null,null,null,null,null,null,null,null,null,null,null,null,null,null,null,null,null,null,null,null,null,null,null,null,null,null,null,null,null,null,null,null,null,null,null,null,null,null,null,null,null,"⑤","様式第32第2表","◎","◎","◎","◎",null,"◎","◎",null,"㊺","様式第36表（指定）_受電 (2年度目)","○","○","○","○",null,"○","○"]
[null,"東京",null,null,null,null,null,null,null,null,null,null,null,null,null,null,null,null,null,null,null,null,null,null,null,null,null,null,null,null,null,null,null,null,null,null,null,null,null,null,null,null,null,null,null,"⑥","様式第32第3表（指定）","◎","◎","◎","◎",null,"◎","◎",null,"㊻","様式第36表（指定）_送電","○","○","○","○",null,"○","○"]
[null,"中部",null,null,null,null,null,null,null,null,null,null,null,null,null,null,null,null,null,null,null,null,null,null,null,null,null,null,null,null,null,null,null,null,null,null,null,null,null,null,null,null,null,null,null,"⑦","様式第32第3表（指定） (2年度目)","◎","◎","◎","◎",null,"◎","◎",null,"㊼","様式第36表（指定）_送電 (2年度目)","○","○","○","○",null,"○","○"]
[null,"北陸",null,null,null,null,null,null,null,null,null,null,null,null,null,null,null,null,null,null,null,null,null,null,null,null,null,null,null,null,null,null,null,null,null,null,null,null,null,null,null,null,null,null,null,"⑧","様式第32第4表","◎","◎","◎","◎",null,"◎","◎",null,"㊽","様式第37表",null,null,null,null,null,"◎","◎"]
[null,"関西",null,null,null,null,null,null,null,null,null,null,null,null,null,null,null,null,null,null,null,null,null,null,null,null,null,null,null,null,null,null,null,null,null,null,null,null,null,null,null,null,null,null,null,"⑨","様式第32第5表（水力）","○",null,null,null,null,null,null,null,"㊾","様式第38表（電力系統の状況）",null,null,null,"◎","◎","◎","◎"]
[null,"中国",null,null,null,null,null,null,null,null,null,null,null,null,null,null,null,null,null,null,null,null,null,null,null,null,null,null,null,null,null,null,null,null,null,null,null,null,null,null,null,null,null,null,null,"⑩","様式第32第5表（火力）","○",null,null,null,null,null,null,null,"㊿","様式第38表（電力潮流の状況）",null,null,null,null,null,"◎"]
[null,"四国",null,null,null,null,null,null,null,null,null,null,null,null,null,null,null,null,null,null,null,null,null,null,null,null,null,null,null,null,null,null,null,null,null,null,null,null,null,null,null,null,null,null,null,"⑪","様式第32第5表（原子力）","○",null,null,null,null,null,null,null,51,"様式第38の2表（指定１）",null,null,null,null,null,"◎"]
[null,"九州",null,null,null,null,null,null,null,null,null,null,null,null,null,null,null,null,null,null,null,null,null,null,null,null,null,null,null,null,null,null,null,null,null,null,null,null,null,null,null,null,null,null,null,"⑫","様式第32第5表（新エネ）","○",null,null,null,null,null,null,null,52,"様式第38の2表（指定２）",null,null,null,null,null,"◎"]
[null,"沖縄",null,null,null,null,null,null,null,null,null,null,null,null,null,null,null,null,null,null,null,null,null,null,null,null,null,null,null,null,null,null,null,null,null,null,null,null,null,null,null,null,null,null,null,"⑬","様式第32第6の1表",null,null,null,"○","○","○","○",null,53,"見え消し版用表紙（変更供計用）","△","△","△","△","△","△","△"]
[null,null,null,null,null,null,null,null,null,null,null,null,null,null,null,null,null,null,null,null,null,null,null,null,null,null,null,null,null,null,null,null,null,null,null,null,null,null,null,null,null,null,null,null,null,"⑭","様式第32第6の2表",null,null,null,"○","○","○","○",null,"別紙"]
[null,"表示切替フラグ",null,null,null,null,null,null,null,null,1,null,null,null,null,null,null,null,null,null,null,null,null,null,null,null,null,null,null,null,null,null,null,null,null,null,null,null,null,null,null,null,null,null,null,"⑮","様式第32第6の3表",null,null,null,null,"○","○",null,null,1,"厳気象対応供給力","○",null,null,null,null,"○"]
[null,null,"㊶","㊷","㊸","㊹","㊺","㊻","㊼","㊽","㊾","㊿",51,52,53,null,1,null,"⑴","⑵","⑶","⑷","⑸","⑹","⑺","⑻","⑼","⑽","⑾","⑿","⒀","⒁","⒂","⒃",null,null,null,null,null,null,null,null,null,null,null,"⑯","様式第32第7表（水力）","○",null,null,null,null,null,null,null,"入力支援シート"]
[null,"共通",null,null,null,null,null,null,null,{"$f":"様式第37表!W3","v":""},{"$f":"IF(AND(表紙!W20<>\"小売電気事業者\",表紙!W20<>\"発電事業者\",表紙!W20<>\"特定卸供給事業者\"),\"○\",\"\")","v":"○"},{"$f":"IF(表紙!W20=\"一般送配電事業者\",\"○\",\"\")","v":""},{"$f":"'様式第38の2表（指定１）'!M6","v":""},{"$f":"'様式第38の2表（指定２）'!M6","v":""},{"$f":"IF(表紙!AB24<>\"新規\",\"○\",\"\")","v":""},null,null,null,null,null,null,null,null,null,null,null,null,null,null,null,null,null,null,null,null,null,null,null,null,null,null,null,null,null,null,"⑰","様式第32第7表（火力）","○",null,null,null,null,null,null,null,"⑴","風力","○","○","○","○"]
[null,"北海道",null,null,null,null,null,null,null,null,null,null,null,null,null,null,null,null,null,null,null,null,null,null,null,null,null,null,null,null,null,null,null,null,null,null,null,null,null,null,null,null,null,null,null,"⑱","様式第32第7表（原子力）","○",null,null,null,null,null,null,null,"⑵","太陽光（全量）","○","○","○","○"]
[null,"東北",null,null,null,null,null,null,null,null,null,null,null,null,null,null,null,null,null,null,null,null,null,null,null,null,null,null,null,null,null,null,null,null,null,null,null,null,null,null,null,null,null,null,null,"⑲","様式第32第7表（新エネ）","○",null,null,null,null,null,null,null,"⑶","太陽光（余剰）","○","○","○","○"]
[null,"東京",null,null,null,null,null,null,null,null,null,null,null,null,null,null,null,null,null,null,null,null,null,null,null,null,null,null,null,null,null,null,null,null,null,null,null,null,null,null,null,null,null,null,null,"⑳","様式第32第8表（指定１）_受電","○","○","○","○",null,"○","○",null,"⑷","水力保有電源","○"]
[null,"中部",null,null,null,null,null,null,null,null,null,null,null,null,null,null,null,null,null,null,null,null,null,null,null,null,null,null,null,null,null,null,null,null,null,null,null,null,null,null,null,null,null,null,null,"㉑","様式第32第8表（指定１）_送電","○","○","○","○",null,"○","○",null,"⑸","自流式","○"]
[null,"北陸",null,null,null,null,null,null,null,null,null,null,null,null,null,null,null,null,null,null,null,null,null,null,null,null,null,null,null,null,null,null,null,null,null,null,null,null,null,null,null,null,null,null,null,"㉒","様式第32第8表（指定２）_受電","○","○","○","○",null,"○","○",null,"⑹","揚水","○"]
[null,"関西",null,null,null,null,null,null,null,null,null,null,null,null,null,null,null,null,null,null,null,null,null,null,null,null,null,null,null,null,null,null,null,null,null,null,null,null,null,null,null,null,null,null,null,"㉓","様式第32第8表（指定２）_送電","○","○","○","○",null,"○","○",null,"⑺","火力保有電源","○"]
[null,"中国",null,null,null,null,null,null,null,null,null,null,null,null,null,null,null,null,null,null,null,null,null,null,null,null,null,null,null,null,null,null,null,null,null,null,null,null,null,null,null,null,null,null,null,"㉔","添付書類","－","－","－","－","－","－","－",null,"⑻","原子力保有電源","○"]
[null,"四国",null,null,null,null,null,null,null,null,null,null,null,null,null,null,null,null,null,null,null,null,null,null,null,null,null,null,null,null,null,null,null,null,null,null,null,null,null,null,null,null,null,null,null,"㉕","様式第33表（指定１）",null,null,null,null,null,"◎","◎",null,"⑼","新エネルギー等保有電源","○"]
[null,"九州",null,null,null,null,null,null,null,null,null,null,null,null,null,null,null,null,null,null,null,null,null,null,null,null,null,null,null,null,null,null,null,null,null,null,null,null,null,null,null,null,null,null,null,"㉖","様式第33表（指定２）",null,null,null,null,null,"○","○",null,"⑽","蓄電池","○"]
[null,"沖縄",null,null,null,null,null,null,null,null,null,null,null,null,null,null,null,null,null,null,null,null,null,null,null,null,null,null,null,null,null,null,null,null,null,null,null,null,null,null,null,null,null,null,null,"㉗","様式第33の2（指定１）",null,null,null,null,null,"○","○",null,"⑾","調整力","○"]
[null,null,null,null,null,null,null,null,null,null,null,null,null,null,null,null,null,null,null,null,null,null,null,null,null,null,null,null,null,null,null,null,null,null,null,null,null,null,null,null,null,null,null,null,null,"㉘","様式第33の2（指定２）",null,null,null,null,null,"○","○",null,"⑿","保有電源",null,"○","○","○"]
[null,null,null,null,null,null,null,null,null,null,null,null,null,null,null,null,null,null,null,null,null,null,null,null,null,null,null,null,null,null,null,null,null,null,null,null,null,null,null,null,null,null,null,null,null,"㉙","様式第33の3第1表（指定１）","○","○","○","○",null,"○","○",null,"⒀","保有電源電力量","○","○","○","○"]
[null,null,null,null,null,null,null,null,null,null,null,null,null,null,null,null,null,null,null,null,null,null,null,null,null,null,null,null,null,null,null,null,null,null,null,null,null,null,null,null,null,null,null,null,null,"㉚","様式第33の3第1表（指定２）","○","○","○","○",null,"○","○",null,"⒁","受電取引帳票","○","○","○","○",null,"○","○"]
[null,null,null,null,null,null,null,null,null,null,null,null,null,null,null,null,null,null,null,null,null,null,null,null,null,null,null,null,null,null,null,null,null,null,null,null,null,null,null,null,null,null,null,null,null,"㉛","様式第33の3第2表",null,null,null,null,null,null,null,null,"⒂","送電取引帳票","○","○","○","○",null,"○","○"]
[null,null,null,null,null,null,null,null,null,null,null,null,null,null,null,null,null,null,null,null,null,null,null,null,null,null,null,null,null,null,null,null,null,null,null,null,null,null,null,null,null,null,null,null,null,"㉜","様式第33の3第2表 (2年度目)",null,null,null,null,null,null,null,null,"⒃","自者間取引帳票",null,null,"○"]
[null,null,null,null,null,null,null,null,null,null,null,null,null,null,null,null,null,null,null,null,null,null,null,null,null,null,null,null,null,null,null,null,null,null,null,null,null,null,null,null,null,null,null,null,null,"㉝","様式第34第1表","○"]
[null,null,null,null,null,null,null,null,null,null,null,null,null,null,null,null,null,null,null,null,null,null,null,null,null,null,null,null,null,null,null,null,null,null,null,null,null,null,null,null,null,null,null,null,null,"㉞","様式第34第1表 (2年度目)","○",null,null,null,null,null,null,null,"凡例"]
[null,null,null,null,null,null,null,null,null,null,null,null,null,null,null,null,null,null,null,null,null,null,null,null,null,null,null,null,null,null,null,null,null,null,null,null,null,null,null,null,null,null,null,null,null,"㉟","様式第34第2表","○",null,null,null,null,null,null,null,"◎：記載必須　○：場合により記載必要"]
[null,null,null,null,null,null,null,null,null,null,null,null,null,null,null,null,null,null,null,null,null,null,null,null,null,null,null,null,null,null,null,null,null,null,null,null,null,null,null,null,null,null,null,null,null,"㊱","様式第34第2表 (2年度目)","○",null,null,null,null,null,null,null,"△：変更供計時に記載必須　空白：記載不要"]
[null,null,null,null,null,null,null,null,null,null,null,null,null,null,null,null,null,null,null,null,null,null,null,null,null,null,null,null,null,null,null,null,null,null,null,null,null,null,null,null,null,null,null,null,null,"㊲","様式第34第3表","○",null,null,null,null,null,null,null,"発：発電事業者　卸：特定卸供給事業者　小：小売電気事業者"]
[null,null,null,null,null,null,null,null,null,null,null,null,null,null,null,null,null,null,null,null,null,null,null,null,null,null,null,null,null,null,null,null,null,null,null,null,null,null,null,null,null,null,null,null,null,"㊳","様式第34第3表 (2年度目)","○",null,null,null,null,null,null,null,"登：登録特定送配電事業者　送：特定送配電事業者、送電事業者"]
[null,null,null,null,null,null,null,null,null,null,null,null,null,null,null,null,null,null,null,null,null,null,null,null,null,null,null,null,null,null,null,null,null,null,null,null,null,null,null,null,null,null,null,null,null,"㊴","様式第34第4表","○",null,null,null,null,null,null,null,"一：一般送配電事業者　配：配電事業者"]
[null,null,null,null,null,null,null,null,null,null,null,null,null,null,null,null,null,null,null,null,null,null,null,null,null,null,null,null,null,null,null,null,null,null,null,null,null,null,null,null,null,null,null,null,null,"㊵","様式第34第4表 (2年度目)","○"]

{"sheet":"エリア表示切替","index":5,"n_rows":30,"n_cols":11,"rows_kept":30,"cut":false,"hidden":true,"merged":[[2,7,29,7],[2,9,6,9]]}
[]
[null,null,null,null,null,null,null,"エリア表示切替対象帳票"]
[null,null,"表示切替フラグ",null,null,null,null,"供給計画","様式第32第1表（指定１）","入力支援\nシート","風力"]
[null,"北海道",1,null,null,null,null,null,"様式第32第1表（指定２）",null,"太陽光（全量）"]
[null,"東北",1,null,null,null,null,null,"様式第32第2表",null,"太陽光（余剰）"]
[null,"東京",1,null,null,null,null,null,"様式第32第3表（指定）",null,"保有電源"]
[null,"中部",1,null,null,null,null,null,"様式第32第3表（指定） (2年度目)",null,"保有電源電力量"]
[null,"北陸",1,null,null,null,null,null,"様式第32第4表"]
[null,"関西",1,null,null,null,null,null,"様式第32第8表（指定１）_受電"]
[null,"中国",1,null,null,null,null,null,"様式第32第8表（指定１）_送電"]
[null,"四国",1,null,null,null,null,null,"様式第32第8表（指定２）_受電"]
[null,"九州",1,null,null,null,null,null,"様式第32第8表（指定２）_送電"]
[null,"沖縄",1,null,null,null,null,null,"様式第33表（指定１）"]
[null,null,null,null,null,null,null,null,"様式第33表（指定２）"]
[null,null,null,null,null,null,null,null,"様式第33の3第1表（指定１）"]
[null,null,null,null,null,null,null,null,"様式第33の3第1表（指定２）"]
[null,null,null,null,null,null,null,null,"様式第33の3第2表"]
[null,null,null,null,null,null,null,null,"様式第33の3第2表 (2年度目)"]
[null,null,null,null,null,null,null,null,"様式第34第1表"]
[null,null,null,null,null,null,null,null,"様式第34第1表 (2年度目)"]
[null,null,null,null,null,null,null,null,"様式第34第2表"]
[null,null,null,null,null,null,null,null,"様式第34第2表 (2年度目)"]
[null,null,null,null,null,null,null,null,"様式第34第3表"]
[null,null,null,null,null,null,null,null,"様式第34第3表 (2年度目)"]
[null,null,null,null,null,null,null,null,"様式第34第4表"]
[null,null,null,null,null,null,null,null,"様式第34第4表 (2年度目)"]
[null,null,null,null,null,null,null,null,"様式第36表（指定）_受電"]
[null,null,null,null,null,null,null,null,"様式第36表（指定）_受電 (2年度目)"]
[null,null,null,null,null,null,null,null,"様式第36表（指定）_送電"]
[null,null,null,null,null,null,null,null,"様式第36表（指定）_送電 (2年度目)"]

{"sheet":"供給計画届出書様式→","index":6,"n_rows":0,"n_cols":0,"rows_kept":0,"cut":false,"hidden":false,"merged":[]}

{"sheet":"表紙","index":7,"n_rows":31,"n_cols":36,"rows_kept":31,"cut":false,"hidden":false,"merged":[[18,13,18,22],[23,7,25,22],[23,4,25,6],[19,27,19,29],[20,27,20,29],[22,27,22,29],[23,27,23,29],[11,16,11,17],[16,27,16,29],[17,27,17,29],[17,31,17,33],[16,13,16,22],[17,13,17,22]]}
[]
[]
[]
[]
[null,null,{"$f":"IF($AB$24=\"新規\",\"様式第３２（第４６条関係）\",\"様式第３９（第４６条関係）\")","v":"様式第３２（第４６条関係）"}]
[]
[]
[]
[null,null,{"$f":"IF($AB$24=\"新規\",\"供給計画届出書\",\"供給計画変更届出書\")","v":"供給計画届出書"}]
[]
[]
[]
[]
[null,null,null,"経済産業大臣　殿"]
[]
[null,null,null,null,null,null,null,null,null,null,null,null,null,null,null,null,null,null,null,null,null,null,null,null,null,null,null,null,null,null,null,null,null,null,null,"ご作成者メールアドレス(広域機関からの返信に使用)"]
[null,null,null,null,null,null,null,null,null,null,null,null,"（住所）",null,null,null,null,null,null,null,null,null,null,null,null,null,null,"供給計画用　事業者コード"]
[null,null,null,null,null,null,null,null,null,null,null,null,"（事業者名）",{"$f":"IF(AB18=\"\",\"\",SUBSTITUTE(VLOOKUP(AB18,INDIRECT(AF18),2,FALSE),\" \",\"　\"))","v":""},null,null,null,null,null,null,null,null,null,null,null,null,null,null,null,null,null,{"$f":"IF($W$20=\"発電事業者\",\"事業者リスト一覧!D3:E2003\",IF($W$20=\"小売電気事業者\",\"事業者リスト一覧!J3:K2003\",IF($W$20=\"一般送配電事業者\",\"事業者リスト一覧!G3:H13\",IF($W$20=\"送電事業者\",\"事業者リスト一覧!S4:T103\",IF($W$20=\"特定送配電事業者\",\"事業者リスト一覧!V4:W103\",IF($W$20=\"登録特定送配電事業者\",\"事業者リスト一覧!Y4:Z103\",IF($W$20=\"その他事業者\",\"事業者リスト一覧!G17:H26\",IF($W$20=\"配電事業者\",\"事業者リスト一覧!M4:N503\",IF($W$20=\"特定卸供給事業者\",\"事業者リスト一覧!P4:Q503\")))))))))","v":"事業者リスト一覧!S4:T103"}]
[null,null,null,null,null,null,null,null,null,null,null,null,"（代表者名）",null,null,null,null,null,null,null,null,null,null,null,null,null,null,null,null,null,null,null,null,null,null,"ご作成者以外で広域機関からの返信が必要な方のメールアドレス"]
[null,null,null,null,null,null,null,null,null,null,null,null,null,null,null,null,null,null,null,null,null,null,"送電事業者",null,null,null,null,"事業者コード"]
[]
[null,null,null,{"$f":"IF($AB$24=\"新規\",\"電気事業法第２９条第１項の規定により、\"&DBCS(事業者リスト一覧!B3)&\"年度の供給計画を別紙のとおり届け出ます。\",\"\"&DBCS(事業者リスト一覧!B3)&\"年度の供給計画を次のとおり変更したので、電気事業法第２９条第３項の規定により届け出ます。\")","v":"電気事業法第２９条第１項の規定により、２０２６年度の供給計画を別紙のとおり届け出ます。"}]
[null,null,null,null,null,null,null,null,null,null,null,null,null,null,null,null,null,null,null,null,null,null,null,null,null,null,null,"提出区分"]
[null,null,null,null,{"$f":"IF($AB$24=\"新規\",\"\",\"変更の内容\")","v":""},null,null,null,null,null,null,null,null,null,null,null,null,null,null,null,null,null,null,null,null,null,null,"新規"]
[]
[null,null,null,null,null,null,null,null,null,null,null,null,null,null,null,null,null,null,null,null,null,null,null,null,null,null,null,"判定①",{"$f":"IF(OR(N17=\"\",N19=\"\",AB18=\"\",AB21=\"\",AJ17=\"\",AND(AB24<>\"新規\",H24=\"\")),\"×\",\"○\")","v":"×"}]
[null,null,null,{"$f":"IF($AB$24=\"新規\",\"備考\",\"\")","v":"備考"},null,{"$f":"IF($AB$24=\"新規\",\"１\",\"\")","v":"１"},{"$f":"IF($AB$24=\"新規\",\"別紙は、次の第１表から第８表の様式によること。\",\"\")","v":"別紙は、次の第１表から第８表の様式によること。"},null,null,null,null,null,null,null,null,null,null,null,null,null,null,null,null,null,null,null,null,"判定②",{"$f":"IF(COUNTA(AB21)>0,\"○\",\"\")","v":""}]
[null,null,null,{"$f":"IF($AB$24=\"新規\",\"\",\"備考\")","v":""},null,{"$f":"IF($AB$24=\"新規\",\"２\",\"１\")","v":"２"},"用紙の大きさは、日本産業規格Ａ４とすること。",null,null,null,null,null,null,null,null,null,null,null,null,null,null,null,null,null,null,null,null,"判定③",{"$f":"IF(AND(COUNTIF(帳票表示切替!$D$5:$AP$15,\"○\")=0,COUNTIF(帳票表示切替!$C$19:$AM$29,\"○\")=0),\"表紙のみ\",\"\")","v":""}]
[null,null,null,null,null,null,null,null,null,null,null,null,null,null,null,null,null,null,null,null,null,null,null,null,null,null,null,"判定④"]
[null,null,null,null,null,null,null,null,null,null,null,null,null,null,null,null,null,null,null,null,null,null,null,null,null,null,null,"判定⑤"]
[null,null,null,null,null,null,null,null,null,null,null,null,null,null,null,null,null,null,null,null,null,null,null,null,null,null,null,"判定⑥"]

{"sheet":"別紙（変更供計用）","index":8,"n_rows":16,"n_cols":42,"rows_kept":16,"cut":false,"hidden":true,"merged":[[23,6,25,17]]}
[]
[]
[]
[null,null,null,null,null,null,null,null,null,null,null,null,null,null,null,null,null,null,null,null,null,null,null,null,null,null,null,null,null,null,null,null,null,null,null,null,"（別紙）"]
[]
[]
[]
[]
[null,null,null,null,null,null,null,null,null,null,null,null,null,null,null,null,null,null,null,null,null,"供給計画変更理由書"]
[]
[]
[null,null,null,null,null,null,null,null,null,null,null,null,null,null,null,null,null,null,null,null,null,null,null,null,null,null,null,null,null,null,null,null,null,null,null,null,null,null,null,null,"様式自由"]
[null,null,null,null,null,null,null,null,null,null,null,null,null,null,null,null,null,null,null,null,null,null,null,null,null,null,null,null,null,null,null,null,null,null,null,null,null,null,null,null,"変更を必要とする理由を記載"]
[null,null,null,null,null,null,null,null,null,null,null,null,null,null,null,null,null,null,null,null,null,null,null,null,null,null,null,null,null,null,null,null,null,null,null,null,null,null,null,null,"変更箇所（様式第○第△表）を明示"]
[]
[null,null,null,null,null,null,null,null,null,null,null,null,null,null,null,null,null,null,null,null,null,null,null,null,null,null,null,null,null,null,null,null,null,null,null,null,null,null,null,null,"判定①",{"$f":"IF(COUNTA(W12:AK48)>0,\"○\",\"\")","v":""}]

{"sheet":"目次","index":9,"n_rows":43,"n_cols":16,"rows_kept":43,"cut":false,"hidden":false,"merged":[]}
[]
[]
[]
[]
[]
[null,"　",null,null,null,null,null,null,null,null,"　","目　　次"]
[]
[]
[]
[]
[null,null,null,null,null,null,null,null,null,null,null,"（届出書）　　"]
[null,null,null,null,null,null,null,null,null,null,null,null,"様式第３２","第１表","年度別の最大電力供給計画表","P1"]
[null,null,null,null,null,null,null,null,null,null,null,null,null,"第２表","年度別の電力量供給計画表","P"]
[null,null,null,null,null,null,null,null,null,null,null,null,null,"第３表","月別の最大電力供給計画表","P"]
[null,null,null,null,null,null,null,null,null,null,null,null,null,"第４表","月別の電力量供給計画表","P"]
[null,null,null,null,null,null,null,null,null,null,null,null,null,"第５表","発電所及び蓄電所の開発等についての計画書","P"]
[null,null,null,null,null,null,null,null,null,null,null,null,null,"第６の１表","主要送電線路の整備計画表","P"]
[null,null,null,null,null,null,null,null,null,null,null,null,null,"第６の２表","主要変電所の整備計画書","P"]
[null,null,null,null,null,null,null,null,null,null,null,null,null,"第６の３表","広域系統整備計画","P"]
[null,null,null,null,null,null,null,null,null,null,null,null,null,"第７表","発電所及び蓄電所の開発等についての長期計画書","P"]
[null,null,null,null,null,null,null,null,null,null,null,null,null,"第８表","電気の取引に関する計画書","P"]
[]
[]
[]
[]
[]
[]
[null,null,null,null,null,null,null,null,null,null,null,"（添付書類）　"]
[null,null,null,null,null,null,null,null,null,null,null,null,"様式第３３",null,"供給区域需要電力量想定書","P"]
[null,null,null,null,null,null,null,null,null,null,null,null,"様式第３３の２",null,"調整力確保計画書","P"]
[null,null,null,null,null,null,null,null,null,null,null,null,"様式第３３の３","第１表","年度別の調整力に関する計画書","P"]
[null,null,null,null,null,null,null,null,null,null,null,null,"様式第３４","第１表","水力発電所（揚水式を含む）発電・補修計画明細書","P"]
[null,null,null,null,null,null,null,null,null,null,null,null,null,"第２表","火力発電所発電・補修計画明細書","P"]
[null,null,null,null,null,null,null,null,null,null,null,null,null,"第３表","原子力発電所発電・補修計画明細書","P"]
[null,null,null,null,null,null,null,null,null,null,null,null,null,"第４表","新エネルギー等発電所等発電・補修計画明細書","P"]
[null,null,null,null,null,null,null,null,null,null,null,null,"様式第３５","第１表","火力発電所燃料計画明細書","P"]
[null,null,null,null,null,null,null,null,null,null,null,null,null,"第２表","火力発電所燃料計画明細書","P"]
[null,null,null,null,null,null,null,null,null,null,null,null,null,"第３表","国別燃料調達計画書","P"]
[null,null,null,null,null,null,null,null,null,null,null,null,"様式第３６",null,"電気の取引に関する計画書","P"]
[null,null,null,null,null,null,null,null,null,null,null,null,"様式第３７",null,"周波数滞在率実績表","P"]
[null,null,null,null,null,null,null,null,null,null,null,null,"様式第３８",null,"電力系統の状況","P"]
[null,null,null,null,null,null,null,null,null,null,null,null,"様式第３８",null,"電力潮流の状況","P"]
[null,null,null,null,null,null,null,null,null,null,null,null,"様式第３８の２",null,"最大需要電力発生時における会社間連系線の状況","P"]

{"sheet":"様式第32第1表（指定１）","index":10,"n_rows":1,"n_cols":2,"rows_kept":1,"cut":false,"hidden":true,"merged":[]}
[null,"様式32 第1表（エリア指定１）【年度別の最大電力供給計画表】"]

{"sheet":"様式第32第1表（指定２）","index":11,"n_rows":1,"n_cols":2,"rows_kept":1,"cut":false,"hidden":true,"merged":[]}
[null,"様式32 第1表（エリア指定２）【年度別の最大電力供給計画表】"]

{"sheet":"様式第32第2表","index":12,"n_rows":1,"n_cols":2,"rows_kept":1,"cut":false,"hidden":true,"merged":[]}
[null,"様式32 第2表【年度別の電力量供給計画表】"]

{"sheet":"様式第32第3表（指定）","index":13,"n_rows":1,"n_cols":2,"rows_kept":1,"cut":false,"hidden":true,"merged":[]}
[null,"様式32 第3表（エリア指定）【月別の最大電力供給計画表】"]

{"sheet":"様式第32第3表（指定） (2年度目)","index":14,"n_rows":1,"n_cols":2,"rows_kept":1,"cut":false,"hidden":true,"merged":[]}
[null,"様式32 第3表（エリア指定）【月別の最大電力供給計画表】"]

{"sheet":"様式第32第4表","index":15,"n_rows":1,"n_cols":2,"rows_kept":1,"cut":false,"hidden":true,"merged":[]}
[null,"様式32 第4表【月別の電力量供給計画表】"]

{"sheet":"様式第32第5表（水力）","index":16,"n_rows":16,"n_cols":17,"rows_kept":16,"cut":false,"hidden":true,"merged":[[8,7,8,8],[11,2,12,2],[13,2,14,2],[9,2,10,2]]}
[null,"様式32 第5表【発電所の開発等についての計画書】"]
[]
[null,null,null,"行を追加・削除したい区分を選択→"]
[]
[null,null,"様式第３２"]
[null,null,"第５表"]
[null,null,"発 電 所 の 開 発 等 に つ い て の 計 画 書",null,null,null,null,null,null,null,null,null,null,null,null,{"$f":"IF(COUNTA(H10:H15)=COUNTA(I10:I15),\"○\",\"×\")","v":"○"},"判定①　小売電気事業の用に供するための年間想定発電電力量"]
[null,null,"水力発電所",null,null,null,null,null,null,null,null,null,null,null,null,{"$f":"IF(COUNTA(D10:K15)>0,\"○\",\"\")","v":""},"判定②　記載有無の確認"]
[null,null,"区分","名称及び\n設備番号","所在地","種類","最大出力\n(kW)","年間可能発電電力量(106kWh)\n又は所内率(%)\n（右列：うち小売電気事業の用に供するための\n年間想定発電電力量(106kWh))",null,"着工年月","使用開始\n年月"]
[1,null,"工事中"]
[1]
[2,null,"着工準備中"]
[2]
[3,null,"その他"]
[3]
[4,null,"欄外備考"]

{"sheet":"様式第32第5表（火力）","index":17,"n_rows":16,"n_cols":17,"rows_kept":16,"cut":false,"hidden":true,"merged":[[8,7,8,8],[9,2,10,2],[11,2,12,2],[13,2,14,2]]}
[null,"様式32 第5表【発電所の開発等についての計画書】"]
[]
[null,null,null,"行を追加・削除したい区分を選択→"]
[]
[null,null,"様式第３２"]
[null,null,"第５表"]
[null,null,"発 電 所 の 開 発 等 に つ い て の 計 画 書",null,null,null,null,null,null,null,null,null,null,null,null,{"$f":"IF(COUNTA(H10:H15)=COUNTA(I10:I15),\"○\",\"×\")","v":"○"},"判定①　小売電気事業の用に供するための年間想定発電電力量"]
[null,null,"火力発電所",null,null,null,null,null,null,null,null,null,null,null,null,{"$f":"IF(COUNTA(D10:K15)>0,\"○\",\"\")","v":""},"判定②　記載有無の確認"]
[null,null,"区分","名称及び\n設備番号","所在地","種類","最大出力\n(kW)","年間可能発電電力量(106kWh)\n又は所内率(%)\n（右列：うち小売電気事業の用に供するための\n年間想定発電電力量(106kWh))",null,"着工年月","使用開始\n年月"]
[1,null,"工事中"]
[1]
[2,null,"着工準備中"]
[2]
[3,null,"その他"]
[3]
[4,null,"欄外備考"]

{"sheet":"様式第32第5表（原子力）","index":18,"n_rows":16,"n_cols":17,"rows_kept":16,"cut":false,"hidden":true,"merged":[[8,7,8,8],[9,2,10,2],[11,2,12,2],[13,2,14,2]]}
[null,"様式32 第5表【発電所の開発等についての計画書】"]
[]
[null,null,null,"行を追加・削除したい区分を選択→"]
[]
[null,null,"様式第３２"]
[null,null,"第５表"]
[null,null,"発 電 所 の 開 発 等 に つ い て の 計 画 書",null,null,null,null,null,null,null,null,null,null,null,null,{"$f":"IF(COUNTA(H10:H15)=COUNTA(I10:I15),\"○\",\"×\")","v":"○"},"判定①　小売電気事業の用に供するための年間想定発電電力量"]
[null,null,"原子力発電所",null,null,null,null,null,null,null,null,null,null,null,null,{"$f":"IF(COUNTA(D10:K15)>0,\"○\",\"\")","v":""},"判定②　記載有無の確認"]
[null,null,"区分","名称及び\n設備番号","所在地","種類","最大出力\n(kW)","年間可能発電電力量(106kWh)\n又は所内率(%)\n（右列：うち小売電気事業の用に供するための\n年間想定発電電力量(106kWh))",null,"着工年月","使用開始\n年月"]
[1,null,"工事中"]
[1]
[2,null,"着工準備中"]
[2]
[3,null,"その他"]
[3]
[4,null,"欄外備考"]

{"sheet":"様式第32第5表（新エネ）","index":19,"n_rows":16,"n_cols":17,"rows_kept":16,"cut":false,"hidden":true,"merged":[[8,7,8,8],[9,2,10,2],[11,2,12,2],[13,2,14,2]]}
[null,"様式32 第5表【発電所の開発等についての計画書】"]
[]
[null,null,null,"行を追加・削除したい区分を選択→"]
[]
[null,null,"様式第３２"]
[null,null,"第５表"]
[null,null,"発 電 所 の 開 発 等 に つ い て の 計 画 書",null,null,null,null,null,null,null,null,null,null,null,null,{"$f":"IF(COUNTA(H10:H15)=COUNTA(I10:I15),\"○\",\"×\")","v":"○"},"判定①　小売電気事業の用に供するための年間想定発電電力量"]
[null,null,"新エネルギー等発電所",null,null,null,null,null,null,null,null,null,null,null,null,{"$f":"IF(COUNTA(D10:K15)>0,\"○\",\"\")","v":""},"判定②　記載有無の確認"]
[null,null,"区分","名称及び\n設備番号","所在地","種類","最大出力\n(kW)","年間可能発電電力量(106kWh)\n又は所内率(%)\n（右列：うち小売電気事業の用に供するための\n年間想定発電電力量(106kWh))",null,"着工年月","使用開始\n年月"]
[1,null,"工事中"]
[1]
[2,null,"着工準備中"]
[2]
[3,null,"その他"]
[3]
[4,null,"欄外備考"]

{"sheet":"様式第32第6の1表","index":20,"n_rows":16,"n_cols":18,"rows_kept":16,"cut":false,"hidden":false,"merged":[[9,2,10,2],[11,2,12,2],[13,2,14,2]]}
[null,"様式32 第6の1表【主要送電線路の整備計画表】"]
[]
[null,null,null,"行を追加・削除したい区分を選択→"]
[]
[null,null,"様式第３２"]
[null,null,"第６の１表"]
[null,null,"主 要 送 電 線 路 の 整 備 計 画 表",null,null,null,null,null,null,null,null,null,null,null,null,null,{"$f":"IF(COUNTA(D10:L15)>0,\"○\",\"\")","v":""},"判定①　記載有無の確認"]
[]
[null,null,"区分","名称","区間","電圧\n(kV)","こう長\n(km)","回線数","電線の種類および太さ\n（mm2）","着工年月","使用開始\n年月","設置又は変更を必要とする理由"]
[1,null,"工事中"]
[1]
[2,null,"着工準備中"]
[2]
[3,null,"その他"]
[3]
[4,null,"欄外備考"]

{"sheet":"様式第32第6の2表","index":21,"n_rows":17,"n_cols":20,"rows_kept":17,"cut":false,"hidden":false,"merged":[[14,2,15,2],[8,2,9,2],[8,3,9,3],[8,4,9,4],[8,5,9,5],[8,11,9,11],[8,12,9,12],[8,13,9,13],[10,2,11,2],[12,2,13,2],[8,6,8,9],[8,10,9,10]]}
[null,"様式32 第6の2表【主要変電所の整備計画書】"]
[]
[null,null,null,"行を追加・削除したい区分を選択→"]
[]
[null,null,"様式第３２"]
[null,null,"第６の２表"]
[null,null,"主 要 変 電 所 の 整 備 計 画 書",null,null,null,null,null,null,null,null,null,null,null,null,null,null,null,{"$f":"IF(COUNTA(D11:N16)>0,\"○\",\"\")","v":""},"判定①　記載有無の確認"]
[]
[null,null,"区分","名称","所在地","増加出力\n(MVA)","変圧器",null,null,null,"その他の設備\n（名称、容量）","着工年月","使用開始\n年月","設置又は変更を必要とする理由"]
[null,null,null,null,null,null,"相数","電圧\n(kV)","容量\n（MVA）","台数"]
[1,null,"工事中"]
[1]
[2,null,"着工準備中"]
[2]
[3,null,"その他"]
[3]
[4,null,"欄外備考"]

{"sheet":"様式第32第6の3表","index":22,"n_rows":17,"n_cols":12,"rows_kept":17,"cut":false,"hidden":false,"merged":[[8,2,9,2],[8,3,9,3],[8,4,9,4],[8,5,9,5]]}
[null,"様式32 第6の3表【広域系統整備計画】"]
[]
[null,2,"←追加・削除したい行数を選択"]
[]
[null,null,"様式第３２"]
[null,null,"第６の３表"]
[null,null,"広域系統整備計画",null,null,null,null,null,null,null,{"$f":"IF(COUNTA(C11:F16)>0,\"○\",\"\")","v":""},"判定①　記載有無の確認"]
[]
[null,null,"計画名称","工事内容","着工年月","使用開始\n年月"]
[]
[1]
[2]
[3]
[4]
[5]
[6]
[null,null,"欄外備考"]

{"sheet":"様式第32第7表（水力）","index":23,"n_rows":13,"n_cols":14,"rows_kept":13,"cut":false,"hidden":true,"merged":[]}
[null,"様式32 第7表【発電所の開発等についての長期計画書】"]
[]
[null,null,"様式第３２"]
[null,null,"第７表"]
[null,null,"発電所の開発等についての長期計画書"]
[null,null,"水力発電所",null,null,null,null,null,null,null,null,null,{"$f":"IF(COUNTA(A8:H12)>0,\"○\",\"\")","v":""},"判定①　記載有無の確認"]
[null,null,"名称及び\n設備番号","所在地","種類","最大出力\n(kW)","着工年月","使用開始\n年月"]
[]
[]
[]
[]
[]
[null,null,"欄外備考"]

{"sheet":"様式第32第7表（火力）","index":24,"n_rows":13,"n_cols":14,"rows_kept":13,"cut":false,"hidden":true,"merged":[]}
[null,"様式32 第7表【発電所の開発等についての長期計画書】"]
[]
[null,null,"様式第３２"]
[null,null,"第７表"]
[null,null,"発電所の開発等についての長期計画書"]
[null,null,"火力発電所",null,null,null,null,null,null,null,null,null,{"$f":"IF(COUNTA(A8:H12)>0,\"○\",\"\")","v":""},"判定①　記載有無の確認"]
[null,null,"名称及び\n設備番号","所在地","種類","最大出力\n(kW)","着工年月","使用開始\n年月"]
[]
[]
[]
[]
[]
[null,null,"欄外備考"]

{"sheet":"様式第32第7表（原子力）","index":25,"n_rows":13,"n_cols":14,"rows_kept":13,"cut":false,"hidden":true,"merged":[]}
[null,"様式32 第7表【発電所の開発等についての長期計画書】"]
[]
[null,null,"様式第３２"]
[null,null,"第７表"]
[null,null,"発電所の開発等についての長期計画書"]
[null,null,"原子力発電所",null,null,null,null,null,null,null,null,null,{"$f":"IF(COUNTA(A8:H12)>0,\"○\",\"\")","v":""},"判定①　記載有無の確認"]
[null,null,"名称及び\n設備番号","所在地","種類","最大出力\n(kW)","着工年月","使用開始\n年月"]
[]
[]
[]
[]
[]
[null,null,"欄外備考"]

{"sheet":"様式第32第7表（新エネ）","index":26,"n_rows":13,"n_cols":14,"rows_kept":13,"cut":false,"hidden":true,"merged":[]}
[null,"様式32 第7表【発電所の開発等についての長期計画書】"]
[]
[null,null,"様式第３２"]
[null,null,"第７表"]
[null,null,"発電所の開発等についての長期計画書"]
[null,null,"新エネルギー等発電所",null,null,null,null,null,null,null,null,null,{"$f":"IF(COUNTA(A8:H12)>0,\"○\",\"\")","v":""},"判定①　記載有無の確認"]
[null,null,"名称及び\n設備番号","所在地","種類","最大出力\n(kW)","着工年月","使用開始\n年月"]
[]
[]
[]
[]
[]
[null,null,"欄外備考"]

{"sheet":"様式第32第8表（指定１）_受電","index":27,"n_rows":27,"n_cols":7,"rows_kept":27,"cut":false,"hidden":true,"merged":[]}
[null,"様式32 第8表（指定１）【電気の取引に関する計画表】受電（調達）"]
[]
[]
[]
[]
[null,null,"供給区域",null,"北海道"]
[]
[null,null,"供給区域",null,"東北"]
[]
[null,null,"供給区域",null,"東京"]
[]
[null,null,"供給区域",null,"中部"]
[]
[null,null,"供給区域",null,"北陸"]
[]
[null,null,"供給区域",null,"関西"]
[]
[null,null,"供給区域",null,"中国"]
[]
[null,null,"供給区域",null,"四国"]
[]
[null,null,"供給区域",null,"九州"]
[]
[null,null,"供給区域",null,"沖縄"]
[]
[]
[null,null,null,null,null,null,"年間受給電力量(10⁶kWh)"]

{"sheet":"様式第32第8表（指定１）_送電","index":28,"n_rows":27,"n_cols":7,"rows_kept":27,"cut":false,"hidden":true,"merged":[]}
[null,"様式32 第8表（指定１）【電気の取引に関する計画表】送電（販売）"]
[]
[]
[]
[]
[null,null,"供給区域",null,"北海道"]
[]
[null,null,"供給区域",null,"東北"]
[]
[null,null,"供給区域",null,"東京"]
[]
[null,null,"供給区域",null,"中部"]
[]
[null,null,"供給区域",null,"北陸"]
[]
[null,null,"供給区域",null,"関西"]
[]
[null,null,"供給区域",null,"中国"]
[]
[null,null,"供給区域",null,"四国"]
[]
[null,null,"供給区域",null,"九州"]
[]
[null,null,"供給区域",null,"沖縄"]
[]
[]
[null,null,null,null,null,null,"年間受給電力量(10⁶kWh)"]

{"sheet":"様式第32第8表（指定２）_受電","index":29,"n_rows":27,"n_cols":7,"rows_kept":27,"cut":false,"hidden":true,"merged":[]}
[null,"様式32 第8表（指定２）【電気の取引に関する計画表】受電（調達）"]
[]
[]
[]
[]
[null,null,"供給区域",null,"北海道"]
[]
[null,null,"供給区域",null,"東北"]
[]
[null,null,"供給区域",null,"東京"]
[]
[null,null,"供給区域",null,"中部"]
[]
[null,null,"供給区域",null,"北陸"]
[]
[null,null,"供給区域",null,"関西"]
[]
[null,null,"供給区域",null,"中国"]
[]
[null,null,"供給区域",null,"四国"]
[]
[null,null,"供給区域",null,"九州"]
[]
[null,null,"供給区域",null,"沖縄"]
[]
[]
[null,null,null,null,null,null,"年間受給電力量(10⁶kWh)"]

{"sheet":"様式第32第8表（指定２）_送電","index":30,"n_rows":27,"n_cols":7,"rows_kept":27,"cut":false,"hidden":true,"merged":[]}
[null,"様式32 第8表（指定２）【電気の取引に関する計画表】送電（販売）"]
[]
[]
[]
[]
[null,null,"供給区域",null,"北海道"]
[]
[null,null,"供給区域",null,"東北"]
[]
[null,null,"供給区域",null,"東京"]
[]
[null,null,"供給区域",null,"中部"]
[]
[null,null,"供給区域",null,"北陸"]
[]
[null,null,"供給区域",null,"関西"]
[]
[null,null,"供給区域",null,"中国"]
[]
[null,null,"供給区域",null,"四国"]
[]
[null,null,"供給区域",null,"九州"]
[]
[null,null,"供給区域",null,"沖縄"]
[]
[]
[null,null,null,null,null,null,"年間受給電力量(10⁶kWh)"]

{"sheet":"添付書類","index":31,"n_rows":13,"n_cols":27,"rows_kept":13,"cut":false,"hidden":false,"merged":[[12,26,15,47]]}
[]
[]
[]
[]
[]
[]
[]
[]
[]
[]
[]
[]
[null,null,null,null,null,null,null,null,null,null,null,null,null,null,null,null,null,null,null,null,null,null,null,null,null,null,"添 付 書 類"]

{"sheet":"様式第33表（指定１）","index":32,"n_rows":1,"n_cols":2,"rows_kept":1,"cut":false,"hidden":true,"merged":[]}
[null,"様式33（エリア指定１）【供給区域需要電力量想定書】"]

{"sheet":"様式第33表（指定２）","index":33,"n_rows":1,"n_cols":2,"rows_kept":1,"cut":false,"hidden":true,"merged":[]}
[null,"様式33（エリア指定２）【供給区域需要電力量想定書】"]

{"sheet":"様式第33の2（指定１）","index":34,"n_rows":1,"n_cols":2,"rows_kept":1,"cut":false,"hidden":true,"merged":[]}
[null,"様式33の2【調整力確保計画書】"]

{"sheet":"様式第33の2（指定２）","index":35,"n_rows":1,"n_cols":2,"rows_kept":1,"cut":false,"hidden":true,"merged":[]}
[null,"様式33-2【調整力確保計画書】"]

{"sheet":"様式第33の3第1表（指定１）","index":36,"n_rows":1,"n_cols":2,"rows_kept":1,"cut":false,"hidden":true,"merged":[]}
[null,"様式33の3【年度別の調整力の見通しについての計画書】"]

{"sheet":"様式第33の3第1表（指定２）","index":37,"n_rows":1,"n_cols":2,"rows_kept":1,"cut":false,"hidden":true,"merged":[]}
[null,"様式33の3【年度別の調整力の見通しについての計画書】"]

{"sheet":"様式第33の3第2表","index":38,"n_rows":1,"n_cols":2,"rows_kept":1,"cut":false,"hidden":true,"merged":[]}
[null,"様式33の4【月別の調整力の見通しについての計画書】"]

{"sheet":"様式第33の3第2表 (2年度目)","index":39,"n_rows":1,"n_cols":2,"rows_kept":1,"cut":false,"hidden":true,"merged":[]}
[null,"様式33の4【月別の調整力の見通しについての計画書】"]

{"sheet":"様式第34第1表","index":40,"n_rows":1,"n_cols":2,"rows_kept":1,"cut":false,"hidden":true,"merged":[]}
[null,"様式34 第1表【揚水式水力発電所発電計画明細書】"]

{"sheet":"様式第34第1表 (2年度目)","index":41,"n_rows":1,"n_cols":2,"rows_kept":1,"cut":false,"hidden":true,"merged":[]}
[null,"様式34 第1表【揚水式水力発電所発電計画明細書】"]

{"sheet":"様式第34第2表","index":42,"n_rows":1,"n_cols":2,"rows_kept":1,"cut":false,"hidden":true,"merged":[]}
[null,"様式34 第2表【火力発電所発電・補修計画明細書】"]

{"sheet":"様式第34第2表 (2年度目)","index":43,"n_rows":1,"n_cols":2,"rows_kept":1,"cut":false,"hidden":true,"merged":[]}
[null,"様式34 第2表【火力発電所発電・補修計画明細書】"]

{"sheet":"様式第34第3表","index":44,"n_rows":1,"n_cols":2,"rows_kept":1,"cut":false,"hidden":true,"merged":[]}
[null,"様式34 第3表【原子力発電所発電・補修計画明細書】"]

{"sheet":"様式第34第3表 (2年度目)","index":45,"n_rows":1,"n_cols":2,"rows_kept":1,"cut":false,"hidden":true,"merged":[]}
[null,"様式34 第3表【原子力発電所発電・補修計画明細書】"]

{"sheet":"様式第34第4表","index":46,"n_rows":1,"n_cols":2,"rows_kept":1,"cut":false,"hidden":true,"merged":[]}
[null,"様式34 第4表【新エネルギー等発電所等発電・補修計画明細書】"]

{"sheet":"様式第34第4表 (2年度目)","index":47,"n_rows":1,"n_cols":2,"rows_kept":1,"cut":false,"hidden":true,"merged":[]}
[null,"様式34 第4表（2年度目）【新エネルギー等発電所等発電・補修計画明細書】"]

{"sheet":"様式第35第1表","index":48,"n_rows":1,"n_cols":2,"rows_kept":1,"cut":false,"hidden":true,"merged":[]}
[null,"様式35 第1表【火力発電所燃料計画明細書】"]

{"sheet":"様式第35第2表","index":49,"n_rows":1,"n_cols":2,"rows_kept":1,"cut":false,"hidden":true,"merged":[]}
[null,"様式35 第2表【火力発電所燃料計画明細書】"]

{"sheet":"様式第35第3表","index":50,"n_rows":1,"n_cols":2,"rows_kept":1,"cut":false,"hidden":true,"merged":[]}
[null,"様式35 第3表【国別燃料調達計画書】"]

{"sheet":"様式第36表（指定）_受電","index":51,"n_rows":27,"n_cols":7,"rows_kept":27,"cut":false,"hidden":true,"merged":[]}
[null,"様式36表（エリア指定）【電気の取引に関する計画表】受電（調達）"]
[]
[]
[]
[]
[null,null,"供給区域",null,"北海道"]
[]
[null,null,"供給区域",null,"東北"]
[]
[null,null,"供給区域",null,"東京"]
[]
[null,null,"供給区域",null,"中部"]
[]
[null,null,"供給区域",null,"北陸"]
[]
[null,null,"供給区域",null,"関西"]
[]
[null,null,"供給区域",null,"中国"]
[]
[null,null,"供給区域",null,"四国"]
[]
[null,null,"供給区域",null,"九州"]
[]
[null,null,"供給区域",null,"沖縄"]
[]
[]
[null,null,null,null,null,null,"年間受給電力量(10⁶kWh)"]

{"sheet":"様式第36表（指定）_送電","index":52,"n_rows":27,"n_cols":7,"rows_kept":27,"cut":false,"hidden":true,"merged":[]}
[null,"様式36表（エリア指定）【電気の取引に関する計画表】送電（販売）"]
[]
[]
[]
[]
[null,null,"供給区域",null,"北海道"]
[]
[null,null,"供給区域",null,"東北"]
[]
[null,null,"供給区域",null,"東京"]
[]
[null,null,"供給区域",null,"中部"]
[]
[null,null,"供給区域",null,"北陸"]
[]
[null,null,"供給区域",null,"関西"]
[]
[null,null,"供給区域",null,"中国"]
[]
[null,null,"供給区域",null,"四国"]
[]
[null,null,"供給区域",null,"九州"]
[]
[null,null,"供給区域",null,"沖縄"]
[]
[]
[null,null,null,null,null,null,"年間受給電力量(10⁶kWh)"]

{"sheet":"様式第36表（指定）_受電 (2年度目)","index":53,"n_rows":27,"n_cols":7,"rows_kept":27,"cut":false,"hidden":true,"merged":[]}
[null,"様式36表（エリア指定）（2年度目）【電気の取引に関する計画表】受電（調達）"]
[]
[]
[]
[]
[null,null,"供給区域",null,"北海道"]
[]
[null,null,"供給区域",null,"東北"]
[]
[null,null,"供給区域",null,"東京"]
[]
[null,null,"供給区域",null,"中部"]
[]
[null,null,"供給区域",null,"北陸"]
[]
[null,null,"供給区域",null,"関西"]
[]
[null,null,"供給区域",null,"中国"]
[]
[null,null,"供給区域",null,"四国"]
[]
[null,null,"供給区域",null,"九州"]
[]
[null,null,"供給区域",null,"沖縄"]
[]
[]
[null,null,null,null,null,null,"年間受給電力量(10⁶kWh)"]

{"sheet":"様式第36表（指定）_送電 (2年度目)","index":54,"n_rows":27,"n_cols":7,"rows_kept":27,"cut":false,"hidden":true,"merged":[]}
[null,"様式36表（エリア指定）（2年度目）【電気の取引に関する計画表】送電（販売）"]
[]
[]
[]
[]
[null,null,"供給区域",null,"北海道"]
[]
[null,null,"供給区域",null,"東北"]
[]
[null,null,"供給区域",null,"東京"]
[]
[null,null,"供給区域",null,"中部"]
[]
[null,null,"供給区域",null,"北陸"]
[]
[null,null,"供給区域",null,"関西"]
[]
[null,null,"供給区域",null,"中国"]
[]
[null,null,"供給区域",null,"四国"]
[]
[null,null,"供給区域",null,"九州"]
[]
[null,null,"供給区域",null,"沖縄"]
[]
[]
[null,null,null,null,null,null,"年間受給電力量(10⁶kWh)"]

{"sheet":"様式第37表","index":55,"n_rows":14,"n_cols":24,"rows_kept":14,"cut":false,"hidden":true,"merged":[[7,16,7,19],[5,2,5,3],[5,12,5,13],[7,3,7,5],[7,6,7,9],[7,13,7,15],[8,3,8,5],[8,6,8,9],[8,13,8,15],[8,16,8,19],[9,3,9,5],[9,6,9,9],[9,13,9,15],[9,16,9,19],[12,3,12,5],[12,6,12,9],[12,13,12,15],[12,16,12,19],[10,3,10,5],[10,6,10,9],[10,13,10,15],[10,16,10,19],[11,3,11,5],[11,6,11,9],[11,13,11,15],[11,16,11,19]]}
[null,"様式37【周波数滞在率実績表】"]
[]
[null,null,"様式第３７",null,null,null,null,null,null,null,null,null,"様式第３７",null,null,null,null,null,null,null,null,null,{"$f":"IF(COUNT(G8:J13,Q8:T13)>0,\"○\",\"\")","v":""},"判定①　記載有無の確認"]
[null,null,"周波数滞在率実績表",null,null,null,null,null,null,null,null,null,"周波数滞在率実績表"]
[]
[null,null,{"$f":"'様式第32第1表（指定１）'!#REF!-1","v":{"$error":"#REF!"}},null,null,null,null,null,null,null,null,null,{"$f":"'様式第32第1表（指定１）'!#REF!-1","v":{"$error":"#REF!"}}]
[null,null,null,"事業者における規定変動幅（Hz）",null,null,null,"±",null,"Hz",null,null,null,"事業者における規定変動幅（Hz）",null,null,null,"±",null,"Hz"]
[null,null,null,"実測周波数が規定変動幅内に維持された時間の比率（％）\n（実測期間内）",null,null,null,null,null,null,null,null,null,"実測周波数が規定変動幅内に維持された時間の比率（％）\n（実測期間内）"]
[null,null,null,"実測周波数のうち、最大の変動幅の変動率（又は周波数）（％）\n（実測期間内）",null,null,null,null,null,null,null,null,null,"実測周波数のうち、最大の変動幅の変動率（又は周波数）（％）\n（実測期間内）"]
[null,null,null,"実測周波数が規定変動幅内に維持された時間の比率（％）\n（８月の１か月間）",null,null,null,null,null,null,null,null,null,"実測周波数が規定変動幅内に維持された時間の比率（％）\n（８月の１か月間）"]
[null,null,null,"実測周波数が規定変動幅内に維持された時間の比率（％）\n（８月以外の供給区域毎に指定する月間）",null,null,null,null,null,null,null,null,null,"実測周波数が規定変動幅内に維持された時間の比率（％）\n（８月以外の供給区域毎に指定する月間）"]
[null,null,null,"実測周波数のうち、最大の変動幅の変動率（又は周波数）（％）\n（８月）",null,null,null,null,null,null,null,null,null,"実測周波数のうち、最大の変動幅の変動率（又は周波数）（％）\n（８月）"]
[null,null,null,"実測周波数のうち、最大の変動幅の変動率（又は周波数）（％）\n（８月以外の供給区域毎に指定する月）",null,null,null,null,null,null,null,null,null,"実測周波数のうち、最大の変動幅の変動率（又は周波数）（％）\n（８月以外の供給区域毎に指定する月）"]
[null,null,"欄外備考",null,null,null,null,null,null,null,null,null,"欄外備考"]

{"sheet":"様式第38表（電力潮流の状況）","index":56,"n_rows":57,"n_cols":3,"rows_kept":57,"cut":false,"hidden":true,"merged":[[6,3,7,3],[6,4,7,4],[6,5,7,5],[6,6,7,6],[6,7,7,7],[6,10,7,10],[8,8,8,9],[9,8,9,9],[10,8,10,9],[11,8,11,9],[6,8,7,9]]}
[null,"様式38【電力潮流の状況】"]
[]
[null,null,"様式第３８"]
[null,null,"電力潮流の状況"]
[]
[null,null,"潮流図"]
[]
[]
[]
[]
[]
[]
[]
[]
[]
[]
[]
[]
[]
[]
[]
[]
[]
[]
[]
[]
[]
[]
[]
[]
[]
[]
[]
[]
[]
[]
[]
[]
[]
[]
[]
[]
[]
[]
[]
[]
[]
[]
[]
[]
[]
[]
[]
[]
[]
[]
[null,null,"欄外備考"]

{"sheet":"様式第38の2表（指定１）","index":57,"n_rows":68,"n_cols":14,"rows_kept":68,"cut":false,"hidden":true,"merged":[[5,2,6,2],[5,3,6,3],[5,4,5,5],[5,6,6,7],[55,2,56,2],[55,3,56,3],[55,4,55,5],[55,6,56,7],[30,2,31,2],[30,3,31,3],[30,4,30,5],[30,6,31,7]]}
[null,"様式38 第2表（指定１）【最大需要電力発生時における会社間連系線の状況】"]
[]
[null,null,"様式第３８の２"]
[null,null,"最大需要電力発生時における会社間連系線の状況"]
[null,null,"2024年度（第１年度）","（８月）",null,null,null,"（単位：ＭＷ）"]
[null,null,"連系地点名","送電容量","運用容量",null,"受給電力",null,null,null,null,null,{"$f":"IF(COUNT(C8:H17)>0,\"○\",\"\")","v":""},"判定①　記載有無の確認"]
[null,null,null,null,"送電分","受電分"]
[]
[]
[]
[]
[]
[]
[]
[]
[]
[]
[null,null,"欄外備考"]
[]
[]
[]
[]
[]
[]
[]
[]
[]
[null,null,"様式第３８の２"]
[null,null,"最大需要電力発生時における会社間連系線の状況"]
[null,null,"2026年度（第5年度）","（８月）",null,null,null,"（単位：ＭＷ）"]
[null,null,"連系地点名","送電容量","運用容量",null,"受給電力"]
[null,null,null,null,"送電分","受電分"]
[]
[]
[]
[]
[]
[]
[]
[]
[]
[]
[null,null,"欄外備考"]
[]
[]
[]
[]
[]
[]
[]
[]
[]
[null,null,"様式第３８の２"]
[null,null,"最大需要電力発生時における会社間連系線の状況"]
[null,null,"2031年度（第10年度）","（８月）",null,null,null,"（単位：ＭＷ）"]
[null,null,"連系地点名","送電容量","運用容量",null,"受給電力"]
[null,null,null,null,"送電分","受電分"]
[]
[]
[]
[]
[]
[]
[]
[]
[]
[]
[null,null,"欄外備考"]

{"sheet":"様式第38表（電力系統の状況）","index":58,"n_rows":57,"n_cols":11,"rows_kept":57,"cut":false,"hidden":false,"merged":[[6,3,7,3],[6,4,7,4],[6,5,7,5],[6,6,7,6],[6,7,7,7],[6,10,7,10],[8,8,8,9],[9,8,9,9],[10,8,10,9],[11,8,11,9],[6,8,7,9]]}
[null,"様式38【電力系統の状況】"]
[]
[null,null,"様式第３８"]
[null,null,"電力系統の状況"]
[]
[null,null,"系統図","会社間連系線の概要"]
[null,null,null,"年度","名称","送電容量\n（ＭＷ）","運用容量\n（ＭＷ）","こう長\n（ｋｍ）","系統分離条件\n周波数(Hz)，対応時間(s)",null,"使用開始\n年月"]
[]
[]
[]
[]
[]
[]
[]
[]
[]
[]
[]
[]
[]
[]
[]
[]
[]
[]
[]
[]
[]
[]
[]
[]
[]
[]
[]
[]
[]
[]
[]
[]
[]
[]
[]
[]
[]
[]
[]
[]
[]
[]
[]
[]
[]
[]
[]
[]
[]
[null,null,"欄外備考"]

{"sheet":"様式第38の2表（指定２）","index":59,"n_rows":68,"n_cols":14,"rows_kept":68,"cut":false,"hidden":true,"merged":[[55,2,56,2],[55,3,56,3],[55,4,55,5],[55,6,56,7],[5,2,6,2],[5,3,6,3],[5,4,5,5],[5,6,6,7],[30,2,31,2],[30,3,31,3],[30,4,30,5],[30,6,31,7]]}
[null,"様式38 第2表（指定２）【最大需要電力発生時における会社間連系線の状況】"]
[]
[null,null,"様式第３８の２"]
[null,null,"最大需要電力発生時における会社間連系線の状況"]
[null,null,"2024年度（第１年度）","（１月）",null,null,null,"（単位：ＭＷ）"]
[null,null,"連系地点名","送電容量","運用容量",null,"受給電力",null,null,null,null,null,{"$f":"IF(COUNT(C8:H17)>0,\"○\",\"\")","v":""},"判定①　記載有無の確認"]
[null,null,null,null,"送電分","受電分"]
[]
[]
[]
[]
[]
[]
[]
[]
[]
[]
[null,null,"欄外備考"]
[]
[]
[]
[]
[]
[]
[]
[]
[]
[null,null,"様式第３８の２"]
[null,null,"最大需要電力発生時における会社間連系線の状況"]
[null,null,"2026年度（第5年度）","（１月）",null,null,null,"（単位：ＭＷ）"]
[null,null,"連系地点名","送電容量","運用容量",null,"受給電力"]
[null,null,null,null,"送電分","受電分"]
[]
[]
[]
[]
[]
[]
[]
[]
[]
[]
[null,null,"欄外備考"]
[]
[]
[]
[]
[]
[]
[]
[]
[]
[null,null,"様式第３８の２"]
[null,null,"最大需要電力発生時における会社間連系線の状況"]
[null,null,"2031年度（第10年度）","（１月）",null,null,null,"（単位：ＭＷ）"]
[null,null,"連系地点名","送電容量","運用容量",null,"受給電力"]
[null,null,null,null,"送電分","受電分"]
[]
[]
[]
[]
[]
[]
[]
[]
[]
[]
[null,null,"欄外備考"]

{"sheet":"見え消し版用表紙（変更供計用）","index":60,"n_rows":13,"n_cols":27,"rows_kept":13,"cut":false,"hidden":true,"merged":[[12,26,15,47]]}
[]
[]
[]
[]
[]
[]
[]
[]
[]
[]
[]
[]
[null,null,null,null,null,null,null,null,null,null,null,null,null,null,null,null,null,null,null,null,null,null,null,null,null,null,"見 え 消 し 版"]